Ref No,Fund Type,Dept,Cost Centre Description    ,Description    ,Creditor Name    ,GL Code Net Amount,Payment date        
2,Revenue,CCHD,Supporting People Programme,Grants to Voluntary Bodies,1625 Independent People,17214.75, 01-Mar-2013
3,Revenue,CCHD,Home Care - Elderly - South,Other Small Contracts,3 Trees Community Support Ltd,94.56, 04-Mar-2013
4,Revenue,CCHD,Home Care - Elderly - North,Other Small Contracts,3 Trees Community Support Ltd,1591.76, 04-Mar-2013
5,Revenue,CCHD,Day Care - North,Private & Voluntary Day Care,3 Trees Community Support Ltd,86.68, 04-Mar-2013
6,Revenue,CCHD,Home Care - Elderly - South,Other Small Contracts,3 Trees Community Support Ltd,94.56, 11-Mar-2013
7,Revenue,CCHD,Home Care - Elderly - North,Other Small Contracts,3 Trees Community Support Ltd,1623.28, 11-Mar-2013
8,Revenue,CCHD,Day Care - North,Private & Voluntary Day Care,3 Trees Community Support Ltd,94.56, 11-Mar-2013
9,Revenue,CCHD,Home Care - Elderly - South,Other Small Contracts,3 Trees Community Support Ltd,94.56, 18-Mar-2013
10,Revenue,CCHD,Home Care - Elderly - North,Other Small Contracts,3 Trees Community Support Ltd,1579.94, 18-Mar-2013
11,Revenue,CCHD,Day Care - North,Private & Voluntary Day Care,3 Trees Community Support Ltd,90.62, 18-Mar-2013
12,Revenue,CCHD,Home Care - Elderly - South,Other Small Contracts,3 Trees Community Support Ltd,94.56, 18-Mar-2013
13,Revenue,CCHD,Home Care - Elderly - North,Other Small Contracts,3 Trees Community Support Ltd,1623.28, 18-Mar-2013
14,Revenue,CCHD,Day Care - North,Private & Voluntary Day Care,3 Trees Community Support Ltd,94.56, 18-Mar-2013
15,Revenue,CCHD,Supported Living - KD,Private & Voluntary Home Care,3 Trees Community Support Ltd,7893.8, 08-Mar-2013
16,Revenue,CCHD,Supported Living - PS,Private & Voluntary Home Care,3 Trees Community Support Ltd,609.65, 20-Mar-2013
17,Revenue,CCHD,Supported Living - PS,Private & Voluntary Home Care,3 Trees Community Support Ltd,1200.56, 25-Mar-2013
18,Revenue,CCHD,Purchase of Non-Res Care - KD,Private & Voluntary Day Care,3 Trees Community Support Ltd,4341.14, 22-Mar-2013
19,Revenue,CCHD,Supported Living - KD,Private & Voluntary Home Care,3 Trees Community Support Ltd,576.58, 21-Mar-2013
20,Revenue,CCHD,Supported Living - PS,Private & Voluntary Home Care,3 Trees Community Support Ltd,2002.8, 20-Mar-2013
21,Revenue,CCHD,Purchase of Non-Res Care - KD,Private & Voluntary Day Care,3 Trees Community Support Ltd,1673.4, 21-Mar-2013
22,Revenue,CCHD,Purchase of Non-Res Care - KD,Private & Voluntary Day Care,3 Trees Community Support Ltd,1689.36, 22-Mar-2013
23,Revenue,CCHD,Supported Living - KD,Private & Voluntary Home Care,3 Trees Community Support Ltd,7560.24, 18-Mar-2013
24,Revenue,CCHD,Purchase of Non-Res Care - KD,Private & Voluntary Day Care,3 Trees Community Support Ltd,1351.51, 21-Mar-2013
25,Revenue,CCHD,Purchase of Non-Res Care - KD,Private & Voluntary Day Care,3 Trees Community Support Ltd,6358.72, 21-Mar-2013
26,Revenue,CCHD,Purchase of Non-Res Care - PS,Private & Voluntary Day Care,3 Trees Community Support Ltd,3134.92, 25-Mar-2013
27,Revenue,CCHD,Supported Living - KD,Private & Voluntary Home Care,3 Trees Community Support Ltd,7819.4, 25-Mar-2013
28,Revenue,CCHD,Bed Purchasing - Under 65s PWLD - South,Residential Homes,5Th Floor Harlech Court,15679.72, 19-Mar-2013
29,Revenue,CCHD,Bed purchasing - Under 65s PWLD - North,Residential Homes,5Th Floor Harlech Court,22876.31, 19-Mar-2013
30,Revenue,CCHD,Bed purchasing - Under 65s PWLD - North,Residential Homes,5Th Floor Harlech Court,13628.44, 19-Mar-2013
31,Revenue,CCHD,Bed purchasing - Under 65s PWLD - North,Residential Homes,5Th Floor Harlech Court,16197.04, 19-Mar-2013
32,Revenue,CCHD,Direct Payments - Phys Dis - North,Grants to Voluntary Bodies,A4E Management Limited,22857.93, 20-Mar-2013
33,Revenue,CCHD,Direct Payments - Phys Dis - North,Grants to Voluntary Bodies,A4E Management Limited,22857.93, 28-Mar-2013
34,Revenue,CCHD,Frenchay Hospital Purchasing,Nursing Homes,Aabletone Nursing Home,527.34, 19-Mar-2013
35,Revenue,CCHD,Home Care - Elderly - South,Other Small Contracts,Abacus Care (Western) Ltd,862.99, 28-Mar-2013
36,Revenue,CCHD,Home Care - Elderly - North,Other Small Contracts,Abacus Care (Western) Ltd,901.45, 28-Mar-2013
37,Revenue,CCHD,Frenchay Hospital Purchasing,Residential Homes,Abbey Grange,1280.92, 19-Mar-2013
38,Revenue,CCHD,Day Care - South,Private & Voluntary Day Care,About Me Care and Support Limited,1369.21, 22-Mar-2013
39,Revenue,CCHD,Day Care - North,Private & Voluntary Day Care,About Me Care and Support Limited,1129.98, 11-Mar-2013
40,Revenue,CCHD,Day Care - South,Private & Voluntary Day Care,About Me Care and Support Limited,1377.09, 08-Mar-2013
41,Revenue,CCHD,Day Care - South,Private & Voluntary Day Care,About Me Care and Support Limited,1937.42, 08-Mar-2013
42,Revenue,CCHD,Training - Adult Services,Training Expenses,Acorn Health & Safety Limited,736, 04-Mar-2013
43,Revenue,CCHD,Day Care - North,Private & Voluntary Day Care,Age UK South Gloucestershire,851.8, 25-Mar-2013
44,Revenue,CCHD,Elderly MH Day Care South,Private & Voluntary Day Care,Age UK South Gloucestershire,851.8, 08-Mar-2013
45,Revenue,CCHD,Day Care - South,Private & Voluntary Day Care,Age UK South Gloucestershire,1087.16, 22-Mar-2013
46,Revenue,CCHD,Elderly MH Day Care South,Private & Voluntary Day Care,Age UK South Gloucestershire,851.8, 26-Mar-2013
47,Revenue,CCHD,Day Care - South,Private & Voluntary Day Care,Age UK South Gloucestershire,2057.95, 22-Mar-2013
48,Revenue,CCHD,Home Care - Elderly - South,Other Small Contracts,Agincare Chippenham,1431.9, 04-Mar-2013
49,Revenue,CCHD,Home Care - Elderly - South,Other Small Contracts,Agincare UK Limited,917.19, 04-Mar-2013
50,Revenue,CCHD,Home Care - Elderly - North,Other Small Contracts,Agincare UK Limited,81.27, 04-Mar-2013
51,Revenue,CCHD,Day Care - South,Private & Voluntary Day Care,Agincare UK Limited,170.28, 04-Mar-2013
52,Revenue,CCHD,Elderly MH Day Care North,Private & Voluntary Day Care,Agincare UK Limited,119.97, 04-Mar-2013
53,Revenue,CCHD,Home Care - Elderly - South,Other Small Contracts,Agincare UK Limited,909.45, 22-Mar-2013
54,Revenue,CCHD,Home Care - Elderly - North,Other Small Contracts,Agincare UK Limited,77.4, 22-Mar-2013
55,Revenue,CCHD,Day Care - South,Private & Voluntary Day Care,Agincare UK Limited,127.71, 22-Mar-2013
56,Revenue,CCHD,Elderly MH Day Care North,Private & Voluntary Day Care,Agincare UK Limited,116.1, 22-Mar-2013
57,Revenue,CCHD,S117 Placements PCT,Residential Homes,Alexandra House,6810.28, 19-Mar-2013
58,Revenue,CCHD,Section 117 Placements MH Younger,Residential Homes,Alexandra House,6340, 19-Mar-2013
59,Revenue,CCHD,Home Care - Elderly - South,Other Small Contracts,Allied Healthcare Group,342.9, 26-Mar-2013
60,Revenue,CCHD,Home Care - Elderly - North,Other Small Contracts,Allied Healthcare Group,910.44, 26-Mar-2013
61,Revenue,CCHD,Day Care - North,Private & Voluntary Day Care,Allied Healthcare Group,45.72, 26-Mar-2013
62,Revenue,CCHD,Home Care - Elderly - South,Other Small Contracts,Allied Healthcare Group,468.63, 26-Mar-2013
63,Revenue,CCHD,Home Care - Elderly - North,Other Small Contracts,Allied Healthcare Group,872.34, 26-Mar-2013
64,Revenue,CCHD,Day Care - North,Private & Voluntary Day Care,Allied Healthcare Group,22.86, 26-Mar-2013
65,Revenue,CCHD,Home Care - Elderly - South,Other Small Contracts,Allied Healthcare Group,468.63, 26-Mar-2013
66,Revenue,CCHD,Home Care - Elderly - North,Other Small Contracts,Allied Healthcare Group,902.82, 26-Mar-2013
67,Revenue,CCHD,Day Care - North,Private & Voluntary Day Care,Allied Healthcare Group,45.72, 26-Mar-2013
68,Revenue,CCHD,Home Care - Elderly - South,Other Small Contracts,Allied Healthcare Group,438.15, 26-Mar-2013
69,Revenue,CCHD,Home Care - Elderly - North,Other Small Contracts,Allied Healthcare Group,883.77, 26-Mar-2013
70,Revenue,CCHD,Day Care - North,Private & Voluntary Day Care,Allied Healthcare Group,45.72, 26-Mar-2013
71,Revenue,CCHD,Home Care - Elderly - South,Other Small Contracts,Allied Healthcare Group,449.58, 26-Mar-2013
72,Revenue,CCHD,Home Care - Elderly - North,Other Small Contracts,Allied Healthcare Group,910.44, 26-Mar-2013
73,Revenue,CCHD,Day Care - North,Private & Voluntary Day Care,Allied Healthcare Group,45.72, 26-Mar-2013
74,Revenue,CCHD,Home Care - Elderly - South,Other Small Contracts,Allied Healthcare Group,476.25, 26-Mar-2013
75,Revenue,CCHD,Home Care - Elderly - North,Other Small Contracts,Allied Healthcare Group,464.82, 26-Mar-2013
76,Revenue,CCHD,Day Care - North,Private & Voluntary Day Care,Allied Healthcare Group,45.72, 26-Mar-2013
77,Revenue,CCHD,Elderly MH Day Care North,Private & Voluntary Day Care,Alzheimer`s Society Bristol,500.64, 01-Mar-2013
78,Revenue,CCHD,Elderly MH Day Care South,Private & Voluntary Day Care,Alzheimer`s Society Bristol,643.68, 01-Mar-2013
79,Revenue,CCHD,Elderly MH Day Care North,Private & Voluntary Day Care,Alzheimer`s Society Bristol,858.24, 01-Mar-2013
80,Revenue,CCHD,Day Care - South,Private & Voluntary Day Care,Alzheimer`s Society Bristol,572.16, 01-Mar-2013
81,Revenue,CCHD,Bed Purchasing - Elderly S117- North,Private & Voluntary Day Care,Alzheimer`s Society Bristol,572.16, 01-Mar-2013
82,Revenue,CCHD,Elderly MH Day Care North,Private & Voluntary Day Care,Alzheimer`s Society Bristol,572.16, 28-Mar-2013
83,Revenue,CCHD,Elderly MH Day Care South,Private & Voluntary Day Care,Alzheimer`s Society Bristol,572.16, 28-Mar-2013
84,Revenue,CCHD,Elderly MH Day Care North,Private & Voluntary Day Care,Alzheimer`s Society Bristol,858.24, 28-Mar-2013
85,Revenue,CCHD,Day Care - South,Private & Voluntary Day Care,Alzheimer`s Society Bristol,572.16, 28-Mar-2013
86,Revenue,CCHD,Bed Purchasing - Elderly S117- North,Private & Voluntary Day Care,Alzheimer`s Society Bristol,572.16, 28-Mar-2013
87,Revenue,CCHD,Elderly MH Day Care South,Private & Voluntary Day Care,Alzheimer`s Society Bristol,572.16, 28-Mar-2013
88,Revenue,CCHD,Frenchay Hospital Purchasing,Residential Homes,Amber Care Ltd,1290.2, 19-Mar-2013
89,Revenue,CCHD,Southmead Hospital Purchasing,Nursing Homes,Ambleside Nusing Ho!,1416.4, 19-Mar-2013
90,Revenue,CCHD,Frenchay Hospital Purchasing,Residential Homes,Anbridge Care Home,828.88, 19-Mar-2013
91,Revenue,CCHD,Tenancy Start Up Scheme,Other Supplies & Services,Andrews Letting & Management Limited,1609, 06-Mar-2013
92,Revenue,CCHD,Bed Purchasing - Elderly - North,Nursing Homes,Annabel House,1391.52, 19-Mar-2013
93,Revenue,CCHD,Bed purchasing - Under 65s PWLD - North,Residential Homes,Ark Care Homes Ltd,10067.92, 19-Mar-2013
94,Revenue,CCHD,Bed and Breakfast,Bed & Breakfast,Ashley Guest Houses Limited,1008, 06-Mar-2013
95,Revenue,CCHD,Bed and Breakfast,Bed & Breakfast,Ashley Guest Houses Limited,1080, 13-Mar-2013
96,Revenue,CCHD,Bed and Breakfast,Bed & Breakfast,Ashley Guest Houses Limited,1008, 20-Mar-2013
97,Revenue,CCHD,Bed and Breakfast,Bed & Breakfast,Ashley Guest Houses Limited,768, 27-Mar-2013
98,Revenue,CCHD,Bed Purchasing - S28A - Over 65- North,Residential Homes,Aspects &  Milestones Trust,3882.32, 19-Mar-2013
99,Revenue,CCHD,Bed Purchasing - Elderly - South,Residential Homes,Aspects &  Milestones Trust,1398.4, 19-Mar-2013
100,Revenue,CCHD,Bed Purchasing - Under 65s PWLD - South,Residential Homes,Aspects &  Milestones Trust,5909.2, 19-Mar-2013
101,Revenue,CCHD,Bed Purchasing - Elderly S117- North,Residential Homes,Aspects &  Milestones Trust,1325.92, 19-Mar-2013
102,Revenue,CCHD,Bed purchasing - Elderly PWLD - North,Residential Homes,Aspects &  Milestones Trust,3554.88, 19-Mar-2013
103,Revenue,CCHD,Bed Purchasing - Under 65s PWLD - South,Residential Homes,Aspects &  Milestones Trust,5227.12, 19-Mar-2013
104,Revenue,CCHD,Bed Purchasing - Under 65s PWLD - South,Residential Homes,Aspects &  Milestones Trust,5683.72, 19-Mar-2013
105,Revenue,CCHD,Bed Purchasing - Under 65s PWLD - South,Nursing Homes,Aspects &  Milestones Trust,2766.32, 19-Mar-2013
106,Revenue,CCHD,Bed Purchasing - Elderly S117- North,Nursing Homes,Aspects &  Milestones Trust,1944, 19-Mar-2013
107,Revenue,CCHD,Bed purchasing - Elderly MH - North,Nursing Homes,Aspects &  Milestones Trust,1430.08, 19-Mar-2013
108,Revenue,CCHD,Section 117 Placements MH Younger,Nursing Homes,Aspects &  Milestones Trust,1600, 19-Mar-2013
109,Revenue,CCHD,Bed purchasing - Elderly PWLD - South,Residential Homes,Aspects &  Milestones Trust,3199.56, 19-Mar-2013
110,Revenue,CCHD,Bed purchasing - Elderly PWLD - South,Residential Homes,Aspects &  Milestones Trust,4357.8, 19-Mar-2013
111,Revenue,CCHD,Bed purchasing -S28A  Under 65 - North,Nursing Homes,Aspects &  Milestones Trust,5800.72, 19-Mar-2013
112,Revenue,CCHD,Bed purchasing -S28A  Under 65 - North,Residential Homes,Aspects &  Milestones Trust,5183.96, 19-Mar-2013
113,Revenue,CCHD,Bed Purchasing - Under 65s PWLD - South,Residential Homes,Aspects &  Milestones Trust,3495.32, 19-Mar-2013
114,Revenue,CCHD,Bed purchasing - S28A Under 65 - South,Residential Homes,Aspects &  Milestones Trust,5327.8, 19-Mar-2013
115,Revenue,CCHD,Bed Purchasing - Elderly MH - South,Residential Homes,Aspects &  Milestones Trust,1283.2, 19-Mar-2013
116,Revenue,CCHD,Bed Purchasing - Under 65s PWLD - South,Residential Homes,Aspects &  Milestones Trust,5721.6, 19-Mar-2013
117,Revenue,CCHD,Bed purchasing - S28A Under 65 - South,Nursing Homes,Aspects &  Milestones Trust,7576.08, 19-Mar-2013
118,Revenue,CCHD,MH Purchasing - Younger,Residential Homes,Aspects &  Milestones Trust,1012.6, 19-Mar-2013
119,Revenue,CCHD,Bed purchasing - Elderly PWLD - South,Residential Homes,Aspects &  Milestones Trust,5276.32, 19-Mar-2013
120,Revenue,CCHD,Bed purchasing - Elderly PWLD - South,Residential Homes,Aspects &  Milestones Trust,3791.92, 19-Mar-2013
121,Revenue,CCHD,Bed purchasing - Elderly PWLD - North,Residential Homes,Aspects &  Milestones Trust,4732.52, 19-Mar-2013
122,Revenue,CCHD,Bed purchasing -S28A  Under 65 - North,Residential Homes,Aspects &  Milestones Trust,5268.68, 19-Mar-2013
123,Revenue,CCHD,Bed purchasing -S28A  Under 65 - North,Residential Homes,Aspects &  Milestones Trust,6125.96, 19-Mar-2013
124,Revenue,CCHD,Bed purchasing -S28A  Under 65 - North,Nursing Homes,Aspects &  Milestones Trust,6213.88, 19-Mar-2013
125,Revenue,CCHD,Bed Purchasing - Under 65s PWLD - South,Residential Homes,Aspects &  Milestones Trust,3699.6, 19-Mar-2013
126,Revenue,CCHD,Bed purchasing -S28A  Under 65 - North,Residential Homes,Aspects &  Milestones Trust,6125.96, 19-Mar-2013
127,Revenue,CCHD,Bed purchasing - S28A Under 65 - South,Residential Homes,Aspects &  Milestones Trust,4856.92, 19-Mar-2013
128,Revenue,CCHD,Bed Purchasing - S28A - Over 65- North,Residential Homes,Aspects &  Milestones Trust,6453.44, 19-Mar-2013
129,Revenue,CCHD,Bed Purchasing - LD S28A- Over 65- South,Residential Homes,Aspects &  Milestones Trust,4015.52, 19-Mar-2013
130,Revenue,CCHD,Bed purchasing -S28A  Under 65 - North,Residential Homes,Aspects &  Milestones Trust,6125.96, 19-Mar-2013
131,Revenue,CCHD,Bed purchasing -S28A  Under 65 - North,Residential Homes,Aspects &  Milestones Trust,6125.96, 19-Mar-2013
132,Revenue,CCHD,Bed Purchasing - LD S28A- Over 65- South,Residential Homes,Aspects &  Milestones Trust,3905.44, 19-Mar-2013
133,Revenue,CCHD,Bed purchasing - S28A Under 65 - South,Residential Homes,Aspects &  Milestones Trust,5052.2, 19-Mar-2013
134,Revenue,CCHD,Bed purchasing - S28A Under 65 - South,Residential Homes,Aspects &  Milestones Trust,6626.28, 19-Mar-2013
135,Revenue,CCHD,Bed purchasing - S28A Under 65 - South,Residential Homes,Aspects &  Milestones Trust,4047.8, 19-Mar-2013
136,Revenue,CCHD,Bed Purchasing - LD S28A- Over 65- South,Residential Homes,Aspects &  Milestones Trust,5824.28, 19-Mar-2013
137,Revenue,CCHD,Bed Purchasing - S28A - Over 65- North,Residential Homes,Aspects &  Milestones Trust,3397.72, 19-Mar-2013
138,Revenue,CCHD,Bed Purchasing - LD S28A- Over 65- South,Residential Homes,Aspects &  Milestones Trust,4760.52, 19-Mar-2013
139,Revenue,CCHD,Bed Purchasing - LD S28A- Over 65- South,Residential Homes,Aspects &  Milestones Trust,4908.2, 19-Mar-2013
140,Revenue,CCHD,Bed Purchasing - LD S28A- Over 65- South,Residential Homes,Aspects &  Milestones Trust,4622.6, 19-Mar-2013
141,Revenue,CCHD,Bed Purchasing - LD S28A- Over 65- South,Residential Homes,Aspects &  Milestones Trust,5383.48, 19-Mar-2013
142,Revenue,CCHD,Bed purchasing -S28A  Under 65 - North,Residential Homes,Aspects &  Milestones Trust,7309.52, 19-Mar-2013
143,Revenue,CCHD,Bed purchasing -S28A  Under 65 - North,Nursing Homes,Aspects &  Milestones Trust,6296.44, 19-Mar-2013
144,Revenue,CCHD,Bed Purchasing - LD S28A- Over 65- South,Residential Homes,Aspects &  Milestones Trust,3492.92, 19-Mar-2013
145,Revenue,CCHD,Bed Purchasing - LD S28A- Over 65- South,Residential Homes,Aspects &  Milestones Trust,3251.48, 19-Mar-2013
146,Revenue,CCHD,Bed Purchasing - S28A - Over 65- North,Residential Homes,Aspects &  Milestones Trust,3308.72, 19-Mar-2013
147,Revenue,CCHD,Bed Purchasing - LD S28A- Over 65- South,Residential Homes,Aspects &  Milestones Trust,4720.44, 19-Mar-2013
148,Revenue,CCHD,Section 117 Placements MH Younger,Residential Homes,Aspects &  Milestones Trust,1324, 19-Mar-2013
149,Revenue,CCHD,Bed purchasing - Elderly MH - North,Residential Homes,Aspects &  Milestones Trust,849.48, 19-Mar-2013
150,Revenue,CCHD,Bed purchasing - S28A Under 65 - South,Residential Homes,Aspects &  Milestones Trust,4790.96, 19-Mar-2013
151,Revenue,CCHD,Bed purchasing - Elderly PWLD - North,Residential Homes,Aspects &  Milestones Trust,5424.04, 19-Mar-2013
152,Revenue,CCHD,Bed purchasing - Under 65s PWLD - North,Residential Homes,Aspects &  Milestones Trust,5511.12, 19-Mar-2013
153,Revenue,CCHD,Bed purchasing - Elderly MH - North,Nursing Homes,Aspects &  Milestones Trust,1096.68, 19-Mar-2013
154,Revenue,CCHD,Bed Purchasing - Under 65s PWLD - South,Residential Homes,Aspects &  Milestones Trust,3849.4, 19-Mar-2013
155,Revenue,CCHD,Bed purchasing -S28A  Under 65 - North,Residential Homes,Aspects &  Milestones Trust,5771.6, 19-Mar-2013
156,Revenue,CCHD,Bed Purchasing - S28A - Over 65- North,Residential Homes,Aspects &  Milestones Trust,3271.48, 19-Mar-2013
157,Revenue,CCHD,Section 117 Placements MH Younger,Residential Homes,Aspects &  Milestones Trust,1716, 19-Mar-2013
158,Revenue,CCHD,MH Purchasing - Younger,Residential Homes,Aspects &  Milestones Trust,1012.6, 19-Mar-2013
159,Revenue,CCHD,Bed Purchasing - S28A - Over 65- North,Residential Homes,Aspects &  Milestones Trust,3511.28, 19-Mar-2013
160,Revenue,CCHD,Bed purchasing - S28A Under 65 - South,Residential Homes,Aspects &  Milestones Trust,3563.92, 19-Mar-2013
161,Revenue,CCHD,Bed purchasing - S28A Under 65 - South,Residential Homes,Aspects &  Milestones Trust,5052.2, 19-Mar-2013
162,Revenue,CCHD,Bed purchasing - S28A Under 65 - South,Residential Homes,Aspects &  Milestones Trust,6024.64, 19-Mar-2013
163,Revenue,CCHD,Bed Purchasing - LD S28A- Over 65- South,Residential Homes,Aspects &  Milestones Trust,5898.16, 19-Mar-2013
164,Revenue,CCHD,Bed Purchasing - LD S28A- Over 65- South,Residential Homes,Aspects &  Milestones Trust,4164.96, 19-Mar-2013
165,Revenue,CCHD,Bed Purchasing - LD S28A- Over 65- South,Residential Homes,Aspects &  Milestones Trust,4720.44, 19-Mar-2013
166,Revenue,CCHD,Bed Purchasing - LD S28A- Over 65- South,Residential Homes,Aspects &  Milestones Trust,5607.6, 19-Mar-2013
167,Revenue,CCHD,Bed purchasing - S28A Under 65 - South,Residential Homes,Aspects &  Milestones Trust,7599.92, 19-Mar-2013
168,Revenue,CCHD,Bed Purchasing - LD S28A- Over 65- South,Residential Homes,Aspects &  Milestones Trust,4902.32, 19-Mar-2013
169,Revenue,CCHD,Bed purchasing -S28A  Under 65 - North,Residential Homes,Aspects &  Milestones Trust,4743.92, 19-Mar-2013
170,Revenue,CCHD,Section 117 Placements MH Younger,Nursing Homes,Aspects &  Milestones Trust,5126.14, 19-Mar-2013
171,Revenue,CCHD,Bed Purchasing - S28A - Over 65- North,Residential Homes,Aspects &  Milestones Trust,4885.4, 19-Mar-2013
172,Revenue,CCHD,Bed Purchasing - S28A - Over 65- North,Residential Homes,Aspects &  Milestones Trust,5473.64, 19-Mar-2013
173,Revenue,CCHD,Bed purchasing - S28A Under 65 - South,Residential Homes,Aspects &  Milestones Trust,4611.44, 19-Mar-2013
174,Revenue,CCHD,Bed Purchasing - S28A - Over 65- North,Residential Homes,Aspects &  Milestones Trust,4885.4, 19-Mar-2013
175,Revenue,CCHD,Bed purchasing - S28A Under 65 - South,Residential Homes,Aspects &  Milestones Trust,4569, 19-Mar-2013
176,Revenue,CCHD,Bed purchasing -S28A  Under 65 - North,Residential Homes,Aspects &  Milestones Trust,6125.96, 19-Mar-2013
177,Revenue,CCHD,Bed Purchasing - S28A - Over 65- North,Residential Homes,Aspects &  Milestones Trust,5621.68, 19-Mar-2013
178,Revenue,CCHD,Bed purchasing -S28A  Under 65 - North,Residential Homes,Aspects &  Milestones Trust,3468.84, 19-Mar-2013
179,Revenue,CCHD,Bed Purchasing - S28A - Over 65- North,Residential Homes,Aspects &  Milestones Trust,3275.16, 19-Mar-2013
180,Revenue,CCHD,Bed Purchasing - S28A - Over 65- North,Residential Homes,Aspects &  Milestones Trust,3412.88, 19-Mar-2013
181,Revenue,CCHD,Bed Purchasing - LD S28A- Over 65- South,Residential Homes,Aspects &  Milestones Trust,3204.2, 19-Mar-2013
182,Revenue,CCHD,Bed Purchasing - Elderly - South,Nursing Homes,Aspects &  Milestones Trust,1456.88, 19-Mar-2013
183,Revenue,CCHD,Bed purchasing - Under 65s PWLD - North,Residential Homes,Aspects &  Milestones Trust,6125.96, 19-Mar-2013
184,Revenue,CCHD,MH Purchasing - Younger,Nursing Homes,Aspects &  Milestones Trust,920.56, 19-Mar-2013
185,Revenue,CCHD,MH Purchasing - Younger,Nursing Homes,Aspects &  Milestones Trust,939.2, 19-Mar-2013
186,Revenue,CCHD,MH Purchasing - Younger,Residential Homes,Aspects &  Milestones Trust,1012.6, 19-Mar-2013
187,Revenue,CCHD,Bed purchasing - Elderly PWLD - South,Residential Homes,Aspects &  Milestones Trust,3399.76, 19-Mar-2013
188,Revenue,CCHD,Bed purchasing - S28A Under 65 - South,Residential Homes,Aspects &  Milestones Trust,7168.2, 19-Mar-2013
189,Revenue,CCHD,Bed purchasing - S28A Under 65 - South,Residential Homes,Aspects &  Milestones Trust,4866.72, 19-Mar-2013
190,Revenue,CCHD,Bed Purchasing - LD S28A- Over 65- South,Residential Homes,Aspects &  Milestones Trust,4628.68, 19-Mar-2013
191,Revenue,CCHD,Bed Purchasing - Under 65s PWLD - South,Residential Homes,Aspects &  Milestones Trust,4173.08, 19-Mar-2013
192,Revenue,CCHD,Bed Purchasing - LD S28A- Over 65- South,Nursing Homes,Aspects &  Milestones Trust,4196.4, 19-Mar-2013
193,Revenue,CCHD,Bed Purchasing - LD S28A- Over 65- South,Residential Homes,Aspects &  Milestones Trust,5898.16, 19-Mar-2013
194,Revenue,CCHD,Bed Purchasing - LD S28A- Over 65- South,Residential Homes,Aspects &  Milestones Trust,3973.08, 19-Mar-2013
195,Revenue,CCHD,Bed Purchasing - LD S28A- Over 65- South,Residential Homes,Aspects &  Milestones Trust,4406.8, 19-Mar-2013
196,Revenue,CCHD,Bed Purchasing - LD S28A- Over 65- South,Residential Homes,Aspects &  Milestones Trust,5155.88, 19-Mar-2013
197,Revenue,CCHD,Bed Purchasing - Elderly MH - South,Residential Homes,Aspects &  Milestones Trust,1206.56, 19-Mar-2013
198,Revenue,CCHD,Bed Purchasing - Elderly S117- North,Nursing Homes,Aspects &  Milestones Trust,1944, 19-Mar-2013
199,Revenue,CCHD,Bed Purchasing - Elderly S117- North,Nursing Homes,Aspects &  Milestones Trust,1944, 19-Mar-2013
200,Revenue,CCHD,Bed Purchasing - Elderly S117- North,Residential Homes,Aspects &  Milestones Trust,1324, 19-Mar-2013
201,Revenue,CCHD,Bed purchasing - Under 65s PWLD - North,Residential Homes,Aspects & Milestones Trust,8841.64, 19-Mar-2013
202,Revenue,CCHD,Bed purchasing - Under 65s PWLD - North,Residential Homes,Aspects 2 Limited,5600.33, 19-Mar-2013
203,Revenue,CCHD,Supporting People Programme,Grants to Voluntary Bodies,Aspects and Milestones Trust,2391.34, 01-Mar-2013
204,Revenue,CCHD,Supporting People Programme,Grants to Voluntary Bodies,Aspects and Milestones Trust,1575.46, 01-Mar-2013
205,Revenue,CCHD,Supporting People Programme,Grants to Voluntary Bodies,Aspects and Milestones Trust,3142.43, 01-Mar-2013
206,Revenue,CCHD,Supporting People Programme,Grants to Voluntary Bodies,Aspects and Milestones Trust,1918.88, 01-Mar-2013
207,Revenue,CCHD,Supported Living - KD,Private & Voluntary Home Care,Aspirations Support Bristol Limited,5111.21, 14-Mar-2013
208,Revenue,CCHD,Supported Living - PS,Private & Voluntary Home Care,Aspirations Support Bristol Limited,3614.04, 08-Mar-2013
209,Revenue,CCHD,Supported Living - PS,Private & Voluntary Home Care,Aspirations Support Bristol Limited,3590.28, 08-Mar-2013
210,Revenue,CCHD,Supported Living - KD,Private & Voluntary Home Care,Aspirations Support Bristol Limited,5369.68, 14-Mar-2013
211,Revenue,CCHD,Supported Living - PS,Private & Voluntary Home Care,Aspirations Support Bristol Limited,4283.02, 08-Mar-2013
212,Revenue,CCHD,Supported Living - PS,Private & Voluntary Home Care,Aspirations Support Bristol Limited,1386.54, 08-Mar-2013
213,Revenue,CCHD,Supported Living - PS,Private & Voluntary Home Care,Aspirations Support Bristol Limited,5348.56, 08-Mar-2013
214,Revenue,CCHD,Purchase of Non-Res Care - PS,Private & Voluntary Day Care,Aspirations Support Bristol Limited,2475.72, 08-Mar-2013
215,Revenue,CCHD,Supported Living - KD,Private & Voluntary Home Care,Aspirations Support Bristol Limited,7418.32, 14-Mar-2013
216,Revenue,CCHD,Supported Living - PS,Private & Voluntary Home Care,Aspirations Support Bristol Limited,534.66, 08-Mar-2013
217,Revenue,CCHD,Bed Purchasing - Under 65s PWLD - South,Residential Homes,Autism Specialised Care Homes,5515.04, 19-Mar-2013
218,Revenue,CCHD,SLA Grants - Support Serv,Grants to Voluntary Bodies,Avon & Wiltshire Mental Health,680, 28-Mar-2013
219,Revenue,CCHD,SLA Grants - Support Serv,Grants to Voluntary Bodies,Avon Valley Railway Company Limited,4960, 28-Mar-2013
220,Revenue,CCHD,Bed purchasing - Elderly MH - North,Residential Homes,Beaufort House,1418.36, 19-Mar-2013
221,Revenue,CCHD,Bed Purchasing - Elderly - North,Residential Homes,Beaufort House,14447.99, 19-Mar-2013
222,Revenue,CCHD,Bed purchasing - Elderly MH - North,Residential Homes,Beaufort House,4677.26, 19-Mar-2013
223,Revenue,CCHD,Bed Purchasing - Elderly - North,Residential Homes,Beaufort House,3778.57, 19-Mar-2013
224,Revenue,CCHD,Frenchay Hospital Purchasing,Residential Homes,Beaufort House,1276.24, 19-Mar-2013
225,Revenue,CCHD,Bed Purchasing - Elderly - North,Residential Homes,Beaufort House,1697.4, 19-Mar-2013
226,Revenue,CCHD,Bed purchasing - Elderly MH - North,Residential Homes,Beaufort House,875.84, 19-Mar-2013
227,Revenue,CCHD,Bed purchasing - Elderly MH - North,Residential Homes,Beaufort House,1011.32, 19-Mar-2013
228,Revenue,CCHD,Bed purchasing - Elderly MH - North,Residential Homes,Beaufort House,1672.68, 19-Mar-2013
229,Revenue,CCHD,Bed Purchasing - Elderly - North,Residential Homes,Beaufort House,1509.12, 19-Mar-2013
230,Revenue,CCHD,Bed purchasing - Elderly PWLD - South,Residential Homes,Bedrock Lodge,2858.6, 19-Mar-2013
231,Revenue,CCHD,Section 117 Placements MH Younger,Residential Homes,Bedrock Lodge,1820.2, 19-Mar-2013
232,Revenue,CCHD,Frenchay Hospital Purchasing,Nursing Homes,Beech House,701.44, 19-Mar-2013
233,Revenue,CCHD,Bed Purchasing - Elderly - North,Nursing Homes,Beech House,693.44, 19-Mar-2013
234,Revenue,CCHD,Southmead Hospital Purchasing,Residential Homes,Beech House,4300, 19-Mar-2013
235,Revenue,CCHD,Southmead Hospital Purchasing,Residential Homes,Beech House,500, 19-Mar-2013
236,Revenue,CCHD,South Glos Users in South Glos Homes,Nursing Homes,Beech House,1413.1, 19-Mar-2013
237,Revenue,CCHD,South Glos Users in South Glos Homes,Nursing Homes,Beech House,2018.71, 19-Mar-2013
238,Revenue,CCHD,South Glos Users in South Glos Homes,Nursing Homes,Beech House,1692.61, 19-Mar-2013
239,Revenue,CCHD,Bed Purchasing - Elderly - North,Nursing Homes,Beech House,4457.57, 19-Mar-2013
240,Revenue,CCHD,Bed Purchasing - Elderly - North,Nursing Homes,Beech House,2080.2, 19-Mar-2013
241,Revenue,CCHD,South Glos Users in South Glos Homes,Nursing Homes,Beech House,745.37, 19-Mar-2013
242,Revenue,CCHD,Frenchay Hospital Purchasing,Nursing Homes,Beech House,1908.57, 19-Mar-2013
243,Revenue,CCHD,Bed Purchasing - Elderly - North,Nursing Homes,Beech House,2202.92, 19-Mar-2013
244,Revenue,CCHD,Bed Purchasing - Elderly - North,Nursing Homes,Blossom Field,1027.6, 19-Mar-2013
245,Revenue,CCHD,Bed purchasing - Elderly MH - North,Nursing Homes,Blossom Field,1391.16, 19-Mar-2013
246,Revenue,CCHD,Bed Purchasing - Elderly - South,Nursing Homes,Blossom Field,1867.2, 19-Mar-2013
247,Revenue,CCHD,Bed Purchasing - Elderly - South,Nursing Homes,Blossom Fields,846.22, 19-Mar-2013
248,Revenue,CCHD,Bed Purchasing - Elderly - North,Nursing Homes,Blossom Fields,5834.76, 19-Mar-2013
249,Revenue,CCHD,Frenchay Hospital Purchasing,Nursing Homes,Blossom Fields,1464.4, 19-Mar-2013
250,Revenue,CCHD,South Glos Users in South Glos Homes,Nursing Homes,Blossom Fields,5202.07, 19-Mar-2013
251,Revenue,CCHD,Bed purchasing - Elderly MH - North,Nursing Homes,Blossom Fields,1536.24, 19-Mar-2013
252,Revenue,CCHD,Training - Adult Services,Training Expenses,Bob Dawson,2250, 12-Mar-2013
253,Revenue,CCHD,Frenchay Hospital Purchasing,Nursing Homes,Bradbury House,1366.76, 19-Mar-2013
254,Revenue,CCHD,Bed purchasing - Under 65s PWLD - North,Residential Homes,Bradbury House,7759.61, 19-Mar-2013
255,Revenue,CCHD,Home Care - Elderly - South,Other Small Contracts,Bradley House Home Care Services,75.06, 11-Mar-2013
256,Revenue,CCHD,Home Care - Elderly - North,Other Small Contracts,Bradley House Home Care Services,1063.35, 11-Mar-2013
257,Revenue,CCHD,Day Care - North,Private & Voluntary Day Care,Bradley House Home Care Services,120.93, 11-Mar-2013
258,Revenue,CCHD,Home Care - Elderly - South,Other Small Contracts,Bradley House Home Care Services,75.06, 22-Mar-2013
259,Revenue,CCHD,Home Care - Elderly - North,Other Small Contracts,Bradley House Home Care Services,1084.2, 22-Mar-2013
260,Revenue,CCHD,Day Care - North,Private & Voluntary Day Care,Bradley House Home Care Services,133.44, 22-Mar-2013
261,Revenue,CCHD,Home Care - Elderly - South,Other Small Contracts,Bradley House Home Care Services,79.23, 25-Mar-2013
262,Revenue,CCHD,Home Care - Elderly - North,Other Small Contracts,Bradley House Home Care Services,1075.86, 25-Mar-2013
263,Revenue,CCHD,Day Care - North,Private & Voluntary Day Care,Bradley House Home Care Services,133.44, 25-Mar-2013
264,Revenue,CCHD,Home Care - Elderly - South,Other Small Contracts,Bradley House Home Care Services,70.89, 07-Mar-2013
265,Revenue,CCHD,Home Care - Elderly - North,Other Small Contracts,Bradley House Home Care Services,925.74, 07-Mar-2013
266,Revenue,CCHD,Day Care - North,Private & Voluntary Day Care,Bradley House Home Care Services,129.27, 07-Mar-2013
267,Revenue,CCHD,SLA Grants - Support Serv,Grants to Voluntary Bodies,Bradley Stoke Radio Ltd,5000, 25-Mar-2013
268,Revenue,CCHD,Woodleaze,"Provisions (Food, etc)",Brake Bros,595.38, 12-Mar-2013
269,Revenue,CCHD,Alexandra Way,"Provisions (Food, etc)",Brake Bros,523.52, 18-Mar-2013
270,Revenue,CCHD,Woodleaze,"Provisions (Food, etc)",Brake Bros,714.76, 19-Mar-2013
271,Revenue,CCHD,Alexandra Way,"Provisions (Food, etc)",Brake Bros,509.05, 25-Mar-2013
272,Revenue,CCHD,Bed Purchasing - Elderly - North,Residential Homes,Bridge House Care Home,1227.08, 19-Mar-2013
273,Revenue,CCHD,Bed Purchasing - Elderly - North,Residential Homes,Bridge House Care Home,6373.04, 19-Mar-2013
274,Revenue,CCHD,Bed Purchasing - Elderly - North,Residential Homes,Bridge House Care Home,1239.2, 19-Mar-2013
275,Revenue,CCHD,Bed Purchasing - Elderly - North,Residential Homes,Bridge House Care Home,1503.04, 19-Mar-2013
276,Revenue,CCHD,Bed Purchasing - Elderly - North,Residential Homes,Bridge House Care Home,1074, 19-Mar-2013
277,Revenue,CCHD,Bed Purchasing - Elderly - North,Residential Homes,Bridge House Care Home,1322.96, 19-Mar-2013
278,Revenue,CCHD,Bed Purchasing - Elderly MH - South,Residential Homes,Brightbow,2529, 19-Mar-2013
279,Revenue,CCHD,MH Purchasing - Younger,Residential Homes,Brightbow,922.36, 19-Mar-2013
280,Revenue,CCHD,Supported Living - KD,Private & Voluntary Home Care,Bristol Houses UK Limited,1290.56, 28-Mar-2013
281,Revenue,CCHD,Supported Living - KD,Private & Voluntary Day Care,Bristol Houses UK Limited,1046.4, 28-Mar-2013
282,Revenue,CCHD,Day Care - North,Private & Voluntary Day Care,Bristol Houses UK Limited,1534.72, 28-Mar-2013
283,Revenue,CCHD,Supported Living - KD,Private & Voluntary Day Care,Bristol Houses UK Limited,941.76, 28-Mar-2013
284,Revenue,CCHD,Supported Living - KD,Private & Voluntary Home Care,Bristol Houses UK Limited,960, 28-Mar-2013
285,Revenue,CCHD,Younger MH non-res purchasing,Private & Voluntary Day Care,Bristol Houses UK Limited,720, 28-Mar-2013
286,Revenue,CCHD,Supported Living - KD,Private & Voluntary Home Care,Bristol Houses UK Limited,600, 28-Mar-2013
287,Revenue,CCHD,Day Care - North,Private & Voluntary Day Care,Bristol Houses UK Limited,2371.84, 28-Mar-2013
288,Revenue,CCHD,Supported Living - KD,Private & Voluntary Home Care,Bristol Houses UK Limited,599.98, 28-Mar-2013
289,Revenue,CCHD,Bed and Breakfast,Bed & Breakfast,Bristol Housing & Support Limited,1848, 04-Mar-2013
290,Revenue,CCHD,Bed and Breakfast,Bed & Breakfast,Bristol Housing & Support Limited,1918, 26-Mar-2013
291,Revenue,CCHD,Bed and Breakfast,Bed & Breakfast,Bristol Housing & Support Limited,2014, 26-Mar-2013
292,Revenue,CCHD,User Involvement,Other Supplies & Services,Bristol Playbus,570, 27-Mar-2013
293,Revenue,CCHD,SLA Grants - Support Serv,Grants to Voluntary Bodies,Bristol Playbus,3426, 18-Mar-2013
294,Revenue,CCHD,Supporting People Programme,Grants to Voluntary Bodies,Bromford Housing Group,13916.67, 01-Mar-2013
295,Revenue,CCHD,Bed Purchasing - Elderly - North,Residential Homes,Brook Lane Residential Home,877.36, 19-Mar-2013
296,Revenue,CCHD,Home Care - Elderly - North,Private & Voluntary Home Care,Brunelcare,6720, 04-Mar-2013
297,Revenue,CCHD,Home Care - Elderly - North,Private & Voluntary Home Care,Brunelcare,6720, 11-Mar-2013
298,Revenue,CCHD,Home Care - Elderly - North,Private & Voluntary Home Care,Brunelcare,6720, 18-Mar-2013
299,Revenue,CCHD,Home Care - Elderly - North,Private & Voluntary Home Care,Brunelcare,6720, 25-Mar-2013
300,Revenue,CCHD,Home Care - Elderly - North,Private & Voluntary Home Care,Brunelcare,15809.01, 28-Mar-2013
301,Revenue,CCHD,Information Systems - Software,Computer Equipment - Purchase,BT Global Services Solutions,978.04, 11-Mar-2013
302,Revenue,CCHD,Woodleaze,Cleaning & Domestic Services,Bunzl Cleaning & Hygiene Supplies,818.71, 19-Mar-2013
303,Revenue,CCHD,Frenchay Hospital Purchasing,Nursing Homes,BUPA Care Service,1295.2, 28-Mar-2013
304,Revenue,CCHD,Bed purchasing - Phys Dis - North,Nursing Homes,Bupa Care Services  Bridge House,5795.92, 19-Mar-2013
305,Revenue,CCHD,South Glos Users in all other LA Homes,Nursing Homes,Bupa Care Services  Bridge House,598.4, 19-Mar-2013
306,Revenue,CCHD,Bed purchasing - Elderly MH - North,Residential Homes,Bupa Care Services  Bridge House,1880, 19-Mar-2013
307,Revenue,CCHD,Supported Living - PS,Private & Voluntary Home Care,Camphill Communities Thornbury Limited,1736.4, 08-Mar-2013
308,Revenue,CCHD,Supported Living - KD,Private & Voluntary Home Care,Camphill Communities Thornbury Limited,2475, 06-Mar-2013
309,Revenue,CCHD,Supported Living - KD,Private & Voluntary Home Care,Camphill Communities Thornbury Limited,2572.8, 06-Mar-2013
310,Revenue,CCHD,Supported Living - KD,Private & Voluntary Home Care,Camphill Communities Thornbury Limited,1804.92, 08-Mar-2013
311,Revenue,CCHD,Supported Living - KD,Private & Voluntary Home Care,Camphill Communities Thornbury Limited,2269.12, 13-Mar-2013
312,Revenue,CCHD,Supported Living - KD,Private & Voluntary Home Care,Camphill Communities Thornbury Limited,2030.28, 13-Mar-2013
313,Revenue,CCHD,Supported Living - KD,Private & Voluntary Home Care,Camphill Communities Thornbury Limited,1997.32, 13-Mar-2013
314,Revenue,CCHD,Supported Living - KD,Private & Voluntary Home Care,Camphill Communities Thornbury Limited,2112.64, 20-Mar-2013
315,Revenue,CCHD,Supported Living - KD,Private & Voluntary Home Care,Camphill Communities Thornbury Limited,1997.32, 21-Mar-2013
316,Revenue,CCHD,Supported Living - KD,Private & Voluntary Home Care,Camphill Communities Thornbury Limited,2216.04, 21-Mar-2013
317,Revenue,CCHD,Supported Living - KD,Private & Voluntary Home Care,Camphill Communities Thornbury Limited,1775.92, 21-Mar-2013
318,Revenue,CCHD,Supported Living - KD,Private & Voluntary Home Care,Camphill Communities Thornbury Limited,2086.8, 21-Mar-2013
319,Revenue,CCHD,Bed purchasing - Under 65s PWLD - North,Residential Homes,Camphill Devon Community,3185.24, 19-Mar-2013
320,Revenue,CCHD,Bed purchasing - Under 65s PWLD - North,Residential Homes,Camphill Devon Community,2234.08, 19-Mar-2013
321,Revenue,CCHD,Home Care - Elderly - South,Other Small Contracts,Care 1st Homecare,3146.85, 04-Mar-2013
322,Revenue,CCHD,Home Care - Elderly - North,Other Small Contracts,Care 1st Homecare,4750.65, 04-Mar-2013
323,Revenue,CCHD,Day Care - South,Private & Voluntary Day Care,Care 1st Homecare,113.4, 04-Mar-2013
324,Revenue,CCHD,Day Care - North,Private & Voluntary Day Care,Care 1st Homecare,113.4, 04-Mar-2013
325,Revenue,CCHD,Home Care - LD Under 65 - South,Private & Voluntary Home Care,Care 1st Homecare,113.4, 04-Mar-2013
326,Revenue,CCHD,Home Care - Elderly - South,Other Small Contracts,Care 1st Homecare,3349.35, 04-Mar-2013
327,Revenue,CCHD,Home Care - Elderly - North,Other Small Contracts,Care 1st Homecare,5604.99, 04-Mar-2013
328,Revenue,CCHD,Day Care - South,Private & Voluntary Day Care,Care 1st Homecare,113.4, 04-Mar-2013
329,Revenue,CCHD,Day Care - North,Private & Voluntary Day Care,Care 1st Homecare,48.6, 04-Mar-2013
330,Revenue,CCHD,Home Care - LD Under 65 - South,Private & Voluntary Home Care,Care 1st Homecare,48.6, 04-Mar-2013
331,Revenue,CCHD,Home Care - Elderly - South,Other Small Contracts,Care 1st Homecare,2778.3, 04-Mar-2013
332,Revenue,CCHD,Home Care - Elderly - North,Other Small Contracts,Care 1st Homecare,5896.59, 04-Mar-2013
333,Revenue,CCHD,Day Care - South,Private & Voluntary Day Care,Care 1st Homecare,113.4, 04-Mar-2013
334,Revenue,CCHD,Day Care - North,Private & Voluntary Day Care,Care 1st Homecare,48.6, 04-Mar-2013
335,Revenue,CCHD,Home Care - LD Under 65 - South,Private & Voluntary Home Care,Care 1st Homecare,52.65, 04-Mar-2013
336,Revenue,CCHD,Home Care - Elderly - South,Other Small Contracts,Care 1st Homecare,2357.1, 18-Mar-2013
337,Revenue,CCHD,Home Care - Elderly - North,Other Small Contracts,Care 1st Homecare,5981.64, 18-Mar-2013
338,Revenue,CCHD,Day Care - South,Private & Voluntary Day Care,Care 1st Homecare,113.4, 18-Mar-2013
339,Revenue,CCHD,Day Care - North,Private & Voluntary Day Care,Care 1st Homecare,48.6, 18-Mar-2013
340,Revenue,CCHD,Home Care - LD Under 65 - South,Private & Voluntary Home Care,Care 1st Homecare,129.6, 18-Mar-2013
341,Revenue,CCHD,Home Care - Elderly - South,Other Small Contracts,Care 1st Homecare,2377.35, 18-Mar-2013
342,Revenue,CCHD,Home Care - Elderly - North,Other Small Contracts,Care 1st Homecare,6115.29, 18-Mar-2013
343,Revenue,CCHD,Day Care - South,Private & Voluntary Day Care,Care 1st Homecare,113.4, 18-Mar-2013
344,Revenue,CCHD,Day Care - North,Private & Voluntary Day Care,Care 1st Homecare,44.55, 18-Mar-2013
345,Revenue,CCHD,Home Care - LD Under 65 - South,Private & Voluntary Home Care,Care 1st Homecare,64.8, 18-Mar-2013
346,Revenue,CCHD,Home Care - Elderly - South,Other Small Contracts,Care 1st Homecare,2555.55, 18-Mar-2013
347,Revenue,CCHD,Home Care - Elderly - North,Other Small Contracts,Care 1st Homecare,6163.89, 18-Mar-2013
348,Revenue,CCHD,Day Care - South,Private & Voluntary Day Care,Care 1st Homecare,117.45, 18-Mar-2013
349,Revenue,CCHD,Day Care - North,Private & Voluntary Day Care,Care 1st Homecare,52.65, 18-Mar-2013
350,Revenue,CCHD,Home Care - LD Under 65 - South,Private & Voluntary Home Care,Care 1st Homecare,93.15, 18-Mar-2013
351,Revenue,CCHD,Home Care - Elderly - South,Other Small Contracts,Care 1st Homecare,2357.1, 25-Mar-2013
352,Revenue,CCHD,Home Care - Elderly - North,Other Small Contracts,Care 1st Homecare,5847.99, 25-Mar-2013
353,Revenue,CCHD,Day Care - South,Private & Voluntary Day Care,Care 1st Homecare,117.45, 25-Mar-2013
354,Revenue,CCHD,Day Care - North,Private & Voluntary Day Care,Care 1st Homecare,48.6, 25-Mar-2013
355,Revenue,CCHD,Home Care - LD Under 65 - South,Private & Voluntary Home Care,Care 1st Homecare,64.8, 25-Mar-2013
356,Revenue,CCHD,Bed Purchasing - PWLD S 117 Placements,Residential Homes,Care Community Ltd,7464.72, 19-Mar-2013
357,Revenue,CCHD,Supported Living - KD,Private & Voluntary Home Care,Care Horizons Limited,5322.68, 07-Mar-2013
358,Revenue,CCHD,Supported Living - KD,Private & Voluntary Home Care,Care Horizons Limited,4688.27, 27-Mar-2013
359,Revenue,CCHD,Purchase of Non-Res Care - KD,Private & Voluntary Day Care,Care Horizons Limited,1557.91, 27-Mar-2013
360,Revenue,CCHD,Purchase of Non-Res Care - KD,Private & Voluntary Day Care,Care Horizons Limited,1240.85, 25-Mar-2013
361,Revenue,CCHD,Supported Living - PS,Private & Voluntary Home Care,Care Horizons Limited,1894.71, 20-Mar-2013
362,Revenue,CCHD,Home Care - Elderly - North,Other Small Contracts,Care Horizons Limited,2865.04, 13-Mar-2013
363,Revenue,CCHD,Day Care - South,Private & Voluntary Day Care,Care Horizons Limited,360.22, 13-Mar-2013
364,Revenue,CCHD,Home Care - Elderly - North,Other Small Contracts,Care Horizons Limited,2941.17, 13-Mar-2013
365,Revenue,CCHD,Day Care - South,Private & Voluntary Day Care,Care Horizons Limited,347.21, 13-Mar-2013
366,Revenue,CCHD,Home Care - Elderly - North,Other Small Contracts,Care Horizons Limited,2965.17, 13-Mar-2013
367,Revenue,CCHD,Day Care - South,Private & Voluntary Day Care,Care Horizons Limited,351.55, 13-Mar-2013
368,Revenue,CCHD,Home Care - Elderly - North,Other Small Contracts,Care Horizons Limited,2941.17, 13-Mar-2013
369,Revenue,CCHD,Day Care - South,Private & Voluntary Day Care,Care Horizons Limited,351.55, 13-Mar-2013
370,Revenue,CCHD,Electronic Home Care Monitoring,Other Supplies & Services,Care Monitoring 2000 Limited,5145.55, 25-Mar-2013
371,Revenue,CCHD,Home Care - General,Other Supplies & Services,Care Monitoring 2000 Limited,6874.5, 25-Mar-2013
372,Revenue,CCHD,Home Care - Elderly - South,Other Small Contracts,Care UK,7815.72, 20-Mar-2013
373,Revenue,CCHD,Home Care - Elderly - North,Other Small Contracts,Care UK,3094.2, 20-Mar-2013
374,Revenue,CCHD,Day Care - South,Private & Voluntary Day Care,Care UK,317.06, 20-Mar-2013
375,Revenue,CCHD,Day Care - North,Private & Voluntary Day Care,Care UK,733.44, 20-Mar-2013
376,Revenue,CCHD,Home care - Elderly MH - North,Other Small Contracts,Care UK,573, 20-Mar-2013
377,Revenue,CCHD,Elderly MH Day Care North,Private & Voluntary Day Care,Care UK,191, 20-Mar-2013
378,Revenue,CCHD,Home Care - Elderly - South,Other Small Contracts,Care UK,8106.04, 20-Mar-2013
379,Revenue,CCHD,Home Care - Elderly - North,Other Small Contracts,Care UK,3113.3, 20-Mar-2013
380,Revenue,CCHD,Day Care - South,Private & Voluntary Day Care,Care UK,347.62, 20-Mar-2013
381,Revenue,CCHD,Day Care - North,Private & Voluntary Day Care,Care UK,706.7, 20-Mar-2013
382,Revenue,CCHD,Home care - Elderly MH - North,Other Small Contracts,Care UK,584.46, 20-Mar-2013
383,Revenue,CCHD,Elderly MH Day Care North,Private & Voluntary Day Care,Care UK,141.34, 20-Mar-2013
384,Revenue,CCHD,Home Care - Elderly - South,Other Small Contracts,Care UK,7445.18, 21-Mar-2013
385,Revenue,CCHD,Home Care - Elderly - North,Other Small Contracts,Care UK,3247, 21-Mar-2013
386,Revenue,CCHD,Day Care - South,Private & Voluntary Day Care,Care UK,347.62, 21-Mar-2013
387,Revenue,CCHD,Day Care - North,Private & Voluntary Day Care,Care UK,488.96, 21-Mar-2013
388,Revenue,CCHD,Home care - Elderly MH - North,Other Small Contracts,Care UK,576.82, 21-Mar-2013
389,Revenue,CCHD,Elderly MH Day Care North,Private & Voluntary Day Care,Care UK,141.34, 21-Mar-2013
390,Revenue,CCHD,Home Care - Elderly - South,Other Small Contracts,Care UK,7124.3, 22-Mar-2013
391,Revenue,CCHD,Home Care - Elderly - North,Other Small Contracts,Care UK,3197.34, 22-Mar-2013
392,Revenue,CCHD,Day Care - South,Private & Voluntary Day Care,Care UK,347.62, 22-Mar-2013
393,Revenue,CCHD,Day Care - North,Private & Voluntary Day Care,Care UK,672.32, 22-Mar-2013
394,Revenue,CCHD,Home care - Elderly MH - North,Other Small Contracts,Care UK,569.18, 22-Mar-2013
395,Revenue,CCHD,Elderly MH Day Care North,Private & Voluntary Day Care,Care UK,137.52, 22-Mar-2013
396,Revenue,CCHD,Home Care - Elderly - South,Other Small Contracts,Carewatch (Bristol),799.9, 25-Mar-2013
397,Revenue,CCHD,Home Care - Elderly - North,Other Small Contracts,Carewatch (Bristol),1629.27, 25-Mar-2013
398,Revenue,CCHD,Home Care - Elderly - South,Other Small Contracts,Carewatch (Bristol),766.22, 25-Mar-2013
399,Revenue,CCHD,Home Care - Elderly - North,Other Small Contracts,Carewatch (Bristol),1612.43, 25-Mar-2013
400,Revenue,CCHD,Home Care - Elderly - South,Other Small Contracts,Carewatch (Bristol),774.64, 25-Mar-2013
401,Revenue,CCHD,Home Care - Elderly - North,Other Small Contracts,Carewatch (Bristol),1162.4, 25-Mar-2013
402,Revenue,CCHD,Home Care - Elderly - South,Other Small Contracts,Carewatch (Bristol),719.91, 25-Mar-2013
403,Revenue,CCHD,Home Care - Elderly - North,Other Small Contracts,Carewatch (Bristol),1587.17, 25-Mar-2013
404,Revenue,CCHD,Day Care - North,Private & Voluntary Day Care,Carewatch (Bristol),79.99, 25-Mar-2013
405,Revenue,CCHD,Home Care - Elderly - South,Other Small Contracts,Cash Friday at Lloyds TSB,100.36, 05-Mar-2013
406,Revenue,CCHD,Home Care - Elderly - North,Other Small Contracts,Cash Friday at Lloyds TSB,984.3, 05-Mar-2013
407,Revenue,CCHD,Day Care - North,Private & Voluntary Day Care,Cash Friday at Lloyds TSB,27.02, 05-Mar-2013
408,Revenue,CCHD,Home Care - Elderly - South,Other Small Contracts,Cash Friday at Lloyds TSB,100.36, 04-Mar-2013
409,Revenue,CCHD,Home Care - Elderly - North,Other Small Contracts,Cash Friday at Lloyds TSB,999.74, 04-Mar-2013
410,Revenue,CCHD,Day Care - North,Private & Voluntary Day Care,Cash Friday at Lloyds TSB,27.02, 04-Mar-2013
411,Revenue,CCHD,Home Care - Elderly - South,Other Small Contracts,Cash Friday at Lloyds TSB,100.36, 05-Mar-2013
412,Revenue,CCHD,Home Care - Elderly - North,Other Small Contracts,Cash Friday at Lloyds TSB,941.84, 05-Mar-2013
413,Revenue,CCHD,Home Care - Elderly - South,Other Small Contracts,Cash Friday at Lloyds TSB,100.36, 05-Mar-2013
414,Revenue,CCHD,Home Care - Elderly - North,Other Small Contracts,Cash Friday at Lloyds TSB,910.96, 05-Mar-2013
415,Revenue,CCHD,Home Care - Elderly - South,Other Small Contracts,Cash Friday at Lloyds TSB,100.36, 13-Mar-2013
416,Revenue,CCHD,Home Care - Elderly - North,Other Small Contracts,Cash Friday at Lloyds TSB,895.52, 13-Mar-2013
417,Revenue,CCHD,Home Care - Elderly - South,Other Small Contracts,Cash Friday at Lloyds TSB,96.5, 22-Mar-2013
418,Revenue,CCHD,Home Care - Elderly - North,Other Small Contracts,Cash Friday at Lloyds TSB,895.52, 22-Mar-2013
419,Revenue,CCHD,Home Care - Elderly - South,Other Small Contracts,Cash Friday at Lloyds TSB,100.36, 27-Mar-2013
420,Revenue,CCHD,Home Care - Elderly - North,Other Small Contracts,Cash Friday at Lloyds TSB,953.42, 27-Mar-2013
421,Revenue,CCHD,Frenchay Hospital Purchasing,Nursing Homes,Cedar Care Homes Ltd,1041.52, 19-Mar-2013
422,Revenue,CCHD,Frenchay Hospital Purchasing,Residential Homes,Centenary Care Homes Ltd,1239.2, 19-Mar-2013
423,Revenue,CCHD,Bed Purchasing - Elderly - South,Residential Homes,Cepen Lodge Care Home,2155.6, 19-Mar-2013
424,Revenue,CCHD,Southmead Hospital Purchasing,Residential Homes,Charlton House Residential Home,1372.96, 19-Mar-2013
425,Revenue,CCHD,Home Care - Elderly - South,Other Small Contracts,Cherish Able Care Limited,3308.36, 01-Mar-2013
426,Revenue,CCHD,Home care - Elderly MH - North,Other Small Contracts,Cherish Able Care Limited,57.68, 01-Mar-2013
427,Revenue,CCHD,Home Care - Elderly - South,Other Small Contracts,Cherish Able Care Limited,3258.92, 08-Mar-2013
428,Revenue,CCHD,Home care - Elderly MH - North,Other Small Contracts,Cherish Able Care Limited,57.68, 08-Mar-2013
429,Revenue,CCHD,Home Care - Elderly - South,Other Small Contracts,Cherish Able Care Limited,3666.8, 22-Mar-2013
430,Revenue,CCHD,Home care - Elderly MH - North,Other Small Contracts,Cherish Able Care Limited,57.68, 22-Mar-2013
431,Revenue,CCHD,Home Care - Elderly - South,Other Small Contracts,Cherish Able Care Limited,3679.44, 22-Mar-2013
432,Revenue,CCHD,Home care - Elderly MH - North,Other Small Contracts,Cherish Able Care Limited,61.8, 22-Mar-2013
433,Revenue,CCHD,Home Care - Elderly - South,Other Small Contracts,Cherish Able Care Limited,3694.5, 28-Mar-2013
434,Revenue,CCHD,Home care - Elderly MH - North,Other Small Contracts,Cherish Able Care Limited,57.68, 28-Mar-2013
435,Revenue,CCHD,Bed purchasing -S28A  Under 65 - North,Residential Homes,Chescombe Lodge,8489.04, 19-Mar-2013
436,Revenue,CCHD,Bed Purchasing - Under 65s PWLD - South,Residential Homes,Chosen Court,6846.32, 19-Mar-2013
437,Revenue,CCHD,Bed Purchasing - PWLD S 117 Placements,Residential Homes,Chosen Court,10082.4, 19-Mar-2013
438,Revenue,CCHD,Bed Purchasing - Under 65s PWLD - South,Residential Homes,Chosen Court,5495.84, 19-Mar-2013
439,Revenue,CCHD,Bed purchasing - Under 65s PWLD - North,Residential Homes,Church House,10256, 19-Mar-2013
440,Revenue,CCHD,Bed purchasing - Under 65s PWLD - North,Residential Homes,Church House,5761.36, 19-Mar-2013
441,Revenue,CCHD,Housing Needs,Computer Services,Civica UK Limited,761.41, 15-Mar-2013
442,Revenue,CCHD,Community Support - MH Under 6,Preventative Assistance,Cleaning Company Bristol Ltd,647, 22-Mar-2013
443,Revenue,CCHD,Bed Purchasing - Elderly - South,Residential Homes,Cleeve Lodge,1597.04, 19-Mar-2013
444,Revenue,CCHD,Bed Purchasing - Elderly - North,Residential Homes,Cleeve Lodge,1009.44, 19-Mar-2013
445,Revenue,CCHD,Southmead Hospital Purchasing,Residential Homes,Cleeve Lodge,1425.36, 19-Mar-2013
446,Revenue,CCHD,Bed Purchasing - Elderly - South,Residential Homes,Cleeve Lodge,1763.2, 19-Mar-2013
447,Revenue,CCHD,Bed Purchasing - Elderly - South,Residential Homes,Cleeve Lodge,1750.68, 19-Mar-2013
448,Revenue,CCHD,Bed Purchasing - Elderly - South,Residential Homes,Cleeve Lodge,591.05, 19-Mar-2013
449,Revenue,CCHD,Bed Purchasing - Elderly - South,Residential Homes,Cleeve Lodge,2236.96, 19-Mar-2013
450,Revenue,CCHD,Bed Purchasing - Elderly - South,Residential Homes,Cleeve Lodge,1767.96, 19-Mar-2013
451,Revenue,CCHD,Bed Purchasing - Elderly - South,Residential Homes,Cleeve Lodge,1469.84, 19-Mar-2013
452,Revenue,CCHD,Frenchay Hospital Purchasing,Residential Homes,Collingwood Residential Home,1027.68, 19-Mar-2013
453,Revenue,CCHD,Bed Purchasing - Elderly - South,Residential Homes,Collingwood Residential Home,1284.12, 19-Mar-2013
454,Revenue,CCHD,Bed Purchasing - Elderly - South,Residential Homes,Collingwood Residential Home,3645.41, 19-Mar-2013
455,Revenue,CCHD,Frenchay Hospital Purchasing,Residential Homes,Collingwood Residential Home,516.94, 19-Mar-2013
456,Revenue,CCHD,Bed Purchasing - Elderly - South,Residential Homes,Collingwood Residential Home,1417.96, 19-Mar-2013
457,Revenue,CCHD,Bed Purchasing - Elderly - South,Residential Homes,Collingwood Residential Home,1058.6, 19-Mar-2013
458,Revenue,CCHD,Frenchay Hospital Purchasing,Residential Homes,Collingwood Residential Home,618.15, 19-Mar-2013
459,Revenue,CCHD,Bed Purchasing - Elderly - South,Residential Homes,Collingwood Residential Home,1323.64, 19-Mar-2013
460,Revenue,CCHD,Bed Purchasing - Elderly MH - South,Residential Homes,Collingwood Residential Home,1298.4, 19-Mar-2013
461,Revenue,CCHD,Bed Purchasing - Elderly - South,Residential Homes,Collingwood Residential Home,1373.76, 19-Mar-2013
462,Revenue,CCHD,Bed Purchasing - Elderly - South,Residential Homes,Collingwood Residential Home,1245.88, 19-Mar-2013
463,Revenue,CCHD,Bed Purchasing - Elderly - South,Residential Homes,Collingwood Residential Home,1396.72, 19-Mar-2013
464,Revenue,CCHD,User Involvement,Other Supplies & Services,Community Catalysts C.I.C,4532.5, 28-Mar-2013
465,Revenue,CCHD,Tenancy Start Up Scheme,Other Supplies & Services,Connells,1550, 08-Mar-2013
466,Revenue,CCHD,Bed and Breakfast,Bed & Breakfast,Connolly & Callaghan Limited,546, 04-Mar-2013
467,Revenue,CCHD,Bed and Breakfast,Bed & Breakfast,Connolly & Callaghan Limited,441, 04-Mar-2013
468,Revenue,CCHD,Bed and Breakfast,Bed & Breakfast,Connolly & Callaghan Limited,441, 04-Mar-2013
469,Revenue,CCHD,Bed and Breakfast,Bed & Breakfast,Connolly & Callaghan Limited,476, 04-Mar-2013
470,Revenue,CCHD,Bed and Breakfast,Bed & Breakfast,Connolly & Callaghan Limited,441, 04-Mar-2013
471,Revenue,CCHD,Bed and Breakfast,Bed & Breakfast,Connolly & Callaghan Limited,546, 15-Mar-2013
472,Revenue,CCHD,Bed and Breakfast,Bed & Breakfast,Connolly & Callaghan Limited,441, 15-Mar-2013
473,Revenue,CCHD,Bed and Breakfast,Bed & Breakfast,Connolly & Callaghan Limited,441, 15-Mar-2013
474,Revenue,CCHD,Bed and Breakfast,Bed & Breakfast,Connolly & Callaghan Limited,476, 15-Mar-2013
475,Revenue,CCHD,Bed and Breakfast,Bed & Breakfast,Connolly & Callaghan Limited,441, 15-Mar-2013
476,Revenue,CCHD,Bed and Breakfast,Bed & Breakfast,Connolly & Callaghan Limited,546, 15-Mar-2013
477,Revenue,CCHD,Bed and Breakfast,Bed & Breakfast,Connolly & Callaghan Limited,441, 15-Mar-2013
478,Revenue,CCHD,Bed and Breakfast,Bed & Breakfast,Connolly & Callaghan Limited,476, 15-Mar-2013
479,Revenue,CCHD,Bed and Breakfast,Bed & Breakfast,Connolly & Callaghan Limited,441, 15-Mar-2013
480,Revenue,CCHD,Frenchay Hospital Purchasing,Residential Homes,Coombs Wood House,1932, 19-Mar-2013
481,Revenue,CCHD,Bed purchasing -S28A  Under 65 - North,Residential Homes,Cream Ii Ltd  Longrun House,7845.84, 19-Mar-2013
482,Revenue,CCHD,Bed Purchasing - Under 65s PWLD - South,Residential Homes,Cream Ii Ltd  Longrun House,5493.72, 19-Mar-2013
483,Revenue,CCHD,SLA Grants - Support Serv,Grants to Voluntary Bodies,Creativity Works,5000, 28-Mar-2013
484,Revenue,CCHD,Bed purchasing -S28A  Under 65 - North,Residential Homes,Creedy Court,9074.84, 19-Mar-2013
485,Revenue,CCHD,Bed Purchasing - S28A - Over 65- North,Residential Homes,Creedy Court,7548.92, 19-Mar-2013
486,Revenue,CCHD,Brokerage and Information Service,Grants to Voluntary Bodies,D H I,9210.08, 27-Mar-2013
487,Revenue,CCHD,Purchase of Non-Res Care - PS,Private & Voluntary Day Care,Daneswood,5525.3, 05-Mar-2013
488,Revenue,CCHD,Bed Purchasing - Under 65s PWLD - South,Residential Homes,Daneswood,10754.88, 19-Mar-2013
489,Revenue,CCHD,Bed purchasing - Under 65s PWLD - North,Residential Homes,Daneswood,8901.24, 19-Mar-2013
490,Revenue,CCHD,Learning Difficulties PSL,Other Supplies & Services,Individual,2016.44, 22-Mar-2013
491,Revenue,CCHD,Training - Adult Services,Training Expenses,Denise Hope,750, 15-Mar-2013
492,Revenue,CCHD,Purchase of Non-Res Care - KD,Private & Voluntary Day Care,Design 4 Life Ltd,1472.24, 25-Mar-2013
493,Revenue,CCHD,Purchase of Non-Res Care - KD,Private & Voluntary Day Care,Design 4 Life Ltd,1537.2, 25-Mar-2013
494,Revenue,CCHD,Purchase of Non-Res Care - KD,Private & Voluntary Day Care,Design 4 Life Ltd,1024.8, 25-Mar-2013
495,Revenue,CCHD,Bed Purchasing - Under 65s PWLD - South,Residential Homes,Devon & Cornwall Autistic Community Trus,8588.04, 19-Mar-2013
496,Revenue,CCHD,SLA Grants - Support Serv,Grants to Voluntary Bodies,Dhek Bhal,2000, 28-Mar-2013
497,Revenue,CCHD,Day Care - South,Private & Voluntary Day Care,Dhek Bhal,1044.5, 11-Mar-2013
498,Revenue,CCHD,Day Care - South,Private & Voluntary Day Care,Dhek Bhal,772.93, 11-Mar-2013
499,Revenue,CCHD,Bed Purchasing - Under 65s PWLD - South,Residential Homes,Dimensions (Uk),4763.44, 19-Mar-2013
500,Revenue,CCHD,Supported Living - PS,Private & Voluntary Home Care,Dimensions (UK) Ltd,7231.84, 18-Mar-2013
501,Revenue,CCHD,SLA Grants - Support Serv,Grants to Voluntary Bodies,Diversity Trust,5000, 28-Mar-2013
502,Revenue,CCHD,Community Support ACM - North,Preventative Assistance,Dobbins Industrial Cleaning Limited,620, 06-Mar-2013
503,Revenue,CCHD,Home Care - Elderly - South,Other Small Contracts,DoCare Ltd,3201.66, 05-Mar-2013
504,Revenue,CCHD,Home Care - Elderly - North,Other Small Contracts,DoCare Ltd,5354.58, 05-Mar-2013
505,Revenue,CCHD,Day Care - South,Private & Voluntary Day Care,DoCare Ltd,110.88, 05-Mar-2013
506,Revenue,CCHD,Day Care - North,Private & Voluntary Day Care,DoCare Ltd,221.76, 05-Mar-2013
507,Revenue,CCHD,Home Care - Elderly - South,Other Small Contracts,DoCare Ltd,3224.76, 08-Mar-2013
508,Revenue,CCHD,Home Care - Elderly - North,Other Small Contracts,DoCare Ltd,5262.18, 08-Mar-2013
509,Revenue,CCHD,Day Care - South,Private & Voluntary Day Care,DoCare Ltd,101.64, 08-Mar-2013
510,Revenue,CCHD,Day Care - North,Private & Voluntary Day Care,DoCare Ltd,129.36, 08-Mar-2013
511,Revenue,CCHD,Home Care - Elderly - South,Other Small Contracts,DoCare Ltd,3515.82, 25-Mar-2013
512,Revenue,CCHD,Home Care - Elderly - North,Other Small Contracts,DoCare Ltd,5266.8, 25-Mar-2013
513,Revenue,CCHD,Day Care - South,Private & Voluntary Day Care,DoCare Ltd,106.26, 25-Mar-2013
514,Revenue,CCHD,Day Care - North,Private & Voluntary Day Care,DoCare Ltd,189.42, 25-Mar-2013
515,Revenue,CCHD,Home Care - Elderly - South,Other Small Contracts,DoCare Ltd,3354.12, 25-Mar-2013
516,Revenue,CCHD,Home Care - Elderly - North,Other Small Contracts,DoCare Ltd,6061.44, 25-Mar-2013
517,Revenue,CCHD,Day Care - South,Private & Voluntary Day Care,DoCare Ltd,46.2, 25-Mar-2013
518,Revenue,CCHD,Day Care - North,Private & Voluntary Day Care,DoCare Ltd,226.38, 25-Mar-2013
519,Revenue,CCHD,Information Systems - Software,Telephones,DSPG Limited,480, 21-Mar-2013
520,Revenue,CCHD,Bed Purchasing - Elderly - South,Nursing Homes,Dunkirk Memorial House,1158.2, 19-Mar-2013
521,Revenue,CCHD,MH Purchasing - Younger,Residential Homes,Dunraven House,1810.24, 19-Mar-2013
522,Revenue,CCHD,Bed and Breakfast,Bed & Breakfast,E J Bartlett,525, 01-Mar-2013
523,Revenue,CCHD,Bed and Breakfast,Bed & Breakfast,E J Bartlett,840, 01-Mar-2013
524,Revenue,CCHD,Bed and Breakfast,Bed & Breakfast,E J Bartlett,510, 01-Mar-2013
525,Revenue,CCHD,Bed and Breakfast,Bed & Breakfast,E J Bartlett,525, 01-Mar-2013
526,Revenue,CCHD,Bed and Breakfast,Bed & Breakfast,E J Bartlett,735, 11-Mar-2013
527,Revenue,CCHD,Bed and Breakfast,Bed & Breakfast,E J Bartlett,840, 11-Mar-2013
528,Revenue,CCHD,Bed and Breakfast,Bed & Breakfast,E J Bartlett,510, 11-Mar-2013
529,Revenue,CCHD,Bed and Breakfast,Bed & Breakfast,E J Bartlett,525, 11-Mar-2013
530,Revenue,CCHD,Bed and Breakfast,Bed & Breakfast,E J Bartlett,1125, 19-Mar-2013
531,Revenue,CCHD,Bed and Breakfast,Bed & Breakfast,E J Bartlett,735, 15-Mar-2013
532,Revenue,CCHD,Bed and Breakfast,Bed & Breakfast,E J Bartlett,840, 15-Mar-2013
533,Revenue,CCHD,Bed and Breakfast,Bed & Breakfast,E J Bartlett,510, 15-Mar-2013
534,Revenue,CCHD,Bed and Breakfast,Bed & Breakfast,E J Bartlett,525, 15-Mar-2013
535,Revenue,CCHD,Bed and Breakfast,Bed & Breakfast,E J Bartlett,525, 25-Mar-2013
536,Revenue,CCHD,Bed and Breakfast,Bed & Breakfast,E J Bartlett,735, 25-Mar-2013
537,Revenue,CCHD,Bed and Breakfast,Bed & Breakfast,E J Bartlett,840, 25-Mar-2013
538,Revenue,CCHD,Bed and Breakfast,Bed & Breakfast,E J Bartlett,420, 25-Mar-2013
539,Revenue,CCHD,Bed and Breakfast,Bed & Breakfast,E J Bartlett,525, 25-Mar-2013
540,Revenue,CCHD,Bed and Breakfast,Bed & Breakfast,E J Bartlett,420, 25-Mar-2013
541,Revenue,CCHD,Bed and Breakfast,Bed & Breakfast,E J Bartlett,630, 25-Mar-2013
542,Revenue,CCHD,Bed purchasing - Under 65s PWLD - North,Residential Homes,East Court,2160.8, 19-Mar-2013
543,Revenue,CCHD,Bed purchasing - Under 65s PWLD - North,Residential Homes,Ebley House,11498.49, 19-Mar-2013
544,Revenue,CCHD,Bed Purchasing - PWLD S 117 Placements,Residential Homes,Eclipse Office Park,5716.52, 19-Mar-2013
545,Revenue,CCHD,Bed Purchasing - Elderly - North,Residential Homes,Edgecumbe Lodge,890, 19-Mar-2013
546,Revenue,CCHD,Southmead Hospital Purchasing,Residential Homes,Edgecumbe Lodge,1239.2, 19-Mar-2013
547,Revenue,CCHD,Bed Purchasing - Elderly - South,Residential Homes,Edgecumbe Lodge,1052.84, 19-Mar-2013
548,Revenue,CCHD,Bed Purchasing - Elderly - South,Residential Homes,Edgecumbe Lodge,1302.52, 19-Mar-2013
549,Revenue,CCHD,Bed Purchasing - Elderly - South,Residential Homes,Edgecumbe Lodge,1229.4, 19-Mar-2013
550,Revenue,CCHD,Bed Purchasing - Elderly - South,Residential Homes,Edgecumbe Lodge,993.76, 19-Mar-2013
551,Revenue,CCHD,Frenchay Hospital Purchasing,Residential Homes,Edgecumbe Lodge,1110.52, 19-Mar-2013
552,Revenue,CCHD,Bed Purchasing - Elderly - South,Residential Homes,Edgecumbe Lodge,1220, 19-Mar-2013
553,Revenue,CCHD,Bed Purchasing - Elderly - South,Residential Homes,Edgecumbe Lodge,872.86, 19-Mar-2013
554,Revenue,CCHD,Bed Purchasing - Elderly MH - South,Residential Homes,Edgecumbe Lodge,1147.84, 19-Mar-2013
555,Revenue,CCHD,Southmead Hospital Purchasing,Residential Homes,Edgemont House Ltd,1403.2, 19-Mar-2013
556,Revenue,CCHD,Bed Purchasing - Elderly - South,Residential Homes,Edgemont House Ltd,1243.44, 19-Mar-2013
557,Revenue,CCHD,Frenchay Hospital Purchasing,Residential Homes,Edgemont House Ltd,1361.56, 19-Mar-2013
558,Revenue,CCHD,Bed Purchasing - Elderly - South,Residential Homes,Edgemont House Ltd,1403.2, 19-Mar-2013
559,Revenue,CCHD,Bed Purchasing - Elderly - North,Residential Homes,Edgemont House Ltd,1410, 19-Mar-2013
560,Revenue,CCHD,Bed Purchasing - Elderly - South,Nursing Homes,Edgemont View Nursing Home,1418.52, 19-Mar-2013
561,Revenue,CCHD,Frenchay Hospital Purchasing,Nursing Homes,Edgemont View Nursing Home,1341.28, 19-Mar-2013
562,Revenue,CCHD,Bed Purchasing - Elderly - South,Nursing Homes,Edgemont View Nursing Home,1295.2, 19-Mar-2013
563,Revenue,CCHD,Bed Purchasing - Elderly - South,Nursing Homes,Edgemont View Nursing Home,1602.76, 19-Mar-2013
564,Revenue,CCHD,Bed Purchasing - Elderly - South,Nursing Homes,Edgemont View Nursing Home,1295.2, 19-Mar-2013
565,Revenue,CCHD,Bed Purchasing - Elderly - South,Nursing Homes,Edgemont View Nursing Home,925.14, 19-Mar-2013
566,Revenue,CCHD,Supporting People Programme,Grants to Voluntary Bodies,Elim Housing Association Limited,4898.24, 01-Mar-2013
567,Revenue,CCHD,Home Care - Elderly - South,Other Small Contracts,Elite Home Care Ltd,3489.98, 13-Mar-2013
568,Revenue,CCHD,Under 65s -MH  Home Care Purch,Other Small Contracts,Elite Home Care Ltd,86.6, 13-Mar-2013
569,Revenue,CCHD,Home care - Elderly MH - North,Other Small Contracts,Elite Home Care Ltd,363.72, 13-Mar-2013
570,Revenue,CCHD,Bed Purchasing - Elderly - South,Residential Homes,Elmbridge Residential Home Ltd,1309.56, 19-Mar-2013
571,Revenue,CCHD,Frenchay Hospital Purchasing,Nursing Homes,Elmwood Nursing Home,2213.12, 19-Mar-2013
572,Revenue,CCHD,Supporting People Programme,Grants to Voluntary Bodies,English Churches Housing Group,2069, 01-Mar-2013
573,Revenue,CCHD,Younger MH non-res purchasing,Private & Voluntary Day Care,Enham,638.72, 18-Mar-2013
574,Revenue,CCHD,Southmead Hospital Purchasing,Nursing Homes,Epworth House,1327.2, 19-Mar-2013
575,Revenue,CCHD,Training - Adult Services,Training Expenses,Equality & Diversity UK Limited,1436.5, 27-Mar-2013
576,Revenue,CCHD,Home Care - Elderly - South,Other Small Contracts,Everycare (Bristol) Ltd,2557.8, 22-Mar-2013
577,Revenue,CCHD,Home Care - Elderly - North,Other Small Contracts,Everycare (Bristol) Ltd,2671.2, 22-Mar-2013
578,Revenue,CCHD,Home Care - Elderly - South,Other Small Contracts,Everycare (Bristol) Ltd,2688, 04-Mar-2013
579,Revenue,CCHD,Home Care - Elderly - North,Other Small Contracts,Everycare (Bristol) Ltd,2662.8, 04-Mar-2013
580,Revenue,CCHD,Home Care - Elderly - South,Other Small Contracts,Everycare (Bristol) Ltd,2595.6, 04-Mar-2013
581,Revenue,CCHD,Home Care - Elderly - North,Other Small Contracts,Everycare (Bristol) Ltd,2469.6, 04-Mar-2013
582,Revenue,CCHD,Home Care - Elderly - South,Other Small Contracts,Everycare (Bristol) Ltd,2662.8, 22-Mar-2013
583,Revenue,CCHD,Home Care - Elderly - North,Other Small Contracts,Everycare (Bristol) Ltd,2578.8, 22-Mar-2013
584,Revenue,CCHD,Bed Purchasing - Elderly MH - South,Residential Homes,Exmouth House,1382.92, 19-Mar-2013
585,Revenue,CCHD,Southmead Hospital Purchasing,Residential Homes,Fairfield House Care Home,2854.4, 19-Mar-2013
586,Revenue,CCHD,Bed Purchasing - Elderly - South,Nursing Homes,Fairview Court,1182.44, 19-Mar-2013
587,Revenue,CCHD,Bed purchasing - Elderly MH - North,Nursing Homes,Fairview Court,1604.64, 19-Mar-2013
588,Revenue,CCHD,Bed Purchasing - Elderly MH - South,Nursing Homes,Fairview Court,1770.36, 19-Mar-2013
589,Revenue,CCHD,South Glos Users in South Glos Homes,Nursing Homes,Fairview Court,962.77, 19-Mar-2013
590,Revenue,CCHD,Bed Purchasing - Elderly MH - South,Residential Homes,Fairview Court,1403.2, 19-Mar-2013
591,Revenue,CCHD,Bed Purchasing - Elderly - South,Residential Homes,Fairview Court,2623.36, 19-Mar-2013
592,Revenue,CCHD,Bed Purchasing - Elderly - South,Residential Homes,Fairview Court,2118.56, 19-Mar-2013
593,Revenue,CCHD,Bed Purchasing - Elderly - North,Nursing Homes,Fairview Court,547.32, 19-Mar-2013
594,Revenue,CCHD,Bed Purchasing - Elderly MH - South,Nursing Homes,Fairview Court,1988.4, 19-Mar-2013
595,Revenue,CCHD,Frenchay Hospital Purchasing,Nursing Homes,Fairview Court Care Home,1491.68, 07-Mar-2013
596,Revenue,CCHD,South Glos Users in South Glos Homes,Nursing Homes,Fairview Court Care Home,2888.31, 07-Mar-2013
597,Revenue,CCHD,Bed purchasing - Phys Dis - North,Nursing Homes,Fairview Court Care Home,1976.55, 07-Mar-2013
598,Revenue,CCHD,Bed Purchasing - Elderly MH - South,Nursing Homes,Fairview Court Care Home,4678.7, 07-Mar-2013
599,Revenue,CCHD,Bed purchasing - Elderly S117 - South,Nursing Homes,Fairview Court Care Home,2550.02, 07-Mar-2013
600,Revenue,CCHD,Frenchay Hospital Purchasing,Nursing Homes,Fairview Court Care Home,1347.32, 28-Mar-2013
601,Revenue,CCHD,South Glos Users in South Glos Homes,Nursing Homes,Fairview Court Care Home,2608.8, 28-Mar-2013
602,Revenue,CCHD,Bed purchasing - Phys Dis - North,Nursing Homes,Fairview Court Care Home,1785.28, 28-Mar-2013
603,Revenue,CCHD,Bed Purchasing - Elderly MH - South,Nursing Homes,Fairview Court Care Home,4225.92, 28-Mar-2013
604,Revenue,CCHD,Bed purchasing - Elderly S117 - South,Nursing Homes,Fairview Court Care Home,2303.24, 28-Mar-2013
605,Revenue,CCHD,Bed purchasing - Elderly S117 - South,Residential Homes,Fairview House,1810.56, 19-Mar-2013
606,Revenue,CCHD,Bed Purchasing - Elderly - South,Residential Homes,Fairview House,1255.24, 19-Mar-2013
607,Revenue,CCHD,Frenchay Hospital Purchasing,Residential Homes,Fairview House,995.44, 19-Mar-2013
608,Revenue,CCHD,Bed Purchasing - Elderly - South,Residential Homes,Fairview House,926.2, 19-Mar-2013
609,Revenue,CCHD,Bed purchasing - Elderly S117 - South,Residential Homes,Fairview House,1870.92, 19-Mar-2013
610,Revenue,CCHD,Southmead Hospital Purchasing,Residential Homes,Fairview House,1021.08, 19-Mar-2013
611,Revenue,CCHD,Bed Purchasing - Elderly MH - South,Residential Homes,Fairview House,940, 19-Mar-2013
612,Revenue,CCHD,Southmead Hospital Purchasing,Residential Homes,Fairview House,1111.28, 19-Mar-2013
613,Revenue,CCHD,Frenchay Hospital Purchasing,Residential Homes,Fairview House,1078.2, 19-Mar-2013
614,Revenue,CCHD,Bed Purchasing - Elderly MH - South,Residential Homes,Fairview House,1097.2, 19-Mar-2013
615,Revenue,CCHD,Frenchay Hospital Purchasing,Residential Homes,Fairview House,1239.2, 19-Mar-2013
616,Revenue,CCHD,Southmead Hospital Purchasing,Residential Homes,Fairview House,1056.12, 19-Mar-2013
617,Revenue,CCHD,Bed Purchasing - Elderly MH - South,Residential Homes,Fairview House,1038.44, 19-Mar-2013
618,Revenue,CCHD,Bed Purchasing - Elderly MH - South,Residential Homes,Fairview House,1198.68, 19-Mar-2013
619,Revenue,CCHD,Frenchay Hospital Purchasing,Residential Homes,Faith House,1302, 19-Mar-2013
620,Revenue,CCHD,Bed purchasing - Under 65s PWLD - North,Residential Homes,Fernbank,8479.4, 19-Mar-2013
621,Revenue,CCHD,Purchase of Non-Res Care - PS,Private & Voluntary Day Care,Firstpoint Homecare Ltd,1273.07, 01-Mar-2013
622,Revenue,CCHD,Purchase of Non-Res Care - PS,Private & Voluntary Day Care,Firstpoint Homecare Ltd,1273.07, 13-Mar-2013
623,Revenue,CCHD,Purchase of Non-Res Care - PS,Private & Voluntary Day Care,Firstpoint Homecare Ltd,1273.07, 20-Mar-2013
624,Revenue,CCHD,Purchase of Non-Res Care - PS,Private & Voluntary Day Care,Firstpoint Homecare Ltd,1273.07, 22-Mar-2013
625,Revenue,CCHD,Home Care - Elderly - South,Other Small Contracts,Firstpoint Homecare Ltd,1835.4, 05-Mar-2013
626,Revenue,CCHD,Home Care - Elderly - North,Other Small Contracts,Firstpoint Homecare Ltd,866.4, 05-Mar-2013
627,Revenue,CCHD,Day Care - South,Private & Voluntary Day Care,Firstpoint Homecare Ltd,509.2, 05-Mar-2013
628,Revenue,CCHD,Day Care - North,Private & Voluntary Day Care,Firstpoint Homecare Ltd,304, 05-Mar-2013
629,Revenue,CCHD,Under 65s -MH  Home Care Purch,Other Small Contracts,Firstpoint Homecare Ltd,45.6, 05-Mar-2013
630,Revenue,CCHD,Younger MH non-res purchasing,Private & Voluntary Day Care,Firstpoint Homecare Ltd,68.4, 05-Mar-2013
631,Revenue,CCHD,Home care - Elderly MH - North,Other Small Contracts,Firstpoint Homecare Ltd,155.8, 05-Mar-2013
632,Revenue,CCHD,Elderly MH Day Care North,Private & Voluntary Day Care,Firstpoint Homecare Ltd,91.2, 05-Mar-2013
633,Revenue,CCHD,Home Care - Elderly - South,Other Small Contracts,Firstpoint Homecare Ltd,1835.4, 05-Mar-2013
634,Revenue,CCHD,Home Care - Elderly - North,Other Small Contracts,Firstpoint Homecare Ltd,820.8, 05-Mar-2013
635,Revenue,CCHD,Day Care - South,Private & Voluntary Day Care,Firstpoint Homecare Ltd,501.6, 05-Mar-2013
636,Revenue,CCHD,Day Care - North,Private & Voluntary Day Care,Firstpoint Homecare Ltd,273.6, 05-Mar-2013
637,Revenue,CCHD,Under 65s -MH  Home Care Purch,Other Small Contracts,Firstpoint Homecare Ltd,87.4, 05-Mar-2013
638,Revenue,CCHD,Younger MH non-res purchasing,Private & Voluntary Day Care,Firstpoint Homecare Ltd,129.2, 05-Mar-2013
639,Revenue,CCHD,Home care - Elderly MH - North,Other Small Contracts,Firstpoint Homecare Ltd,201.4, 05-Mar-2013
640,Revenue,CCHD,Elderly MH Day Care North,Private & Voluntary Day Care,Firstpoint Homecare Ltd,91.2, 05-Mar-2013
641,Revenue,CCHD,Home Care - Elderly - South,Other Small Contracts,Firstpoint Homecare Ltd,1801.2, 05-Mar-2013
642,Revenue,CCHD,Home Care - Elderly - North,Other Small Contracts,Firstpoint Homecare Ltd,794.2, 05-Mar-2013
643,Revenue,CCHD,Day Care - South,Private & Voluntary Day Care,Firstpoint Homecare Ltd,391.4, 05-Mar-2013
644,Revenue,CCHD,Day Care - North,Private & Voluntary Day Care,Firstpoint Homecare Ltd,243.2, 05-Mar-2013
645,Revenue,CCHD,Under 65s -MH  Home Care Purch,Other Small Contracts,Firstpoint Homecare Ltd,45.6, 05-Mar-2013
646,Revenue,CCHD,Younger MH non-res purchasing,Private & Voluntary Day Care,Firstpoint Homecare Ltd,68.4, 05-Mar-2013
647,Revenue,CCHD,Home care - Elderly MH - North,Other Small Contracts,Firstpoint Homecare Ltd,205.2, 05-Mar-2013
648,Revenue,CCHD,Elderly MH Day Care North,Private & Voluntary Day Care,Firstpoint Homecare Ltd,106.4, 05-Mar-2013
649,Revenue,CCHD,Southmead Hospital Purchasing,Residential Homes,Forest Care Unit 1,973.04, 19-Mar-2013
650,Revenue,CCHD,Bed Purchasing - Elderly - South,Nursing Homes,Four Seasons Health Care,921.96, 19-Mar-2013
651,Revenue,CCHD,Bed Purchasing - Elderly - South,Nursing Homes,Four Seasons Health Care,1281.72, 19-Mar-2013
652,Revenue,CCHD,Frenchay Hospital Purchasing,Residential Homes,Four Seasons Health Care,892.12, 19-Mar-2013
653,Revenue,CCHD,Bed Purchasing - Elderly MH - South,Nursing Homes,Four Seasons Health Care,1363.2, 19-Mar-2013
654,Revenue,CCHD,Frenchay Hospital Purchasing,Nursing Homes,Four Seasons Health Care,1363.2, 19-Mar-2013
655,Revenue,CCHD,Southmead Hospital Purchasing,Nursing Homes,Four Seasons Health Care,1363.2, 19-Mar-2013
656,Revenue,CCHD,Bed purchasing - Elderly MH - North,Residential Homes,Four Seasons Health Care,960.44, 19-Mar-2013
657,Revenue,CCHD,Southmead Hospital Purchasing,Nursing Homes,Four Seasons Health Care,818.68, 19-Mar-2013
658,Revenue,CCHD,South Glos Users in South Glos Homes,Nursing Homes,Four Seasons Health Care,527.97, 19-Mar-2013
659,Revenue,CCHD,Frenchay Hospital Purchasing,Nursing Homes,Four Seasons Health Care,1335.92, 19-Mar-2013
660,Revenue,CCHD,Bed Purchasing - Elderly - South,Nursing Homes,Four Seasons Health Care,1365.04, 19-Mar-2013
661,Revenue,CCHD,Southmead Hospital Purchasing,Nursing Homes,Four Seasons Health Care,1363.2, 19-Mar-2013
662,Revenue,CCHD,Bed Purchasing - Elderly - South,Nursing Homes,Four Seasons Health Care,1201.52, 19-Mar-2013
663,Revenue,CCHD,Bed Purchasing - Elderly - South,Nursing Homes,Four Seasons Health Care,1361.64, 19-Mar-2013
664,Revenue,CCHD,Cash for Change Discharges,Nursing Homes,Four Seasons Health Care,1363.2, 19-Mar-2013
665,Revenue,CCHD,Bed Purchasing - Elderly - South,Nursing Homes,Four Seasons Health Care,1327.2, 19-Mar-2013
666,Revenue,CCHD,Southmead Hospital Purchasing,Nursing Homes,Four Seasons Health Care,1363.2, 19-Mar-2013
667,Revenue,CCHD,Bed Purchasing - Elderly - South,Nursing Homes,Four Seasons Health Care,1260.92, 19-Mar-2013
668,Revenue,CCHD,Southmead Hospital Purchasing,Residential Homes,Four Seasons Health Care,543.56, 19-Mar-2013
669,Revenue,CCHD,Bed Purchasing - Elderly - North,Residential Homes,Four Seasons Health Care,1239.2, 19-Mar-2013
670,Revenue,CCHD,Southmead Hospital Purchasing,Nursing Homes,Four Seasons Health Care,1081, 19-Mar-2013
671,Revenue,CCHD,Bed Purchasing - Elderly - North,Nursing Homes,Four Seasons Health Care,1363.2, 19-Mar-2013
672,Revenue,CCHD,Frenchay Hospital Purchasing,Nursing Homes,Four Seasons Health Care,1235.64, 19-Mar-2013
673,Revenue,CCHD,Southmead Hospital Purchasing,Nursing Homes,Four Seasons Health Care,1269.2, 19-Mar-2013
674,Revenue,CCHD,Bed Purchasing - Elderly - South,Nursing Homes,Four Seasons Health Care,1353.76, 19-Mar-2013
675,Revenue,CCHD,Frenchay Hospital Purchasing,Nursing Homes,Four Seasons Health Care,1159.2, 19-Mar-2013
676,Revenue,CCHD,Bed Purchasing - Elderly - South,Nursing Homes,Four Seasons Health Care,1363.2, 19-Mar-2013
677,Revenue,CCHD,Bed Purchasing - Elderly - South,Nursing Homes,Four Seasons Health Care,1308.24, 19-Mar-2013
678,Revenue,CCHD,Bed Purchasing - Elderly MH - South,Nursing Homes,Four Seasons Health Care,1363.2, 19-Mar-2013
679,Revenue,CCHD,Bed Purchasing - Elderly - South,Nursing Homes,Four Seasons Health Care,1067.16, 19-Mar-2013
680,Revenue,CCHD,Bed Purchasing - Elderly - South,Nursing Homes,Four Seasons Health Care,1327.2, 19-Mar-2013
681,Revenue,CCHD,Frenchay Hospital Purchasing,Nursing Homes,Four Seasons Health Care,1071.6, 19-Mar-2013
682,Revenue,CCHD,Bed Purchasing - Elderly MH - South,Residential Homes,Four Seasons Health Care,1084.52, 19-Mar-2013
683,Revenue,CCHD,Bed Purchasing - Elderly - South,Nursing Homes,Four Seasons Health Care,1363.2, 19-Mar-2013
684,Revenue,CCHD,Bed Purchasing - Elderly - South,Nursing Homes,Four Seasons Health Care,1361.8, 19-Mar-2013
685,Revenue,CCHD,Southmead Hospital Purchasing,Nursing Homes,Four Seasons Health Care,947.68, 19-Mar-2013
686,Revenue,CCHD,Bed Purchasing - Elderly MH - South,Nursing Homes,Four Seasons Health Care,1212.44, 19-Mar-2013
687,Revenue,CCHD,Frenchay Hospital Purchasing,Nursing Homes,Four Seasons Health Care,7448.92, 19-Mar-2013
688,Revenue,CCHD,Frenchay Hospital Purchasing,Nursing Homes,Four Seasons Health Care,1363.2, 19-Mar-2013
689,Revenue,CCHD,Bed purchasing - Elderly MH - North,Nursing Homes,Four Seasons Health Care,780.24, 19-Mar-2013
690,Revenue,CCHD,Bed Purchasing - Elderly - South,Nursing Homes,Four Seasons Health Care,995.44, 19-Mar-2013
691,Revenue,CCHD,Bed Purchasing - Elderly - North,Nursing Homes,Four Seasons Health Care,956.44, 19-Mar-2013
692,Revenue,CCHD,Frenchay Hospital Purchasing,Residential Homes,Four Seasons Health Care,736.96, 19-Mar-2013
693,Revenue,CCHD,Southmead Hospital Purchasing,Residential Homes,Four Seasons Health Care,1230.28, 19-Mar-2013
694,Revenue,CCHD,Bed Purchasing - Elderly - South,Nursing Homes,Four Seasons Health Care,1535.2, 19-Mar-2013
695,Revenue,CCHD,Southmead Hospital Purchasing,Nursing Homes,Four Seasons Health Care,3828.95, 19-Mar-2013
696,Revenue,CCHD,Southmead Hospital Purchasing,Nursing Homes,Four Seasons Health Care,1148.56, 19-Mar-2013
697,Revenue,CCHD,Frenchay Hospital Purchasing,Nursing Homes,Four Seasons Health Care,1100.52, 19-Mar-2013
698,Revenue,CCHD,Frenchay Hospital Purchasing,Nursing Homes,Four Seasons Health Care,1363.2, 19-Mar-2013
699,Revenue,CCHD,Bed Purchasing - Elderly - South,Residential Homes,Four Seasons Health Care,1112.08, 19-Mar-2013
700,Revenue,CCHD,Frenchay Hospital Purchasing,Nursing Homes,Four Seasons Health Care,1535.2, 19-Mar-2013
701,Revenue,CCHD,Bed Purchasing - Elderly - North,Nursing Homes,Four Seasons Health Care,1363.2, 19-Mar-2013
702,Revenue,CCHD,Southmead Hospital Purchasing,Nursing Homes,Four Seasons Health Care,1363.2, 19-Mar-2013
703,Revenue,CCHD,Bed Purchasing - Elderly - North,Nursing Homes,Four Seasons Health Care,1363.2, 19-Mar-2013
704,Revenue,CCHD,Bed Purchasing - Elderly - North,Nursing Homes,Four Seasons Health Care,1287.44, 19-Mar-2013
705,Revenue,CCHD,Bed purchasing - Elderly MH - North,Nursing Homes,Four Seasons Health Care,1457.48, 19-Mar-2013
706,Revenue,CCHD,Bed Purchasing - Elderly - North,Nursing Homes,Four Seasons Health Care,1264.2, 19-Mar-2013
707,Revenue,CCHD,Bed Purchasing - Elderly - North,Nursing Homes,Four Seasons Health Care,1096.56, 19-Mar-2013
708,Revenue,CCHD,Southmead Hospital Purchasing,Nursing Homes,Four Seasons Health Care,1356.56, 19-Mar-2013
709,Revenue,CCHD,Frenchay Hospital Purchasing,Residential Homes,Four Seasons Health Care,679.36, 19-Mar-2013
710,Revenue,CCHD,Frenchay Hospital Purchasing,Nursing Homes,Four Seasons Health Care,1284.4, 19-Mar-2013
711,Revenue,CCHD,Frenchay Hospital Purchasing,Nursing Homes,Four Seasons Health Care,1343.4, 19-Mar-2013
712,Revenue,CCHD,Bed Purchasing - Elderly - North,Nursing Homes,Four Seasons Health Care,1027.36, 19-Mar-2013
713,Revenue,CCHD,Bed Purchasing - Elderly - North,Residential Homes,Four Seasons Health Care,670.04, 19-Mar-2013
714,Revenue,CCHD,Frenchay Hospital Purchasing,Nursing Homes,Four Seasons Health Care,1522.72, 19-Mar-2013
715,Revenue,CCHD,Bed purchasing - Elderly MH - North,Residential Homes,Four Seasons Health Care,1306.04, 19-Mar-2013
716,Revenue,CCHD,Bed Purchasing - Elderly - North,Nursing Homes,Four Seasons Health Care,1499.2, 19-Mar-2013
717,Revenue,CCHD,Southmead Hospital Purchasing,Nursing Homes,Four Seasons Health Care,578.56, 19-Mar-2013
718,Revenue,CCHD,Bed Purchasing - Elderly - North,Nursing Homes,Four Seasons Health Care,1363.2, 19-Mar-2013
719,Revenue,CCHD,Bed Purchasing - Elderly - North,Nursing Homes,Four Seasons Health Care,1431.8, 19-Mar-2013
720,Revenue,CCHD,Southmead Hospital Purchasing,Residential Homes,Four Seasons Health Care,705.16, 19-Mar-2013
721,Revenue,CCHD,Southmead Hospital Purchasing,Nursing Homes,Four Seasons Health Care,1442.32, 19-Mar-2013
722,Revenue,CCHD,Frenchay Hospital Purchasing,Nursing Homes,Four Seasons Health Care,1211.32, 19-Mar-2013
723,Revenue,CCHD,Southmead Hospital Purchasing,Nursing Homes,Four Seasons Health Care,2190.85, 19-Mar-2013
724,Revenue,CCHD,Southmead Hospital Purchasing,Nursing Homes,Four Seasons Health Care,1363.2, 19-Mar-2013
725,Revenue,CCHD,Southmead Hospital Purchasing,Nursing Homes,Four Seasons Health Care,1535.2, 19-Mar-2013
726,Revenue,CCHD,Bed Purchasing - Elderly - North,Residential Homes,Four Seasons Health Care,1416.23, 19-Mar-2013
727,Revenue,CCHD,Bed Purchasing - Elderly - North,Residential Homes,Four Seasons Health Care,1239.2, 19-Mar-2013
728,Revenue,CCHD,Bed purchasing - Elderly MH - North,Residential Homes,Four Seasons Health Care,13586.94, 19-Mar-2013
729,Revenue,CCHD,Bed purchasing - Elderly MH - North,Residential Homes,Four Seasons Health Care,1239.2, 19-Mar-2013
730,Revenue,CCHD,Southmead Hospital Purchasing,Residential Homes,Four Seasons Health Care,1173.04, 19-Mar-2013
731,Revenue,CCHD,Southmead Hospital Purchasing,Residential Homes,Four Seasons Health Care,1460.49, 19-Mar-2013
732,Revenue,CCHD,Southmead Hospital Purchasing,Residential Homes,Four Seasons Health Care,1239.2, 19-Mar-2013
733,Revenue,CCHD,Bed Purchasing - Elderly - North,Nursing Homes,Four Seasons Health Care,1519.32, 19-Mar-2013
734,Revenue,CCHD,Bed Purchasing - Elderly - North,Nursing Homes,Four Seasons Health Care,1535.2, 19-Mar-2013
735,Revenue,CCHD,Bed purchasing - Elderly MH - North,Residential Homes,Four Seasons Health Care,2309.85, 19-Mar-2013
736,Revenue,CCHD,Bed purchasing - Elderly MH - North,Residential Homes,Four Seasons Health Care,1197.16, 19-Mar-2013
737,Revenue,CCHD,Southmead Hospital Purchasing,Residential Homes,Four Seasons Health Care,1239.2, 19-Mar-2013
738,Revenue,CCHD,Bed purchasing - Elderly MH - North,Residential Homes,Four Seasons Health Care,1366.04, 19-Mar-2013
739,Revenue,CCHD,Bed Purchasing - Elderly - North,Nursing Homes,Four Seasons Health Care,1346.6, 19-Mar-2013
740,Revenue,CCHD,Southmead Hospital Purchasing,Nursing Homes,Four Seasons Health Care,1207.08, 19-Mar-2013
741,Revenue,CCHD,Bed purchasing - Elderly MH - North,Nursing Homes,Four Seasons Health Care,1025.24, 19-Mar-2013
742,Revenue,CCHD,South Glos Users in South Glos Homes,Nursing Homes,Four Seasons Health Care,1459.69, 19-Mar-2013
743,Revenue,CCHD,South Glos Users in South Glos Homes,Nursing Homes,Four Seasons Health Care,2577.74, 19-Mar-2013
744,Revenue,CCHD,Bed Purchasing - Elderly - North,Nursing Homes,Four Seasons Health Care,1363.2, 19-Mar-2013
745,Revenue,CCHD,Bed Purchasing - Elderly - North,Residential Homes,Four Seasons Health Care,1263.2, 19-Mar-2013
746,Revenue,CCHD,Bed Purchasing - Elderly - North,Residential Homes,Four Seasons Health Care,1023.76, 19-Mar-2013
747,Revenue,CCHD,Frenchay Hospital Purchasing,Residential Homes,Four Seasons Health Care,1239.2, 19-Mar-2013
748,Revenue,CCHD,Frenchay Hospital Purchasing,Nursing Homes,Four Seasons Health Care,1204.44, 19-Mar-2013
749,Revenue,CCHD,Frenchay Hospital Purchasing,Nursing Homes,Four Seasons Health Care,1363.2, 19-Mar-2013
750,Revenue,CCHD,South Glos Users in South Glos Homes,Nursing Homes,Four Seasons Health Care,1413.1, 19-Mar-2013
751,Revenue,CCHD,Bed Purchasing - Elderly - North,Nursing Homes,Four Seasons Health Care,1023.36, 19-Mar-2013
752,Revenue,CCHD,Bed Purchasing - Elderly - North,Nursing Homes,Four Seasons Health Care,1363.2, 19-Mar-2013
753,Revenue,CCHD,Frenchay Hospital Purchasing,Nursing Homes,Four Seasons Health Care,1363.2, 19-Mar-2013
754,Revenue,CCHD,Frenchay Hospital Purchasing,Nursing Homes,Four Seasons Health Care,1363.2, 19-Mar-2013
755,Revenue,CCHD,Southmead Hospital Purchasing,Nursing Homes,Four Seasons Health Care,605.72, 19-Mar-2013
756,Revenue,CCHD,Bed Purchasing - Elderly - North,Nursing Homes,Four Seasons Health Care,1070.48, 19-Mar-2013
757,Revenue,CCHD,Frenchay Hospital Purchasing,Nursing Homes,Four Seasons Health Care,1363.2, 19-Mar-2013
758,Revenue,CCHD,Southmead Hospital Purchasing,Nursing Homes,Four Seasons Health Care,758.2, 19-Mar-2013
759,Revenue,CCHD,Frenchay Hospital Purchasing,Nursing Homes,Four Seasons Health Care,1363.2, 19-Mar-2013
760,Revenue,CCHD,Frenchay Hospital Purchasing,Nursing Homes,Four Seasons Health Care,1379.2, 19-Mar-2013
761,Revenue,CCHD,Bed Purchasing - Elderly - South,Nursing Homes,Four Seasons Health Care,1060.72, 19-Mar-2013
762,Revenue,CCHD,Southmead Hospital Purchasing,Nursing Homes,Four Seasons Health Care,1286.4, 19-Mar-2013
763,Revenue,CCHD,Southmead Hospital Purchasing,Residential Homes,Four Seasons Health Care,1118.04, 19-Mar-2013
764,Revenue,CCHD,Southmead Hospital Purchasing,Nursing Homes,Four Seasons Health Care,1363.2, 19-Mar-2013
765,Revenue,CCHD,Frenchay Hospital Purchasing,Nursing Homes,Four Seasons Health Care,1359.2, 19-Mar-2013
766,Revenue,CCHD,Frenchay Hospital Purchasing,Nursing Homes,Four Seasons Health Care,1329.52, 19-Mar-2013
767,Revenue,CCHD,Southmead Hospital Purchasing,Nursing Homes,Four Seasons Health Care,1336.84, 19-Mar-2013
768,Revenue,CCHD,Bed Purchasing - Elderly - North,Residential Homes,Four Seasons Health Care,3088.6, 19-Mar-2013
769,Revenue,CCHD,Bed purchasing - Phys Dis - North,Nursing Homes,Four Seasons Health Care,1367.76, 19-Mar-2013
770,Revenue,CCHD,Southmead Hospital Purchasing,Residential Homes,Four Seasons Health Care,4600, 19-Mar-2013
771,Revenue,CCHD,Bed Purchasing - Elderly - South,Residential Homes,Four Seasons Health Care,4049.31, 19-Mar-2013
772,Revenue,CCHD,Frenchay Hospital Purchasing,Nursing Homes,Four Seasons Health Care,1363.2, 19-Mar-2013
773,Revenue,CCHD,Southmead Hospital Purchasing,Nursing Homes,Four Seasons Health Care,1292.36, 19-Mar-2013
774,Revenue,CCHD,Bed purchasing - Elderly MH - North,Residential Homes,Four Seasons Health Care,1396.2, 19-Mar-2013
775,Revenue,CCHD,Southmead Hospital Purchasing,Residential Homes,Four Seasons Health Care,1163.68, 19-Mar-2013
776,Revenue,CCHD,Bed Purchasing - Elderly - South,Residential Homes,Four Seasons Health Care,1385.48, 19-Mar-2013
777,Revenue,CCHD,Bed Purchasing - Elderly - North,Residential Homes,Four Seasons Health Care,7208, 19-Mar-2013
778,Revenue,CCHD,Bed Purchasing - Elderly - North,Residential Homes,Four Seasons Health Care,4348.8, 19-Mar-2013
779,Revenue,CCHD,Bed Purchasing - Elderly - North,Residential Homes,Four Seasons Health Care,1159.68, 19-Mar-2013
780,Revenue,CCHD,Frenchay Hospital Purchasing,Residential Homes,Four Seasons Health Care,5060, 19-Mar-2013
781,Revenue,CCHD,Frenchay Hospital Purchasing,Residential Homes,Four Seasons Health Care,1840, 19-Mar-2013
782,Revenue,CCHD,Frenchay Hospital Purchasing,Nursing Homes,Four Seasons Health Care,711.87, 19-Mar-2013
783,Revenue,CCHD,Frenchay Hospital Purchasing,Nursing Homes,Four Seasons Health Care,1225.56, 19-Mar-2013
784,Revenue,CCHD,Bed purchasing - Elderly PWLD - South,Residential Homes,Four Seasons Health Care,1239.2, 19-Mar-2013
785,Revenue,CCHD,Frenchay Hospital Purchasing,Nursing Homes,Four Seasons Health Care,1363.2, 19-Mar-2013
786,Revenue,CCHD,Southmead Hospital Purchasing,Nursing Homes,Four Seasons Health Care,1103.76, 19-Mar-2013
787,Revenue,CCHD,Bed Purchasing - Elderly - South,Nursing Homes,Four Seasons Health Care,1286.52, 19-Mar-2013
788,Revenue,CCHD,Bed Purchasing - Elderly - North,Residential Homes,Four Seasons Health Care,1171.16, 19-Mar-2013
789,Revenue,CCHD,Frenchay Hospital Purchasing,Nursing Homes,Four Seasons Health Care,2012.99, 19-Mar-2013
790,Revenue,CCHD,Frenchay Hospital Purchasing,Nursing Homes,Four Seasons Health Care,1374.72, 19-Mar-2013
791,Revenue,CCHD,Southmead Hospital Purchasing,Nursing Homes,Four Seasons Health Care,1138.92, 19-Mar-2013
792,Revenue,CCHD,Frenchay Hospital Purchasing,Nursing Homes,Four Seasons Health Care,3723.05, 19-Mar-2013
793,Revenue,CCHD,Frenchay Hospital Purchasing,Nursing Homes,Four Seasons Health Care,506.72, 19-Mar-2013
794,Revenue,CCHD,Bed Purchasing - Elderly - South,Residential Homes,Four Seasons Health Care,865.28, 19-Mar-2013
795,Revenue,CCHD,Southmead Hospital Purchasing,Residential Homes,Four Seasons Health Care,1386, 19-Mar-2013
796,Revenue,CCHD,Southmead Hospital Purchasing,Residential Homes,Four Seasons Health Care,1441.28, 19-Mar-2013
797,Revenue,CCHD,Frenchay Hospital Purchasing,Nursing Homes,Four Seasons Health Care,769.44, 19-Mar-2013
798,Revenue,CCHD,Bed Purchasing - Elderly - South,Nursing Homes,Four Seasons Health Care,947.2, 19-Mar-2013
799,Revenue,CCHD,Bed Purchasing - Elderly - South,Residential Homes,Four Seasons Health Care,2944.45, 19-Mar-2013
800,Revenue,CCHD,Bed Purchasing - Elderly - South,Residential Homes,Four Seasons Health Care,1084.8, 19-Mar-2013
801,Revenue,CCHD,Bed purchasing - Elderly S117 - South,Nursing Homes,Four Seasons Health Care,1840, 19-Mar-2013
802,Revenue,CCHD,Frenchay Hospital Purchasing,Residential Homes,Four Seasons Health Care,1102.84, 19-Mar-2013
803,Revenue,CCHD,Southmead Hospital Purchasing,Residential Homes,Four Seasons Health Care,1323.96, 19-Mar-2013
804,Revenue,CCHD,Bed Purchasing - Elderly MH - South,Residential Homes,Four Seasons Health Care,936.64, 19-Mar-2013
805,Revenue,CCHD,Bed Purchasing - Elderly - North,Residential Homes,Four Seasons Health Care,1239.2, 19-Mar-2013
806,Revenue,CCHD,Southmead Hospital Purchasing,Nursing Homes,Four Seasons Health Care,1363.2, 19-Mar-2013
807,Revenue,CCHD,Frenchay Hospital Purchasing,Nursing Homes,Four Seasons Health Care,1112.32, 19-Mar-2013
808,Revenue,CCHD,South Glos Users in South Glos Homes,Nursing Homes,Four Seasons Health Care,760.9, 19-Mar-2013
809,Revenue,CCHD,Frenchay Hospital Purchasing,Nursing Homes,Four Seasons Health Care,1089.52, 19-Mar-2013
810,Revenue,CCHD,Frenchay Hospital Purchasing,Nursing Homes,Four Seasons Health Care,933.87, 19-Mar-2013
811,Revenue,CCHD,Frenchay Hospital Purchasing,Nursing Homes,Four Seasons Health Care,1031.56, 19-Mar-2013
812,Revenue,CCHD,Frenchay Hospital Purchasing,Nursing Homes,Four Seasons Health Care,1063.96, 19-Mar-2013
813,Revenue,CCHD,Southmead Hospital Purchasing,Nursing Homes,Four Seasons Health Care,991.8, 19-Mar-2013
814,Revenue,CCHD,Southmead Hospital Purchasing,Nursing Homes,Four Seasons Health Care,871.84, 19-Mar-2013
815,Revenue,CCHD,Southmead Hospital Purchasing,Nursing Homes,Four Seasons Health Care,4995.77, 19-Mar-2013
816,Revenue,CCHD,Southmead Hospital Purchasing,Residential Homes,Four Seasons Health Care,1239.2, 19-Mar-2013
817,Revenue,CCHD,Frenchay Hospital Purchasing,Residential Homes,Four Seasons Health Care,1232.16, 19-Mar-2013
818,Revenue,CCHD,Bed Purchasing - Elderly - North,Nursing Homes,Four Seasons Health Care,1263.48, 19-Mar-2013
819,Revenue,CCHD,Bed Purchasing - Elderly - South,Nursing Homes,Four Seasons Health Care,1171.6, 19-Mar-2013
820,Revenue,CCHD,Bed Purchasing - Elderly S117- North,Residential Homes,Four Seasons Health Care,2011.04, 19-Mar-2013
821,Revenue,CCHD,Frenchay Hospital Purchasing,Residential Homes,Four Seasons Health Care,1515.84, 19-Mar-2013
822,Revenue,CCHD,Bed purchasing - Phys Dis - North,Nursing Homes,Four Seasons Health Care,845.76, 19-Mar-2013
823,Revenue,CCHD,TSG Practice Placements,Training Expenses,Frances Hall,916.7, 19-Mar-2013
824,Revenue,CCHD,Home Care - Elderly - South,Other Small Contracts,Freedom Social Care Recruitment,1066.5, 07-Mar-2013
825,Revenue,CCHD,Home Care - Elderly - North,Other Small Contracts,Freedom Social Care Recruitment,2655.11, 07-Mar-2013
826,Revenue,CCHD,Home Care - Elderly - South,Other Small Contracts,Freedom Social Care Recruitment,813.7, 01-Mar-2013
827,Revenue,CCHD,Home Care - Elderly - North,Other Small Contracts,Freedom Social Care Recruitment,2323.31, 01-Mar-2013
828,Revenue,CCHD,Home care - Elderly MH - North,Other Small Contracts,Freedom Social Care Recruitment,15.8, 01-Mar-2013
829,Revenue,CCHD,Home Care - Elderly - South,Other Small Contracts,Freedom Social Care Recruitment,1007.25, 01-Mar-2013
830,Revenue,CCHD,Home Care - Elderly - North,Other Small Contracts,Freedom Social Care Recruitment,2268.01, 01-Mar-2013
831,Revenue,CCHD,Home care - Elderly MH - North,Other Small Contracts,Freedom Social Care Recruitment,7.9, 01-Mar-2013
832,Revenue,CCHD,Home Care - Elderly - South,Other Small Contracts,Freedom Social Care Recruitment,786.05, 07-Mar-2013
833,Revenue,CCHD,Home Care - Elderly - North,Other Small Contracts,Freedom Social Care Recruitment,2331.21, 07-Mar-2013
834,Revenue,CCHD,Home care - Elderly MH - North,Other Small Contracts,Freedom Social Care Recruitment,15.8, 07-Mar-2013
835,Revenue,CCHD,Home Care - Elderly - South,Other Small Contracts,Freedom Social Care Recruitment,790, 07-Mar-2013
836,Revenue,CCHD,Home Care - Elderly - North,Other Small Contracts,Freedom Social Care Recruitment,2505.01, 07-Mar-2013
837,Revenue,CCHD,Home care - Elderly MH - North,Other Small Contracts,Freedom Social Care Recruitment,15.8, 07-Mar-2013
838,Revenue,CCHD,Freeways,Residential Homes,Freeways Trust Limited,44356.49, 06-Mar-2013
839,Revenue,CCHD,Supported Living - PS,Private & Voluntary Home Care,Freeways Trust Limited,1292.06, 22-Mar-2013
840,Revenue,CCHD,Bed purchasing - Under 65s PWLD - North,Residential Homes,Freeways Trust Ltd,2791.88, 19-Mar-2013
841,Revenue,CCHD,Bed purchasing - S28A Under 65 - South,Residential Homes,Freeways Trust Ltd,2876.4, 19-Mar-2013
842,Revenue,CCHD,Bed purchasing - Under 65s PWLD - North,Residential Homes,Freeways Trust Ltd,2657.64, 19-Mar-2013
843,Revenue,CCHD,Bed purchasing - Under 65s PWLD - North,Residential Homes,Freeways Trust Ltd,2232.52, 19-Mar-2013
844,Revenue,CCHD,Bed purchasing - Under 65s PWLD - North,Residential Homes,Freeways Trust Ltd,2666.28, 19-Mar-2013
845,Revenue,CCHD,Bed Purchasing - Under 65s PWLD - South,Residential Homes,Freeways Trust Ltd,3259.12, 19-Mar-2013
846,Revenue,CCHD,Bed purchasing - Elderly PWLD - North,Residential Homes,Freeways Trust Ltd,2219.24, 19-Mar-2013
847,Revenue,CCHD,Bed Purchasing - Under 65s PWLD - South,Residential Homes,Freeways Trust Ltd,2364.28, 19-Mar-2013
848,Revenue,CCHD,Bed purchasing - Under 65s PWLD - North,Residential Homes,Freeways Trust Ltd,2666.28, 19-Mar-2013
849,Revenue,CCHD,Bed purchasing - Elderly PWLD - North,Residential Homes,Freeways Trust Ltd,2492.24, 19-Mar-2013
850,Revenue,CCHD,Section 117 Placements MH Younger,Residential Homes,Freeways Trust Ltd,3292.4, 19-Mar-2013
851,Revenue,CCHD,Bed Purchasing - Under 65s PWLD - South,Residential Homes,Freeways Trust Ltd,6060.6, 19-Mar-2013
852,Revenue,CCHD,Swift Dump Code,Residential Homes,Frenchay Park Nursing Home,6599.64, 19-Mar-2013
853,Revenue,CCHD,Bed Purchasing - Under 65s PWLD - South,Residential Homes,Glasallt Fawr,4505.4, 19-Mar-2013
854,Revenue,CCHD,Bed Purchasing - Elderly - North,Nursing Homes,Glebe House Nursing Home,1381.88, 19-Mar-2013
855,Revenue,CCHD,Bed purchasing - Elderly MH - North,Nursing Homes,Glebe House Nursing Home,3036.96, 19-Mar-2013
856,Revenue,CCHD,Bed purchasing - Elderly MH - North,Nursing Homes,Glebe House Nursing Home,759.24, 19-Mar-2013
857,Revenue,CCHD,Bed purchasing - Elderly MH - North,Residential Homes,Glebe House Nursing Home,782.8, 19-Mar-2013
858,Revenue,CCHD,Bed Purchasing - Elderly - South,Residential Homes,Glebe House Nursing Home,1963.52, 19-Mar-2013
859,Revenue,CCHD,South Glos Users in South Glos Homes,Nursing Homes,Glebe House Nursing Home,714.31, 19-Mar-2013
860,Revenue,CCHD,Bed Purchasing - Elderly - North,Residential Homes,Glebe House Nursing Home,2529.76, 19-Mar-2013
861,Revenue,CCHD,Bed purchasing - Phys Dis - South,Residential Homes,Glenside Centre For Brain Injury,6314.61, 19-Mar-2013
862,Revenue,CCHD,Bed Purchasing - Under 65s PWLD - South,Residential Homes,Gordena Care Home,2063.36, 19-Mar-2013
863,Revenue,CCHD,Bed purchasing - Elderly PWLD - South,Residential Homes,Gordena Care Home,4691.96, 19-Mar-2013
864,Revenue,CCHD,Bed purchasing - Elderly PWLD - South,Residential Homes,Gordena Care Home,2904.2, 19-Mar-2013
865,Revenue,CCHD,Bed Purchasing - Under 65s PWLD - South,Residential Homes,Gordena Care Home,1894.04, 19-Mar-2013
866,Revenue,CCHD,Bed Purchasing - Under 65s PWLD - South,Residential Homes,Gordena Care Limited,4119.84, 19-Mar-2013
867,Revenue,CCHD,Bed purchasing - S28A Under 65 - South,Residential Homes,Gordena Care Limited,4018.24, 19-Mar-2013
868,Revenue,CCHD,Bed purchasing - Under 65s PWLD - North,Residential Homes,Gordena Care Limited,4125.04, 19-Mar-2013
869,Revenue,CCHD,Bed Purchasing - Elderly - North,Residential Homes,Greensleeves,1305.56, 19-Mar-2013
870,Revenue,CCHD,Bed Purchasing - Elderly - South,Residential Homes,Gwendoline House,1480.12, 19-Mar-2013
871,Revenue,CCHD,Bed Purchasing - Elderly - South,Residential Homes,Gwendoline House,1158.88, 19-Mar-2013
872,Revenue,CCHD,Bed Purchasing - Elderly - North,Residential Homes,Gwendoline House,1643.2, 19-Mar-2013
873,Revenue,CCHD,Bed Purchasing - Elderly MH - South,Residential Homes,Gwendoline House,1263.36, 19-Mar-2013
874,Revenue,CCHD,Southmead Hospital Purchasing,Residential Homes,Gwendoline House,1675.2, 19-Mar-2013
875,Revenue,CCHD,Bed Purchasing - Elderly - South,Residential Homes,Gwendoline House,1123.12, 19-Mar-2013
876,Revenue,CCHD,Bed Purchasing - Elderly - South,Residential Homes,Gwendoline House,1558.44, 19-Mar-2013
877,Revenue,CCHD,Supporting People Programme,Grants to Voluntary Bodies,Habinteg Housing Association,1326, 01-Mar-2013
878,Revenue,CCHD,Bed Purchasing - Elderly - South,Residential Homes,Harefield Hall,1317.48, 19-Mar-2013
879,Revenue,CCHD,Bed Purchasing - Elderly - South,Residential Homes,Harefield Hall,1115.96, 19-Mar-2013
880,Revenue,CCHD,Bed Purchasing - Elderly - South,Residential Homes,Harefield Hall,1766.16, 19-Mar-2013
881,Revenue,CCHD,Bed Purchasing - Elderly MH - South,Residential Homes,Harefield Hall,1091.48, 19-Mar-2013
882,Revenue,CCHD,Southmead Hospital Purchasing,Nursing Homes,Haven Lodge,1371.08, 19-Mar-2013
883,Revenue,CCHD,Southmead Hospital Purchasing,Nursing Homes,Hc-One Ltd,1602.76, 19-Mar-2013
884,Revenue,CCHD,Bed Purchasing - Elderly - North,Nursing Homes,Hc-One Ltd,1457.44, 19-Mar-2013
885,Revenue,CCHD,Bed Purchasing - Elderly - North,Nursing Homes,Hc-One Ltd,972.84, 19-Mar-2013
886,Revenue,CCHD,Bed purchasing - Elderly PWLD - South,Nursing Homes,Hc-One Ltd,1916.2, 19-Mar-2013
887,Revenue,CCHD,Bed purchasing - Elderly MH - North,Nursing Homes,Hc-One Ltd,1467.2, 19-Mar-2013
888,Revenue,CCHD,Bed purchasing - Elderly MH - North,Nursing Homes,Hc-One Ltd,1209.16, 19-Mar-2013
889,Revenue,CCHD,Frenchay Hospital Purchasing,Nursing Homes,Hc-One Ltd,1460.24, 19-Mar-2013
890,Revenue,CCHD,Bed purchasing - Elderly MH - North,Nursing Homes,Hc-One Ltd,1467.2, 19-Mar-2013
891,Revenue,CCHD,Bed purchasing - Elderly MH - North,Nursing Homes,Hc-One Ltd,1156.84, 19-Mar-2013
892,Revenue,CCHD,Bed Purchasing - Elderly S117- North,Nursing Homes,Hc-One Ltd,1929.2, 19-Mar-2013
893,Revenue,CCHD,Frenchay Hospital Purchasing,Residential Homes,Hc-One Ltd,1479.76, 19-Mar-2013
894,Revenue,CCHD,Frenchay Hospital Purchasing,Residential Homes,Hc-One Ltd,910.16, 19-Mar-2013
895,Revenue,CCHD,Southmead Hospital Purchasing,Residential Homes,Highgate Studios,1167.44, 19-Mar-2013
896,Revenue,CCHD,Bed purchasing - Under 65s PWLD - North,Residential Homes,Holmleigh Care Homes Ltd,3962.92, 19-Mar-2013
897,Revenue,CCHD,Bed Purchasing - Under 65s PWLD - South,Residential Homes,Holmleigh Care Homes Ltd,4980.72, 19-Mar-2013
898,Revenue,CCHD,Southmead Hospital Purchasing,Nursing Homes,Holmwood House,1257.68, 19-Mar-2013
899,Revenue,CCHD,South Glos Users in South Glos Homes,Nursing Homes,Holmwood House,1397.57, 19-Mar-2013
900,Revenue,CCHD,South Glos Users in South Glos Homes,Nursing Homes,Holmwood House,1102.53, 19-Mar-2013
901,Revenue,CCHD,South Glos Users in Gloucestershire Home,Nursing Homes,Holmwood House,2307.25, 19-Mar-2013
902,Revenue,CCHD,Southmead Hospital Purchasing,Nursing Homes,Holmwood House,839, 19-Mar-2013
903,Revenue,CCHD,Bed purchasing - Under 65s PWLD - North,Residential Homes,Home Farm Trust Ltd  5-6 Brook Office Pa,2784.12, 19-Mar-2013
904,Revenue,CCHD,Bed purchasing - Elderly PWLD - South,Residential Homes,Home Farm Trust Ltd  5-6 Brook Office Pa,4285, 19-Mar-2013
905,Revenue,CCHD,Bed purchasing - Under 65s PWLD - North,Residential Homes,Home Farm Trust Ltd  5-6 Brook Office Pa,3367.08, 19-Mar-2013
906,Revenue,CCHD,Bed Purchasing - Under 65s PWLD - South,Residential Homes,Home Farm Trust Ltd  5-6 Brook Office Pa,4463, 19-Mar-2013
907,Revenue,CCHD,Bed purchasing - Under 65s PWLD - North,Residential Homes,Home From Home Care Ltd,8775.16, 19-Mar-2013
908,Revenue,CCHD,Bed purchasing - Under 65s PWLD - North,Residential Homes,Homes Caring For Autism Ltd  Churchill H,9662.72, 19-Mar-2013
909,Revenue,CCHD,Bed Purchasing - Under 65s PWLD - South,Residential Homes,Homes Caring For Autism Ltd  Churchill H,12596.88, 19-Mar-2013
910,Revenue,CCHD,Bed Purchasing - Elderly - South,Nursing Homes,Horfield Care Limited,3652.6, 20-Mar-2013
911,Revenue,CCHD,Bed Purchasing - Elderly - North,Nursing Homes,Horfield Care Limited,2962.52, 20-Mar-2013
912,Revenue,CCHD,Frenchay Hospital Purchasing,Nursing Homes,Horfield Care Limited,2988.48, 20-Mar-2013
913,Revenue,CCHD,Southmead Hospital Purchasing,Nursing Homes,Horfield Care Limited,6464.81, 20-Mar-2013
914,Revenue,CCHD,Home Care - Elderly - North,Private & Voluntary Home Care,Housing 21,37028.34, 08-Mar-2013
915,Revenue,CCHD,Supporting People Programme,Grants to Voluntary Bodies,Housing 21,912.61, 01-Mar-2013
916,Revenue,CCHD,Supporting People Programme,Grants to Voluntary Bodies,Housing 21,601.61, 01-Mar-2013
917,Revenue,CCHD,Home Care - Elderly - South,Private & Voluntary Home Care,Housing 21,23516.42, 01-Mar-2013
918,Revenue,CCHD,Home Care - Elderly - South,Private & Voluntary Home Care,Housing 21,23516.42, 28-Mar-2013
919,Revenue,CCHD,Care Management Team - South,Agency Staff (Operational)/PCT Pay,IPE,3745.86, 01-Mar-2013
920,Revenue,CCHD,Care Management Team - South,Agency Staff (Operational)/PCT Pay,IPE,2757.18, 08-Mar-2013
921,Revenue,CCHD,Social Lettings Agency,Other Supplies & Services,Individual,655.41, 11-Mar-2013
922,Revenue,CCHD,Alexandra Way,Furniture & Fittings Loose,J&P Healthcare LLP,1354.48, 01-Mar-2013
923,Revenue,CCHD,Southmead Hospital Purchasing,Nursing Homes,Jasmine Court,2443.92, 19-Mar-2013
924,Revenue,CCHD,Bed Purchasing - Under 65s PWLD - South,Residential Homes,Julia Simone- Supp. Ind.,3529.24, 19-Mar-2013
925,Revenue,CCHD,Bed purchasing -S28A  Under 65 - North,Residential Homes,Julia Simone- Supp. Ind.,3411.16, 19-Mar-2013
926,Revenue,CCHD,Bed Purchasing - Elderly - South,Residential Homes,Karenza Ltd,1716, 19-Mar-2013
927,Revenue,CCHD,Bed Purchasing - Elderly - North,Residential Homes,Katherine House,1192.12, 19-Mar-2013
928,Revenue,CCHD,Home Care - Elderly - North,Other Small Contracts,Kensington Community Care,644.28, 28-Mar-2013
929,Revenue,CCHD,Bed purchasing - Elderly S117 - South,Residential Homes,Kenver House Residential Home,1879.04, 19-Mar-2013
930,Revenue,CCHD,Frenchay Hospital Purchasing,Residential Homes,Kenver House Residential Home,2114.96, 19-Mar-2013
931,Revenue,CCHD,Bed purchasing - Elderly S117 - South,Residential Homes,Kenver House Residential Home,1879.04, 19-Mar-2013
932,Revenue,CCHD,Bed Purchasing - Elderly MH - South,Residential Homes,Kenver House Residential Home,1273.72, 19-Mar-2013
933,Revenue,CCHD,Bed Purchasing - Elderly S117- North,Residential Homes,Kenver House Residential Home,1880, 19-Mar-2013
934,Revenue,CCHD,Southmead Hospital Purchasing,Residential Homes,Kenver House Residential Home,1638.16, 19-Mar-2013
935,Revenue,CCHD,Bed Purchasing - Elderly - South,Residential Homes,Kenver House Residential Home,1638.16, 19-Mar-2013
936,Revenue,CCHD,Southmead Hospital Purchasing,Residential Homes,Kenver House Residential Home,1172.32, 19-Mar-2013
937,Revenue,CCHD,Frenchay Hospital Purchasing,Residential Homes,Kenver House Residential Home,1638.16, 19-Mar-2013
938,Revenue,CCHD,Bed Purchasing - Elderly MH - South,Residential Homes,Kenver House Residential Home,1184.36, 19-Mar-2013
939,Revenue,CCHD,Frenchay Hospital Purchasing,Residential Homes,Kenver House Residential Home,1410.6, 19-Mar-2013
940,Revenue,CCHD,Bed Purchasing - Elderly MH - South,Residential Homes,Kenver House Residential Home,1167.88, 19-Mar-2013
941,Revenue,CCHD,Bed Purchasing - Elderly MH - South,Residential Homes,Kenver House Residential Home,1402.24, 19-Mar-2013
942,Revenue,CCHD,Bed Purchasing - Elderly - South,Residential Homes,Kenver House Residential Home,1529.44, 19-Mar-2013
943,Revenue,CCHD,Frenchay Hospital Purchasing,Residential Homes,Kenver House Residential Home,1561.28, 19-Mar-2013
944,Revenue,CCHD,Bed Purchasing - Elderly - South,Residential Homes,Kenver House Residential Home,1638.16, 19-Mar-2013
945,Revenue,CCHD,Frenchay Hospital Purchasing,Residential Homes,Kenver House Residential Home,1522, 19-Mar-2013
946,Revenue,CCHD,Supporting People Programme,Grants to Voluntary Bodies,Keyring Living Support Networks,2847.11, 01-Mar-2013
947,Revenue,CCHD,Supporting People Programme,Grants to Voluntary Bodies,Kingswood Young Homeless Project,17125, 01-Mar-2013
948,Revenue,CCHD,Bed purchasing - Under 65s PWLD - North,Residential Homes,Kisimul Group,11255.24, 19-Mar-2013
949,Revenue,CCHD,Supporting People Programme,Grants to Voluntary Bodies,Knightstone Housing Association Limited,1433.33, 01-Mar-2013
950,Revenue,CCHD,Supporting People Programme,Grants to Voluntary Bodies,Knightstone Housing Association Limited,28936.03, 01-Mar-2013
951,Revenue,CCHD,Supporting People Programme,Grants to Voluntary Bodies,Knightstone Housing Association Limited,2173.77, 01-Mar-2013
952,Revenue,CCHD,Supporting People Programme,Grants to Voluntary Bodies,Knightstone Housing Association Limited,4847.07, 01-Mar-2013
953,Revenue,CCHD,Supporting People Programme,Grants to Voluntary Bodies,Knightstone Housing Association Limited,1866, 01-Mar-2013
954,Revenue,CCHD,Home Care - Elderly - South,Other Small Contracts,Kumari Care Limited,3877.3, 05-Mar-2013
955,Revenue,CCHD,Home Care - Elderly - North,Other Small Contracts,Kumari Care Limited,834.77, 05-Mar-2013
956,Revenue,CCHD,Day Care - South,Private & Voluntary Day Care,Kumari Care Limited,168.08, 05-Mar-2013
957,Revenue,CCHD,Under 65s -MH  Home Care Purch,Other Small Contracts,Kumari Care Limited,252.12, 05-Mar-2013
958,Revenue,CCHD,PWLD Home Care - Under 65 - KH,Private & Voluntary Home Care,Kumari Care Limited,344.82, 05-Mar-2013
959,Revenue,CCHD,Home Care - Elderly - South,Other Small Contracts,Kumari Care Limited,4011, 13-Mar-2013
960,Revenue,CCHD,Home Care - Elderly - North,Other Small Contracts,Kumari Care Limited,827.13, 13-Mar-2013
961,Revenue,CCHD,Day Care - South,Private & Voluntary Day Care,Kumari Care Limited,168.08, 13-Mar-2013
962,Revenue,CCHD,Under 65s -MH  Home Care Purch,Other Small Contracts,Kumari Care Limited,259.76, 13-Mar-2013
963,Revenue,CCHD,PWLD Home Care - Under 65 - KH,Private & Voluntary Home Care,Kumari Care Limited,76.4, 13-Mar-2013
964,Revenue,CCHD,Home Care - Elderly - South,Other Small Contracts,Kumari Care Limited,4045.38, 18-Mar-2013
965,Revenue,CCHD,Home Care - Elderly - North,Other Small Contracts,Kumari Care Limited,827.13, 18-Mar-2013
966,Revenue,CCHD,Day Care - South,Private & Voluntary Day Care,Kumari Care Limited,164.26, 18-Mar-2013
967,Revenue,CCHD,Under 65s -MH  Home Care Purch,Other Small Contracts,Kumari Care Limited,255.94, 18-Mar-2013
968,Revenue,CCHD,PWLD Home Care - Under 65 - KH,Private & Voluntary Home Care,Kumari Care Limited,319.96, 18-Mar-2013
969,Revenue,CCHD,Private Sector Housing,Software Support & Maintenance,Laserform International Limited,1544, 25-Mar-2013
970,Revenue,CCHD,Social Lettings Agency,Other Supplies & Services,Individual,565, 07-Mar-2013
971,Revenue,CCHD,Social Lettings Agency,Other Supplies & Services,Individual,565, 18-Mar-2013
972,Revenue,CCHD,Bed purchasing - Phys Dis - North,Nursing Homes,Leonard Cheshire  National Account Centr,4915.84, 19-Mar-2013
973,Revenue,CCHD,Bed purchasing - Phys Dis - North,Residential Homes,Leonard Cheshire  National Account Centr,2917.48, 19-Mar-2013
974,Revenue,CCHD,Bed Purchasing - Under 65s PWLD - South,Residential Homes,Leonard Cheshire  National Account Centr,2932.12, 19-Mar-2013
975,Revenue,CCHD,Bed Purchasing - Elderly - North,Nursing Homes,Leonard Cheshire  National Account Centr,3436.6, 19-Mar-2013
976,Revenue,CCHD,Bed purchasing - Phys Dis - North,Nursing Homes,Leonard Cheshire  National Account Centr,2736.6, 19-Mar-2013
977,Revenue,CCHD,Bed Purchasing - Elderly - North,Residential Homes,Leonard Cheshire  National Account Centr,3122.24, 19-Mar-2013
978,Revenue,CCHD,Bed purchasing - Under 65s PWLD - North,Residential Homes,Leonard Cheshire  National Account Centr,5817.08, 19-Mar-2013
979,Revenue,CCHD,Bed purchasing - Under 65s PWLD - North,Residential Homes,Leonard Cheshire  National Account Centr,5815.56, 19-Mar-2013
980,Revenue,CCHD,Bed purchasing - Phys Dis - North,Nursing Homes,Leonard Cheshire  National Account Centr,3183.12, 19-Mar-2013
981,Revenue,CCHD,Bed Purchasing - Elderly - North,Nursing Homes,Leonard Cheshire  National Account Centr,3521.32, 19-Mar-2013
982,Revenue,CCHD,Bed Purchasing - Elderly - South,Nursing Homes,Leonard Cheshire  National Account Centr,2841.24, 19-Mar-2013
983,Revenue,CCHD,Southmead Hospital Purchasing,Nursing Homes,Leonard Cheshire  National Account Centr,2977.88, 19-Mar-2013
984,Revenue,CCHD,South Glos Users in all other LA Homes,Nursing Homes,Leonard Cheshire  National Account Centr,598.4, 19-Mar-2013
985,Revenue,CCHD,Frenchay Hospital Purchasing,Residential Homes,Leonard Cheshire  National Account Centr,3738.32, 19-Mar-2013
986,Revenue,CCHD,Day Care - South,Private & Voluntary Day Care,Leonard Cheshire Disability,8612.73, 07-Mar-2013
987,Revenue,CCHD,Bed Purchasing - Elderly - South,Nursing Homes,Leonard Elms Care Home,1528.76, 19-Mar-2013
988,Revenue,CCHD,SLA Grants - Support Serv,Grants to Voluntary Bodies,Life Cycle UK,4532, 28-Mar-2013
989,Revenue,CCHD,Supported Living - KD,Private & Voluntary Home Care,Lifeways Community Care (Gloucester) Ltd,8792, 25-Mar-2013
990,Revenue,CCHD,Supported Living - KD,Private & Voluntary Home Care,Lifeways Community Care (Gloucester) Ltd,11373, 28-Mar-2013
991,Revenue,CCHD,Bed purchasing - Elderly S117 - South,Residential Homes,Little Croft,1342.86, 19-Mar-2013
992,Revenue,CCHD,Bed Purchasing - Elderly - South,Residential Homes,Little Croft,1239.2, 19-Mar-2013
993,Revenue,CCHD,Bed Purchasing - Elderly - South,Residential Homes,Little Croft,1431.48, 19-Mar-2013
994,Revenue,CCHD,Bed Purchasing - Elderly - South,Residential Homes,Little Croft,1838.36, 19-Mar-2013
995,Revenue,CCHD,Bed Purchasing - Elderly - South,Residential Homes,Little Croft,1270.68, 19-Mar-2013
996,Revenue,CCHD,Frenchay Hospital Purchasing,Residential Homes,Little Croft,1059.32, 19-Mar-2013
997,Revenue,CCHD,Bed Purchasing - Elderly MH - South,Residential Homes,Little Croft,1172.88, 19-Mar-2013
998,Revenue,CCHD,Southmead Hospital Purchasing,Residential Homes,Little Croft,1202.52, 19-Mar-2013
999,Revenue,CCHD,Southmead Hospital Purchasing,Residential Homes,Little Croft,1239.2, 19-Mar-2013
1000,Revenue,CCHD,Southmead Hospital Purchasing,Residential Homes,Little Croft,752.37, 19-Mar-2013
1001,Revenue,CCHD,Bed Purchasing - Elderly - South,Residential Homes,Little Croft,1596.08, 19-Mar-2013
1002,Revenue,CCHD,Bed purchasing - Under 65s PWLD - North,Residential Homes,Littlecroft Residential Homes  Longcroft,6524.44, 19-Mar-2013
1003,Revenue,CCHD,Supported Living - PS,Private & Voluntary Home Care,Lloyds TSB Commercial Finance Limited,3497.44, 15-Mar-2013
1004,Revenue,CCHD,Supported Living - PS,Private & Voluntary Home Care,Lloyds TSB Commercial Finance Limited,3585.04, 15-Mar-2013
1005,Revenue,CCHD,Supported Living - PS,Private & Voluntary Home Care,Lloyds TSB Commercial Finance Limited,3514.72, 15-Mar-2013
1006,Revenue,CCHD,Supported Living - PS,Private & Voluntary Home Care,Lloyds TSB Commercial Finance Limited,5562.8, 15-Mar-2013
1007,Revenue,CCHD,Supported Living - PS,Private & Voluntary Home Care,Lloyds TSB Commercial Finance Limited,3518.56, 15-Mar-2013
1008,Revenue,CCHD,Supported Living - PS,Private & Voluntary Home Care,Lloyds TSB Commercial Finance Limited,3725.36, 15-Mar-2013
1009,Revenue,CCHD,Home Care - Elderly - South,Other Small Contracts,Lloyds TSB Commercial Finance Limited,650.16, 22-Mar-2013
1010,Revenue,CCHD,Home Care - Elderly - North,Other Small Contracts,Lloyds TSB Commercial Finance Limited,7225.29, 22-Mar-2013
1011,Revenue,CCHD,Day Care - South,Private & Voluntary Day Care,Lloyds TSB Commercial Finance Limited,247.68, 22-Mar-2013
1012,Revenue,CCHD,Day Care - North,Private & Voluntary Day Care,Lloyds TSB Commercial Finance Limited,212.85, 22-Mar-2013
1013,Revenue,CCHD,Home Care - Elderly - South,Other Small Contracts,Lloyds TSB Commercial Finance Limited,688.86, 08-Mar-2013
1014,Revenue,CCHD,Home Care - Elderly - North,Other Small Contracts,Lloyds TSB Commercial Finance Limited,5986.89, 08-Mar-2013
1015,Revenue,CCHD,Day Care - South,Private & Voluntary Day Care,Lloyds TSB Commercial Finance Limited,247.68, 08-Mar-2013
1016,Revenue,CCHD,Day Care - North,Private & Voluntary Day Care,Lloyds TSB Commercial Finance Limited,189.63, 08-Mar-2013
1017,Revenue,CCHD,Home Care - Elderly - South,Other Small Contracts,Lloyds TSB Commercial Finance Limited,828.18, 22-Mar-2013
1018,Revenue,CCHD,Home Care - Elderly - North,Other Small Contracts,Lloyds TSB Commercial Finance Limited,6420.33, 22-Mar-2013
1019,Revenue,CCHD,Day Care - South,Private & Voluntary Day Care,Lloyds TSB Commercial Finance Limited,216.72, 22-Mar-2013
1020,Revenue,CCHD,Day Care - North,Private & Voluntary Day Care,Lloyds TSB Commercial Finance Limited,224.46, 22-Mar-2013
1021,Revenue,CCHD,Supported Living - PS,Private & Voluntary Home Care,Lloyds TSB Commercial Finance Limited,3403.84, 15-Mar-2013
1022,Revenue,CCHD,Supported Living - PS,Private & Voluntary Home Care,Lloyds TSB Commercial Finance Limited,3356.56, 15-Mar-2013
1023,Revenue,CCHD,Supported Living - PS,Private & Voluntary Home Care,Lloyds TSB Commercial Finance Limited,3272.08, 15-Mar-2013
1024,Revenue,CCHD,Supported Living - PS,Private & Voluntary Home Care,Lloyds TSB Commercial Finance Limited,3323.2, 15-Mar-2013
1025,Revenue,CCHD,Supported Living - PS,Private & Voluntary Home Care,Lloyds TSB Commercial Finance Limited,3196.48, 15-Mar-2013
1026,Revenue,CCHD,Home Care - Elderly - South,Other Small Contracts,Lloyds TSB Commercial Finance Limited,820.44, 28-Mar-2013
1027,Revenue,CCHD,Home Care - Elderly - North,Other Small Contracts,Lloyds TSB Commercial Finance Limited,5971.41, 28-Mar-2013
1028,Revenue,CCHD,Day Care - South,Private & Voluntary Day Care,Lloyds TSB Commercial Finance Limited,201.24, 28-Mar-2013
1029,Revenue,CCHD,Day Care - North,Private & Voluntary Day Care,Lloyds TSB Commercial Finance Limited,174.15, 28-Mar-2013
1030,Revenue,CCHD,Home Care - Elderly - South,Other Small Contracts,Lloyds TSB Commercial Finance Limited,375.39, 27-Mar-2013
1031,Revenue,CCHD,Home Care - Elderly - North,Other Small Contracts,Lloyds TSB Commercial Finance Limited,7706.34, 27-Mar-2013
1032,Revenue,CCHD,Day Care - South,Private & Voluntary Day Care,Lloyds TSB Commercial Finance Limited,243.81, 27-Mar-2013
1033,Revenue,CCHD,Day Care - North,Private & Voluntary Day Care,Lloyds TSB Commercial Finance Limited,181.89, 27-Mar-2013
1034,Revenue,CCHD,Supported Living - PS,Private & Voluntary Home Care,Loga Care Ltd T/A Logacre,3795.33, 01-Mar-2013
1035,Revenue,CCHD,Supported Living - PS,Private & Voluntary Home Care,Loga Care Ltd T/A Logacre,3428.04, 28-Mar-2013
1036,Revenue,CCHD,Bed Purchasing - Under 65s PWLD - South,Residential Homes,Longton Court,9508.88, 19-Mar-2013
1037,Revenue,CCHD,Social Lettings Agency,Other Supplies & Services,Individual,565, 01-Mar-2013
1038,Revenue,CCHD,Social Lettings Agency,Other Supplies & Services,Individual,565, 28-Mar-2013
1039,Revenue,CCHD,Southmead Hospital Purchasing,Nursing Homes,Majestic 3 Limited,1001.96, 19-Mar-2013
1040,Revenue,CCHD,Section 117 Placements MH Younger,Residential Homes,Manor Community Care Home,2696, 19-Mar-2013
1041,Revenue,CCHD,Frenchay Hospital Purchasing,Residential Homes,Manor Cottage,696.6, 19-Mar-2013
1042,Revenue,CCHD,Southmead Hospital Purchasing,Residential Homes,Manor Cottage,2301.37, 19-Mar-2013
1043,Revenue,CCHD,Bed Purchasing - Elderly - South,Residential Homes,Manor Cottage,1424.84, 19-Mar-2013
1044,Revenue,CCHD,Southmead Hospital Purchasing,Residential Homes,Manor Cottage,1858.8, 19-Mar-2013
1045,Revenue,CCHD,Southmead Hospital Purchasing,Residential Homes,Manor Cottage,1239.2, 19-Mar-2013
1046,Revenue,CCHD,Bed Purchasing - Elderly - South,Residential Homes,Manor Cottage,1437.28, 19-Mar-2013
1047,Revenue,CCHD,Bed Purchasing - Elderly - North,Residential Homes,Manton Hall Residential Home,1484.32, 19-Mar-2013
1048,Revenue,CCHD,Supported Living - KD,Private & Voluntary Home Care,Maples Community Care Limited,658.36, 15-Mar-2013
1049,Revenue,CCHD,Younger MH non-res purchasing,Private & Voluntary Day Care,Maples Community Care Limited,569.52, 15-Mar-2013
1050,Revenue,CCHD,Section 117 Placements MH Younger,Private & Voluntary Day Care,Maples Community Care Limited,1797.88, 15-Mar-2013
1051,Revenue,CCHD,Supporting People Programme,Grants to Voluntary Bodies,Maples Community Housing Limited,2652.15, 01-Mar-2013
1052,Revenue,CCHD,Social Lettings Agency,Other Supplies & Services,Individual,655.41, 20-Mar-2013
1053,Revenue,CCHD,Non Priority Bond Scheme,Other Supplies & Services,Mark Gibbs,625, 18-Mar-2013
1054,Revenue,CCHD,Bed Purchasing - Under 65s PWLD - South,Residential Homes,Marsden Healthcare Limited,894.48, 15-Mar-2013
1055,Revenue,CCHD,Bed purchasing - Elderly PWLD - South,Residential Homes,Marsden Healthcare Limited,3177.12, 15-Mar-2013
1056,Revenue,CCHD,Bed purchasing - Elderly PWLD - South,Residential Homes,Marsden Healthcare Limited,1496.2, 15-Mar-2013
1057,Revenue,CCHD,Bed Purchasing - Elderly MH - South,Nursing Homes,Meadow Care Home,2934.56, 19-Mar-2013
1058,Revenue,CCHD,Home Care - Elderly - South,Private & Voluntary Home Care,Mears Care,48154.25, 28-Mar-2013
1059,Revenue,CCHD,Home Care - Elderly - South,Other Small Contracts,Mears Care,600.24, 28-Mar-2013
1060,Revenue,CCHD,Home Care - Elderly - North,Other Small Contracts,Mears Care,6353.76, 28-Mar-2013
1061,Revenue,CCHD,Day Care - South,Private & Voluntary Day Care,Mears Care,91.5, 28-Mar-2013
1062,Revenue,CCHD,Day Care - North,Private & Voluntary Day Care,Mears Care,259.86, 28-Mar-2013
1063,Revenue,CCHD,Under 65s -MH  Home Care Purch,Other Small Contracts,Mears Care,109.8, 28-Mar-2013
1064,Revenue,CCHD,Home care - Elderly MH - North,Other Small Contracts,Mears Care,314.76, 28-Mar-2013
1065,Revenue,CCHD,Home Care - Elderly LD - KH,Private & Voluntary Home Care,Mears Care,51.24, 28-Mar-2013
1066,Revenue,CCHD,Home Care - Elderly - South,Other Small Contracts,Mears Care,611.22, 11-Mar-2013
1067,Revenue,CCHD,Home Care - Elderly - North,Other Small Contracts,Mears Care,6298.86, 11-Mar-2013
1068,Revenue,CCHD,Day Care - South,Private & Voluntary Day Care,Mears Care,87.84, 11-Mar-2013
1069,Revenue,CCHD,Day Care - North,Private & Voluntary Day Care,Mears Care,234.24, 11-Mar-2013
1070,Revenue,CCHD,Under 65s -MH  Home Care Purch,Other Small Contracts,Mears Care,95.16, 11-Mar-2013
1071,Revenue,CCHD,Home care - Elderly MH - North,Other Small Contracts,Mears Care,640.5, 11-Mar-2013
1072,Revenue,CCHD,Home Care - Elderly LD - KH,Private & Voluntary Home Care,Mears Care,51.24, 11-Mar-2013
1073,Revenue,CCHD,Home Care - Elderly - North,Other Small Contracts,Medacs Home Care,664.14, 26-Mar-2013
1074,Revenue,CCHD,Home care - Elderly MH - North,Other Small Contracts,Medacs Home Care,128.02, 26-Mar-2013
1075,Revenue,CCHD,Home Care - Elderly - North,Other Small Contracts,Medacs Home Care,726.42, 26-Mar-2013
1076,Revenue,CCHD,Home care - Elderly MH - North,Other Small Contracts,Medacs Home Care,128.02, 26-Mar-2013
1077,Revenue,CCHD,Home Care - Elderly - North,Other Small Contracts,Medacs Home Care,594.88, 26-Mar-2013
1078,Revenue,CCHD,Home care - Elderly MH - North,Other Small Contracts,Medacs Home Care,100.34, 26-Mar-2013
1079,Revenue,CCHD,Home Care - Elderly - North,Other Small Contracts,Medacs Home Care,756.96, 26-Mar-2013
1080,Revenue,CCHD,Home care - Elderly MH - North,Other Small Contracts,Medacs Home Care,128.02, 26-Mar-2013
1081,Revenue,CCHD,Home Care - Elderly - North,Other Small Contracts,Medacs Home Care,657.22, 26-Mar-2013
1082,Revenue,CCHD,Home care - Elderly MH - North,Other Small Contracts,Medacs Home Care,128.02, 26-Mar-2013
1083,Revenue,CCHD,Home Care - Elderly - North,Other Small Contracts,Medacs Home Care,695.46, 26-Mar-2013
1084,Revenue,CCHD,Home care - Elderly MH - North,Other Small Contracts,Medacs Home Care,141.86, 26-Mar-2013
1085,Revenue,CCHD,Home Care - Elderly - North,Other Small Contracts,Medacs Home Care,664.14, 26-Mar-2013
1086,Revenue,CCHD,Home care - Elderly MH - North,Other Small Contracts,Medacs Home Care,128.02, 26-Mar-2013
1087,Revenue,CCHD,NRS Contract,Daily Living Equipment,Medequip Assistive Technology Ltd,28860.04, 22-Mar-2013
1088,Revenue,CCHD,NRS Contract,Daily Living Equipment,Medequip Assistive Technology Ltd,65568.6, 22-Mar-2013
1089,Revenue,CCHD,Bed Purchasing - Under 65s PWLD - South,Residential Homes,Mencap,2198.88, 19-Mar-2013
1090,Revenue,CCHD,Supported Living (S28a) South,Private & Voluntary Home Care,Mencap - PS North,3751.02, 19-Mar-2013
1091,Revenue,CCHD,Supported Living (S28a) South,Private & Voluntary Home Care,Mencap - PS North,3751.02, 19-Mar-2013
1092,Revenue,CCHD,Supported Living (S28a) South,Private & Voluntary Home Care,Mencap - PS North,3751.02, 19-Mar-2013
1093,Revenue,CCHD,Supported Living (S28a) South,Private & Voluntary Home Care,Mencap - PS North,3751.02, 19-Mar-2013
1094,Revenue,CCHD,Learning Difficulties Development Fund,Other Supplies & Services,Mencap Employment,2112, 05-Mar-2013
1095,Revenue,CCHD,Supporting People Programme,Grants to Voluntary Bodies,Merlin Housing Society,1016.8, 01-Mar-2013
1096,Revenue,CCHD,Supporting People Programme,Grants to Voluntary Bodies,Merlin Housing Society,15252, 01-Mar-2013
1097,Revenue,CCHD,Supporting People Programme,Grants to Voluntary Bodies,Merlin Housing Society,2399.99, 01-Mar-2013
1098,Revenue,CCHD,Supporting People Programme,Grants to Voluntary Bodies,Merlin Housing Society,50840, 01-Mar-2013
1099,Revenue,CCHD,Supported Living - KD,Private & Voluntary Home Care,MHA & MCA Law Ltd,1800, 08-Mar-2013
1100,Revenue,CCHD,Frenchay Hospital Purchasing,Residential Homes,Milburn Finance,1035.6, 19-Mar-2013
1101,Revenue,CCHD,Home Care - Elderly - South,Other Small Contracts,Milestones Outreach Dementia Services,1306.44, 11-Mar-2013
1102,Revenue,CCHD,Home Care - Elderly - North,Other Small Contracts,Milestones Outreach Dementia Services,427.84, 11-Mar-2013
1103,Revenue,CCHD,Day Care - South,Private & Voluntary Day Care,Milestones Outreach Dementia Services,64.94, 11-Mar-2013
1104,Revenue,CCHD,Day Care - North,Private & Voluntary Day Care,Milestones Outreach Dementia Services,168.72, 11-Mar-2013
1105,Revenue,CCHD,Home care - Elderly MH - North,Other Small Contracts,Milestones Outreach Dementia Services,80.22, 11-Mar-2013
1106,Revenue,CCHD,Elderly MH Day Care North,Private & Voluntary Day Care,Milestones Outreach Dementia Services,148.98, 11-Mar-2013
1107,Revenue,CCHD,Home Care - Elderly - South,Other Small Contracts,Milestones Outreach Dementia Services,1673.16, 11-Mar-2013
1108,Revenue,CCHD,Home Care - Elderly - North,Other Small Contracts,Milestones Outreach Dementia Services,420.2, 11-Mar-2013
1109,Revenue,CCHD,Day Care - South,Private & Voluntary Day Care,Milestones Outreach Dementia Services,61.12, 11-Mar-2013
1110,Revenue,CCHD,Day Care - North,Private & Voluntary Day Care,Milestones Outreach Dementia Services,109.44, 11-Mar-2013
1111,Revenue,CCHD,Home care - Elderly MH - North,Other Small Contracts,Milestones Outreach Dementia Services,84.04, 11-Mar-2013
1112,Revenue,CCHD,Elderly MH Day Care North,Private & Voluntary Day Care,Milestones Outreach Dementia Services,156.62, 11-Mar-2013
1113,Revenue,CCHD,Supported Living - KD,Private & Voluntary Home Care,Milestones Trust,939, 01-Mar-2013
1114,Revenue,CCHD,Elderly MH Day Care South,Private & Voluntary Day Care,Milestones Trust,680, 01-Mar-2013
1115,Revenue,CCHD,Supported Living - KD,Private & Voluntary Home Care,Milestones Trust,1953.63, 07-Mar-2013
1116,Revenue,CCHD,Purchase of Non-Res Care - KD,Private & Voluntary Day Care,Milestones Trust,1353.78, 14-Mar-2013
1117,Revenue,CCHD,Supported Living - KD,Private & Voluntary Home Care,Milestones Trust,571.4, 14-Mar-2013
1118,Revenue,CCHD,Supported Living - KD,Private & Voluntary Home Care,Milestones Trust,5249.72, 13-Mar-2013
1119,Revenue,CCHD,Purchase of Non-Res Care - PS,Private & Voluntary Day Care,Milestones Trust,1991.68, 01-Mar-2013
1120,Revenue,CCHD,Purchase of Non-Res Care - PS,Private & Voluntary Day Care,Milestones Trust,565.5, 01-Mar-2013
1121,Revenue,CCHD,Purchase of Non-Res Care - PS,Private & Voluntary Day Care,Milestones Trust,1452.84, 01-Mar-2013
1122,Revenue,CCHD,Purchase of Non-Res Care - PS,Private & Voluntary Day Care,Milestones Trust,1273.86, 01-Mar-2013
1123,Revenue,CCHD,Purchase of Non-Res Care - PS,Private & Voluntary Day Care,Milestones Trust,1511.67, 01-Mar-2013
1124,Revenue,CCHD,Supported Living - PS,Private & Voluntary Home Care,Milestones Trust,612.75, 01-Mar-2013
1125,Revenue,CCHD,Purchase of Non-Res Care - PS,Private & Voluntary Day Care,Milestones Trust,1691.21, 01-Mar-2013
1126,Revenue,CCHD,Purchase of Non-Res Care - PS,Private & Voluntary Day Care,Milestones Trust,2069.63, 01-Mar-2013
1127,Revenue,CCHD,Purchase of Non-Res Care - PS,Private & Voluntary Day Care,Milestones Trust,2760.25, 01-Mar-2013
1128,Revenue,CCHD,Purchase of Non-Res Care - PS,Private & Voluntary Day Care,Milestones Trust,613.31, 01-Mar-2013
1129,Revenue,CCHD,Purchase of Non-Res Care - PS,Private & Voluntary Day Care,Milestones Trust,1974.67, 01-Mar-2013
1130,Revenue,CCHD,Purchase of Non-Res Care - PS,Private & Voluntary Day Care,Milestones Trust,594.09, 01-Mar-2013
1131,Revenue,CCHD,Purchase of Non-Res Care - PS,Private & Voluntary Day Care,Milestones Trust,1473.71, 01-Mar-2013
1132,Revenue,CCHD,Purchase of Non-Res Care - PS,Private & Voluntary Day Care,Milestones Trust,1753.96, 01-Mar-2013
1133,Revenue,CCHD,Purchase of Non-Res Care - PS,Private & Voluntary Day Care,Milestones Trust,1243.86, 01-Mar-2013
1134,Revenue,CCHD,Supported Living - PS,Private & Voluntary Home Care,Milestones Trust,2190, 01-Mar-2013
1135,Revenue,CCHD,Purchase of Non-Res Care - PS,Private & Voluntary Day Care,Milestones Trust,1582.77, 01-Mar-2013
1136,Revenue,CCHD,Supported Living - PS,Private & Voluntary Home Care,Milestones Trust,2796.43, 01-Mar-2013
1137,Revenue,CCHD,Supported Living - PS,Private & Voluntary Home Care,Milestones Trust,2715.36, 12-Mar-2013
1138,Revenue,CCHD,Elderly MH Day Care South,Private & Voluntary Day Care,Milestones Trust,640, 22-Mar-2013
1139,Revenue,CCHD,Supported Living (S28a) North,Private & Voluntary Home Care,Milestones Trust,990, 28-Mar-2013
1140,Revenue,CCHD,Bed purchasing - Elderly S117 - South,Nursing Homes,Mimosa Healthcare Holdings Ltd,1919.72, 19-Mar-2013
1141,Revenue,CCHD,Frenchay Hospital Purchasing,Nursing Homes,Mimosa Healthcare Holdings Ltd,1295.2, 19-Mar-2013
1142,Revenue,CCHD,Bed purchasing - Elderly MH - North,Nursing Homes,Mimosa Healthcare Holdings Ltd,862.52, 19-Mar-2013
1143,Revenue,CCHD,Frenchay Hospital Purchasing,Nursing Homes,Mimosa Healthcare Holdings Ltd,1282, 19-Mar-2013
1144,Revenue,CCHD,Frenchay Hospital Purchasing,Nursing Homes,Mimosa Healthcare Holdings Ltd,641, 19-Mar-2013
1145,Revenue,CCHD,Bed Purchasing - Elderly - South,Nursing Homes,Mimosa Healthcare Holdings Ltd,959.72, 19-Mar-2013
1146,Revenue,CCHD,Southmead Hospital Purchasing,Residential Homes,Mimosa Healthcare Holdings Ltd,1403.2, 19-Mar-2013
1147,Revenue,CCHD,Frenchay Hospital Purchasing,Nursing Homes,Mimosa Healthcare Holdings Ltd,1100.24, 19-Mar-2013
1148,Revenue,CCHD,SLA Grants - Support Serv,Grants to Voluntary Bodies,Mo Dymond Support Groups,2000, 28-Mar-2013
1149,Revenue,CCHD,SLA Grants - Support Serv,Grants to Voluntary Bodies,Mo Dymond Support Groups,2000, 28-Mar-2013
1150,Revenue,CCHD,SLA Grants - Support Serv,Grants to Voluntary Bodies,Mo Dymond Support Groups,2000, 28-Mar-2013
1151,Revenue,CCHD,Bed Purchasing - LD S28A- Over 65- South,Nursing Homes,Mortimer House Nursing Home,2996.52, 19-Mar-2013
1152,Revenue,CCHD,Bed Purchasing - LD S28A- Over 65- South,Nursing Homes,Mortimer House Nursing Home,2553.84, 19-Mar-2013
1153,Revenue,CCHD,Bed Purchasing - LD S28A- Over 65- South,Nursing Homes,Mortimer House Nursing Home,3271.92, 19-Mar-2013
1154,Revenue,CCHD,Bed Purchasing - S28A - Over 65- North,Nursing Homes,Mortimer House Nursing Home,3619.2, 19-Mar-2013
1155,Revenue,CCHD,Bed Purchasing - S28A - Over 65- North,Nursing Homes,Mortimer House Nursing Home,3619.2, 19-Mar-2013
1156,Revenue,CCHD,Bed purchasing - Elderly S117 - South,Residential Homes,Mostyn Lodge Residential Home,1880, 19-Mar-2013
1157,Revenue,CCHD,Frenchay Hospital Purchasing,Residential Homes,Mostyn Lodge Residential Home,622.96, 19-Mar-2013
1158,Revenue,CCHD,Supported Living - PS,Private & Voluntary Home Care,Moving On,3711.51, 22-Mar-2013
1159,Revenue,CCHD,Supported Living - PS,Private & Voluntary Home Care,Moving On,3344.56, 22-Mar-2013
1160,Revenue,CCHD,Supported Living - PS,Private & Voluntary Home Care,Moving On,6549.77, 22-Mar-2013
1161,Revenue,CCHD,Supported Living - PS,Private & Voluntary Home Care,Moving On,5935.61, 22-Mar-2013
1162,Revenue,CCHD,Social Lettings Agency,Other Supplies & Services,Individual,565, 22-Mar-2013
1163,Revenue,CCHD,Social Lettings Agency,Other Supplies & Services,Individual,655.41, 28-Mar-2013
1164,Revenue,CCHD,Social Lettings Agency,Other Supplies & Services,Individual,850, 12-Mar-2013
1165,Revenue,CCHD,Bed Purchasing - Under 65s PWLD - South,Residential Homes,Mr J Davis & Mrs S Davis,958.76, 26-Mar-2013
1166,Revenue,CCHD,Social Lettings Agency,Other Supplies & Services,Individual,565, 08-Mar-2013
1167,Revenue,CCHD,Social Lettings Agency,Other Supplies & Services,Individual,632.81, 20-Mar-2013
1168,Revenue,CCHD,Social Lettings Agency,Other Supplies & Services,Individual,551.44, 08-Mar-2013
1169,Revenue,CCHD,Social Lettings Agency,Other Supplies & Services,Individual,565, 01-Mar-2013
1170,Revenue,CCHD,Social Lettings Agency,Other Supplies & Services,Individual,565, 28-Mar-2013
1171,Revenue,CCHD,Social Lettings Agency,Other Supplies & Services,Individual,672.8, 15-Mar-2013
1172,Revenue,CCHD,Social Lettings Agency,Other Supplies & Services,Individual,632.81, 13-Mar-2013
1173,Revenue,CCHD,Purchase of Non-Res Care - KD,Private & Voluntary Day Care,Mrs B Kimber,650.1, 07-Mar-2013
1174,Revenue,CCHD,Supported Living - KD,Private & Voluntary Home Care,Mrs B Kimber,1182.39, 08-Mar-2013
1175,Revenue,CCHD,Supported Living - PS,Private & Voluntary Home Care,Mrs B Kimber,7776.64, 22-Mar-2013
1176,Revenue,CCHD,Day Care - South,Private & Voluntary Day Care,Mrs B Kimber,831.18, 21-Mar-2013
1177,Revenue,CCHD,Supported Living - PS,Private & Voluntary Home Care,Mrs B Kimber,9582.84, 20-Mar-2013
1178,Revenue,CCHD,Day Care - North,Private & Voluntary Day Care,Mrs B Kimber,543.24, 18-Mar-2013
1179,Revenue,CCHD,Purchase of Non-Res Care - KD,Private & Voluntary Day Care,Mrs B Kimber,719.04, 25-Mar-2013
1180,Revenue,CCHD,Purchase of Non-Res Care - PS,Private & Voluntary Day Care,Mrs B Kimber,1076.46, 20-Mar-2013
1181,Revenue,CCHD,Supported Living - KD,Private & Voluntary Home Care,Mrs B Kimber,561.6, 12-Mar-2013
1182,Revenue,CCHD,Home Care - Elderly - South,Other Small Contracts,Mrs B Kimber - Stepping Stones,6067.13, 04-Mar-2013
1183,Revenue,CCHD,Home Care - Elderly - North,Other Small Contracts,Mrs B Kimber - Stepping Stones,3536.82, 04-Mar-2013
1184,Revenue,CCHD,Day Care - South,Private & Voluntary Day Care,Mrs B Kimber - Stepping Stones,545.36, 04-Mar-2013
1185,Revenue,CCHD,Day Care - North,Private & Voluntary Day Care,Mrs B Kimber - Stepping Stones,168.42, 04-Mar-2013
1186,Revenue,CCHD,Home care - Elderly MH - North,Other Small Contracts,Mrs B Kimber - Stepping Stones,36.09, 04-Mar-2013
1187,Revenue,CCHD,Elderly MH Day Care North,Private & Voluntary Day Care,Mrs B Kimber - Stepping Stones,96.24, 04-Mar-2013
1188,Revenue,CCHD,Home care - Elderly MH - South,Other Small Contracts,Mrs B Kimber - Stepping Stones,192.48, 04-Mar-2013
1189,Revenue,CCHD,Supported Living - KD,Private & Voluntary Home Care,Mrs B Kimber - Stepping Stones,850.12, 04-Mar-2013
1190,Revenue,CCHD,Home Care - LD Under 65 - North,Private & Voluntary Home Care,Mrs B Kimber - Stepping Stones,192.48, 04-Mar-2013
1191,Revenue,CCHD,PWLD Home Care - Under 65 - KH,Private & Voluntary Home Care,Mrs B Kimber - Stepping Stones,88.22, 04-Mar-2013
1192,Revenue,CCHD,Home Care - Elderly LD - North,Private & Voluntary Home Care,Mrs B Kimber - Stepping Stones,894.23, 04-Mar-2013
1193,Revenue,CCHD,Home Care - Elderly - South,Other Small Contracts,Mrs B Kimber - Stepping Stones,6087.18, 05-Mar-2013
1194,Revenue,CCHD,Home Care - Elderly - North,Other Small Contracts,Mrs B Kimber - Stepping Stones,3276.17, 05-Mar-2013
1195,Revenue,CCHD,Day Care - South,Private & Voluntary Day Care,Mrs B Kimber - Stepping Stones,537.34, 05-Mar-2013
1196,Revenue,CCHD,Day Care - North,Private & Voluntary Day Care,Mrs B Kimber - Stepping Stones,28.07, 05-Mar-2013
1197,Revenue,CCHD,Elderly MH Day Care North,Private & Voluntary Day Care,Mrs B Kimber - Stepping Stones,92.23, 05-Mar-2013
1198,Revenue,CCHD,Home care - Elderly MH - South,Other Small Contracts,Mrs B Kimber - Stepping Stones,216.54, 05-Mar-2013
1199,Revenue,CCHD,Supported Living - KD,Private & Voluntary Home Care,Mrs B Kimber - Stepping Stones,781.95, 05-Mar-2013
1200,Revenue,CCHD,PWLD Home Care - Under 65 - KH,Private & Voluntary Home Care,Mrs B Kimber - Stepping Stones,88.22, 05-Mar-2013
1201,Revenue,CCHD,Home Care - Elderly LD - North,Private & Voluntary Home Care,Mrs B Kimber - Stepping Stones,958.39, 05-Mar-2013
1202,Revenue,CCHD,Home Care - Elderly - South,Other Small Contracts,Mrs B Kimber - Stepping Stones,5277.16, 22-Mar-2013
1203,Revenue,CCHD,Home Care - Elderly - North,Other Small Contracts,Mrs B Kimber - Stepping Stones,3568.9, 22-Mar-2013
1204,Revenue,CCHD,Day Care - South,Private & Voluntary Day Care,Mrs B Kimber - Stepping Stones,545.36, 22-Mar-2013
1205,Revenue,CCHD,Day Care - North,Private & Voluntary Day Care,Mrs B Kimber - Stepping Stones,96.24, 22-Mar-2013
1206,Revenue,CCHD,Elderly MH Day Care North,Private & Voluntary Day Care,Mrs B Kimber - Stepping Stones,96.24, 22-Mar-2013
1207,Revenue,CCHD,Home care - Elderly MH - South,Other Small Contracts,Mrs B Kimber - Stepping Stones,216.54, 22-Mar-2013
1208,Revenue,CCHD,Supported Living - KD,Private & Voluntary Home Care,Mrs B Kimber - Stepping Stones,797.99, 22-Mar-2013
1209,Revenue,CCHD,PWLD Home Care - Under 65 - KH,Private & Voluntary Home Care,Mrs B Kimber - Stepping Stones,88.22, 22-Mar-2013
1210,Revenue,CCHD,Home Care - Elderly LD - North,Private & Voluntary Home Care,Mrs B Kimber - Stepping Stones,946.36, 22-Mar-2013
1211,Revenue,CCHD,Home Care - Elderly - South,Other Small Contracts,Mrs B Kimber - Stepping Stones,5513.75, 22-Mar-2013
1212,Revenue,CCHD,Home Care - Elderly - North,Other Small Contracts,Mrs B Kimber - Stepping Stones,3584.94, 22-Mar-2013
1213,Revenue,CCHD,Day Care - South,Private & Voluntary Day Care,Mrs B Kimber - Stepping Stones,493.23, 22-Mar-2013
1214,Revenue,CCHD,Day Care - North,Private & Voluntary Day Care,Mrs B Kimber - Stepping Stones,32.08, 22-Mar-2013
1215,Revenue,CCHD,Elderly MH Day Care North,Private & Voluntary Day Care,Mrs B Kimber - Stepping Stones,48.12, 22-Mar-2013
1216,Revenue,CCHD,Home care - Elderly MH - South,Other Small Contracts,Mrs B Kimber - Stepping Stones,212.53, 22-Mar-2013
1217,Revenue,CCHD,Supported Living - KD,Private & Voluntary Home Care,Mrs B Kimber - Stepping Stones,870.17, 22-Mar-2013
1218,Revenue,CCHD,PWLD Home Care - Under 65 - KH,Private & Voluntary Home Care,Mrs B Kimber - Stepping Stones,84.21, 22-Mar-2013
1219,Revenue,CCHD,Home Care - Elderly LD - North,Private & Voluntary Home Care,Mrs B Kimber - Stepping Stones,870.17, 22-Mar-2013
1220,Revenue,CCHD,Home Care - Elderly - South,Other Small Contracts,Mrs B Kimber - Stepping Stones,5425.53, 25-Mar-2013
1221,Revenue,CCHD,Home Care - Elderly - North,Other Small Contracts,Mrs B Kimber - Stepping Stones,3709.25, 25-Mar-2013
1222,Revenue,CCHD,Day Care - South,Private & Voluntary Day Care,Mrs B Kimber - Stepping Stones,485.21, 25-Mar-2013
1223,Revenue,CCHD,Day Care - North,Private & Voluntary Day Care,Mrs B Kimber - Stepping Stones,100.25, 25-Mar-2013
1224,Revenue,CCHD,Elderly MH Day Care North,Private & Voluntary Day Care,Mrs B Kimber - Stepping Stones,96.24, 25-Mar-2013
1225,Revenue,CCHD,Home care - Elderly MH - South,Other Small Contracts,Mrs B Kimber - Stepping Stones,220.55, 25-Mar-2013
1226,Revenue,CCHD,Supported Living - KD,Private & Voluntary Home Care,Mrs B Kimber - Stepping Stones,785.96, 25-Mar-2013
1227,Revenue,CCHD,PWLD Home Care - Under 65 - KH,Private & Voluntary Home Care,Mrs B Kimber - Stepping Stones,84.21, 25-Mar-2013
1228,Revenue,CCHD,Home Care - Elderly LD - North,Private & Voluntary Home Care,Mrs B Kimber - Stepping Stones,954.38, 25-Mar-2013
1229,Revenue,CCHD,Social Lettings Agency,Other Supplies & Services,Individual,565, 15-Mar-2013
1230,Revenue,CCHD,Social Lettings Agency,Other Supplies & Services,Individual,632.81, 12-Mar-2013
1231,Revenue,CCHD,Social Lettings Agency,Other Supplies & Services,Individual,565, 22-Mar-2013
1232,Revenue,CCHD,Social Lettings Agency,Other Supplies & Services,Individual,565, 01-Mar-2013
1233,Revenue,CCHD,Social Lettings Agency,Other Supplies & Services,Individual,565, 28-Mar-2013
1234,Revenue,CCHD,Social Lettings Agency,Other Supplies & Services,Individual,565, 12-Mar-2013
1235,Revenue,CCHD,Supported Living - KD,Residential Homes,Mrs Julie Taylor,549.89, 08-Mar-2013
1236,Revenue,CCHD,Training - Adult Services,Training Expenses,Mrs Mary Webb,520.75, 18-Mar-2013
1237,Revenue,CCHD,Social Lettings Agency,Other Supplies & Services,Individual,655.41, 15-Mar-2013
1238,Revenue,CCHD,Purchase of Non-Res Care - KD,Private & Voluntary Day Care,Mrs W Thompson,1335.96, 07-Mar-2013
1239,Revenue,CCHD,Purchase of Non-Res Care - KD,Private & Voluntary Day Care,Mrs W Thompson,563.28, 07-Mar-2013
1240,Revenue,CCHD,Social Lettings Agency,Other Supplies & Services,Individual,858.8, 11-Mar-2013
1241,Revenue,CCHD,Woodleaze,Furniture & Fittings Loose,Musbury Fabrics,560.48, 13-Mar-2013
1242,Revenue,CCHD,Alexandra Way,Cleaning & Domestic Services,Muzzell Healthcare,959.44, 20-Mar-2013
1243,Revenue,CCHD,Younger MH non-res purchasing,Private & Voluntary Day Care,NAS Services Limited,1427.6, 01-Mar-2013
1244,Revenue,CCHD,Younger MH non-res purchasing,Private & Voluntary Day Care,NAS Services Limited,783.1, 22-Mar-2013
1245,Revenue,CCHD,Younger MH non-res purchasing,Private & Voluntary Day Care,NAS Services Limited,1065.78, 22-Mar-2013
1246,Revenue,CCHD,Younger MH non-res purchasing,Private & Voluntary Day Care,NAS Services Limited,1136.57, 22-Mar-2013
1247,Revenue,CCHD,Younger MH non-res purchasing,Private & Voluntary Day Care,NAS Services Limited,658.95, 28-Mar-2013
1248,Revenue,CCHD,Younger MH non-res purchasing,Private & Voluntary Day Care,NAS Services Limited,639.85, 28-Mar-2013
1249,Revenue,CCHD,Younger MH non-res purchasing,Private & Voluntary Day Care,NAS Services Limited,549.13, 28-Mar-2013
1250,Revenue,CCHD,Learning Difficulties Development Fund,Other Supplies & Services,NAS Services Limited,7230, 28-Mar-2013
1251,Revenue,CCHD,Training - Adult Services,Training Expenses,NAS Services Limited,4225, 25-Mar-2013
1252,Revenue,CCHD,Bed Purchasing - Under 65s PWLD - South,Residential Homes,National Star College,4547.72, 19-Mar-2013
1253,Revenue,CCHD,Purchase of Non-Res Care - KD,Private & Voluntary Day Care,Natureworks Training Community Interest,1311.81, 01-Mar-2013
1254,Revenue,CCHD,SLA Grants - Support Serv,Grants to Voluntary Bodies,Natureworks Training Community Interest,4820, 25-Mar-2013
1255,Revenue,CCHD,Home Care - Elderly - South,Other Small Contracts,Network Health & Social Care,1190.78, 22-Mar-2013
1256,Revenue,CCHD,Home Care - Elderly - North,Other Small Contracts,Network Health & Social Care,6157.89, 22-Mar-2013
1257,Revenue,CCHD,Day Care - North,Private & Voluntary Day Care,Network Health & Social Care,15.4, 22-Mar-2013
1258,Revenue,CCHD,Home Care - Elderly - South,Other Small Contracts,Network Health & Social Care,1155, 22-Mar-2013
1259,Revenue,CCHD,Home Care - Elderly - North,Other Small Contracts,Network Health & Social Care,3480.49, 22-Mar-2013
1260,Revenue,CCHD,Day Care - North,Private & Voluntary Day Care,Network Health & Social Care,26.95, 22-Mar-2013
1261,Revenue,CCHD,Home Care - Elderly - South,Other Small Contracts,Network Health & Social Care,1162.7, 22-Mar-2013
1262,Revenue,CCHD,Home Care - Elderly - North,Other Small Contracts,Network Health & Social Care,3133.9, 22-Mar-2013
1263,Revenue,CCHD,Day Care - North,Private & Voluntary Day Care,Network Health & Social Care,15.4, 22-Mar-2013
1264,Revenue,CCHD,Home Care - Elderly - South,Other Small Contracts,Network Health & Social Care,1158.85, 22-Mar-2013
1265,Revenue,CCHD,Home Care - Elderly - North,Other Small Contracts,Network Health & Social Care,3834.6, 22-Mar-2013
1266,Revenue,CCHD,Day Care - North,Private & Voluntary Day Care,Network Health & Social Care,30.8, 22-Mar-2013
1267,Revenue,CCHD,Home Care - Elderly - South,Other Small Contracts,Network Health & Social Care,1143.45, 22-Mar-2013
1268,Revenue,CCHD,Home Care - Elderly - North,Other Small Contracts,Network Health & Social Care,3919.3, 22-Mar-2013
1269,Revenue,CCHD,Day Care - North,Private & Voluntary Day Care,Network Health & Social Care,30.8, 22-Mar-2013
1270,Revenue,CCHD,Social Lettings Agency,Other Supplies & Services,Individual,565, 04-Mar-2013
1271,Revenue,CCHD,Assessment Team,"Holidays, Outings & Visits",Neville Williams,960, 18-Mar-2013
1272,Revenue,CCHD,Bed Purchasing - Under 65s PWLD - South,Residential Homes,Nightingale Nursing Home,3076.64, 19-Mar-2013
1273,Revenue,CCHD,Delayed Transfers of Care Gran,Other Supplies & Services,North Bristol NHS Trust,2000, 06-Mar-2013
1274,Revenue,CCHD,Delayed Transfers of Care Gran,Other Supplies & Services,North Bristol NHS Trust,1400, 22-Mar-2013
1275,Revenue,CCHD,Training - Adult Services,Training Expenses,North Somerset Council,5800, 01-Mar-2013
1276,Revenue,CCHD,Information Systems - Software,Software Support & Maintenance,Northgate Information Solutions UK Limited,7400, 28-Mar-2013
1277,Revenue,CCHD,Bed Purchasing - Under 65s PWLD - South,Residential Homes,Norwood   Broadway House,4853.64, 19-Mar-2013
1278,Revenue,CCHD,Bed Purchasing - Elderly MH - South,Residential Homes,Notaro Homes Ltd  Queensmead Court,1839.64, 19-Mar-2013
1279,Revenue,CCHD,Southmead Hospital Purchasing,Residential Homes,Notaro Homes Ltd  Queensmead Court,1362.84, 19-Mar-2013
1280,Revenue,CCHD,Bed purchasing - Elderly MH - North,Residential Homes,Notaro Homes Ltd  Queensmead Court,3000, 19-Mar-2013
1281,Revenue,CCHD,Home Care - Elderly - South,Other Small Contracts,Nursing Solutions Limited,856.92, 06-Mar-2013
1282,Revenue,CCHD,Home Care - Elderly - South,Other Small Contracts,Nursing Solutions Limited,1173.44, 19-Mar-2013
1283,Revenue,CCHD,Home Care - Elderly - South,Other Small Contracts,Nursing Solutions Limited,1150.28, 19-Mar-2013
1284,Revenue,CCHD,Home Care - Elderly - South,Other Small Contracts,On the Up,523.72, 11-Mar-2013
1285,Revenue,CCHD,Day Care - South,Private & Voluntary Day Care,On the Up,587, 11-Mar-2013
1286,Revenue,CCHD,Day Care - North,Private & Voluntary Day Care,On the Up,369.36, 11-Mar-2013
1287,Revenue,CCHD,Younger MH non-res purchasing,Private & Voluntary Day Care,On the Up,200.64, 11-Mar-2013
1288,Revenue,CCHD,Elderly MH Day Care North,Private & Voluntary Day Care,On the Up,122.24, 11-Mar-2013
1289,Revenue,CCHD,Home Care - Elderly - South,Other Small Contracts,On the Up,416.38, 22-Mar-2013
1290,Revenue,CCHD,Day Care - South,Private & Voluntary Day Care,On the Up,532.28, 22-Mar-2013
1291,Revenue,CCHD,Day Care - North,Private & Voluntary Day Care,On the Up,279.14, 22-Mar-2013
1292,Revenue,CCHD,Younger MH non-res purchasing,Private & Voluntary Day Care,On the Up,145.92, 22-Mar-2013
1293,Revenue,CCHD,Elderly MH Day Care North,Private & Voluntary Day Care,On the Up,118.42, 22-Mar-2013
1294,Revenue,CCHD,Home Care - Elderly - South,Other Small Contracts,On the Up,632.4, 11-Mar-2013
1295,Revenue,CCHD,Day Care - South,Private & Voluntary Day Care,On the Up,547.44, 11-Mar-2013
1296,Revenue,CCHD,Day Care - North,Private & Voluntary Day Care,On the Up,451.44, 11-Mar-2013
1297,Revenue,CCHD,Younger MH non-res purchasing,Private & Voluntary Day Care,On the Up,205.2, 11-Mar-2013
1298,Revenue,CCHD,Elderly MH Day Care North,Private & Voluntary Day Care,On the Up,122.24, 11-Mar-2013
1299,Revenue,CCHD,Home Care - Elderly - South,Other Small Contracts,On the Up,624.02, 13-Mar-2013
1300,Revenue,CCHD,Day Care - South,Private & Voluntary Day Care,On the Up,555.08, 13-Mar-2013
1301,Revenue,CCHD,Day Care - North,Private & Voluntary Day Care,On the Up,474.24, 13-Mar-2013
1302,Revenue,CCHD,Younger MH non-res purchasing,Private & Voluntary Day Care,On the Up,182.4, 13-Mar-2013
1303,Revenue,CCHD,Elderly MH Day Care North,Private & Voluntary Day Care,On the Up,61.12, 13-Mar-2013
1304,Revenue,CCHD,Home Care - Elderly - South,Other Small Contracts,On the Up,665.37, 22-Mar-2013
1305,Revenue,CCHD,Day Care - South,Private & Voluntary Day Care,On the Up,579.36, 22-Mar-2013
1306,Revenue,CCHD,Day Care - North,Private & Voluntary Day Care,On the Up,446.88, 22-Mar-2013
1307,Revenue,CCHD,Younger MH non-res purchasing,Private & Voluntary Day Care,On the Up,168.72, 22-Mar-2013
1308,Revenue,CCHD,Elderly MH Day Care North,Private & Voluntary Day Care,On the Up,122.24, 22-Mar-2013
1309,Revenue,CCHD,Home Care - Elderly - South,Other Small Contracts,On the Up,699.44, 22-Mar-2013
1310,Revenue,CCHD,Day Care - South,Private & Voluntary Day Care,On the Up,547.44, 22-Mar-2013
1311,Revenue,CCHD,Day Care - North,Private & Voluntary Day Care,On the Up,456, 22-Mar-2013
1312,Revenue,CCHD,Younger MH non-res purchasing,Private & Voluntary Day Care,On the Up,200.64, 22-Mar-2013
1313,Revenue,CCHD,Elderly MH Day Care North,Private & Voluntary Day Care,On the Up,122.24, 22-Mar-2013
1314,Revenue,CCHD,Bed purchasing -S28A  Under 65 - North,Residential Homes,Orchard End Limited,7580.16, 19-Mar-2013
1315,Revenue,CCHD,Turnberries,"Provisions (Food, etc)",Origin Cafe,598.4, 01-Mar-2013
1316,Revenue,CCHD,Turnberries,"Provisions (Food, etc)",Origin Cafe,635.8, 28-Mar-2013
1317,Revenue,CCHD,Bed purchasing - Elderly MH - North,Residential Homes,Osbourne Court,1530, 19-Mar-2013
1318,Revenue,CCHD,Bed Purchasing - Elderly S117- North,Residential Homes,Osbourne Court,1879.04, 19-Mar-2013
1319,Revenue,CCHD,Bed Purchasing - Elderly - North,Residential Homes,Osbourne Court,2619.2, 19-Mar-2013
1320,Revenue,CCHD,Bed Purchasing - Elderly - North,Residential Homes,Osbourne Court,2395.2, 19-Mar-2013
1321,Revenue,CCHD,Bed Purchasing - Elderly S117- North,Residential Homes,Osbourne Court,1716, 19-Mar-2013
1322,Revenue,CCHD,Bed Purchasing - Elderly - North,Residential Homes,Osbourne Court,10022.86, 19-Mar-2013
1323,Revenue,CCHD,Bed Purchasing - Elderly - North,Residential Homes,Osbourne Court,1403.2, 19-Mar-2013
1324,Revenue,CCHD,Bed Purchasing - Elderly S117- North,Residential Homes,Osbourne Court,1880, 19-Mar-2013
1325,Revenue,CCHD,Southmead Hospital Purchasing,Residential Homes,Osbourne Court,860.6, 19-Mar-2013
1326,Revenue,CCHD,Bed Purchasing - Under 65s PWLD - South,Residential Homes,Osprey Court,7564.96, 19-Mar-2013
1327,Revenue,CCHD,Bed purchasing - S28A Under 65 - South,Residential Homes,Osprey Court,4219.68, 19-Mar-2013
1328,Revenue,CCHD,Bed purchasing - S28A Under 65 - South,Residential Homes,Osprey Court,6249.96, 19-Mar-2013
1329,Revenue,CCHD,Southmead Hospital Purchasing,Nursing Homes,Palm Court Nursing Home,1560.4, 19-Mar-2013
1330,Revenue,CCHD,Bed Purchasing - Elderly MH - South,Residential Homes,Park Farm House,1330.8, 19-Mar-2013
1331,Revenue,CCHD,Bed Purchasing - Elderly - South,Residential Homes,Park Farm House,1769.4, 19-Mar-2013
1332,Revenue,CCHD,Bed Purchasing - Elderly - South,Residential Homes,Park Farm House,1880, 19-Mar-2013
1333,Revenue,CCHD,Bed Purchasing - Elderly MH - South,Residential Homes,Park Farm House,1582.64, 19-Mar-2013
1334,Revenue,CCHD,Bed Purchasing - Under 65s PWLD - South,Residential Homes,Park Hall,5500, 19-Mar-2013
1335,Revenue,CCHD,Bed purchasing - Under 65s PWLD - North,Residential Homes,Park Hall,5082.32, 19-Mar-2013
1336,Revenue,CCHD,Bed Purchasing - Under 65s PWLD - South,Residential Homes,Park Hall,4894.68, 19-Mar-2013
1337,Revenue,CCHD,Bed Purchasing - Under 65s PWLD - South,Residential Homes,Park Hall,2173.96, 19-Mar-2013
1338,Revenue,CCHD,Bed purchasing - Elderly PWLD - South,Residential Homes,Park Hall,2501.56, 19-Mar-2013
1339,Revenue,CCHD,Bed Purchasing - Under 65s PWLD - South,Residential Homes,Park Hall,3788.6, 19-Mar-2013
1340,Revenue,CCHD,Bed purchasing - Elderly PWLD - North,Residential Homes,Park Hall,4855.8, 19-Mar-2013
1341,Revenue,CCHD,Bed purchasing - S28A Under 65 - South,Residential Homes,Park Hall,4571.08, 19-Mar-2013
1342,Revenue,CCHD,Bed Purchasing - Under 65s PWLD - South,Residential Homes,Park Hall,4871.2, 19-Mar-2013
1343,Revenue,CCHD,Bed purchasing - Under 65s PWLD - North,Residential Homes,Park Hall,4274.52, 19-Mar-2013
1344,Revenue,CCHD,Bed Purchasing - S28A - Over 65- North,Residential Homes,Park Hall,5240.84, 19-Mar-2013
1345,Revenue,CCHD,Bed Purchasing - Under 65s PWLD - South,Residential Homes,Park Hall,10510.04, 19-Mar-2013
1346,Revenue,CCHD,Bed purchasing -S28A  Under 65 - North,Residential Homes,Park Hall,5789.4, 19-Mar-2013
1347,Revenue,CCHD,Bed purchasing - S28A Under 65 - South,Residential Homes,Park Hall,5529.44, 19-Mar-2013
1348,Revenue,CCHD,Bed Purchasing - Under 65s PWLD - South,Residential Homes,Penleigh House Care Home,4451.6, 19-Mar-2013
1349,Revenue,CCHD,Bed Purchasing - Under 65s PWLD - South,Residential Homes,Penleigh House Care Home,5175.52, 19-Mar-2013
1350,Revenue,CCHD,Bed purchasing - Elderly PWLD - South,Residential Homes,Penleigh House Care Home,4222.56, 19-Mar-2013
1351,Revenue,CCHD,Bed purchasing - S28A Under 65 - South,Residential Homes,Penleigh House Care Home,5366.32, 19-Mar-2013
1352,Revenue,CCHD,Bed Purchasing - Under 65s PWLD - South,Residential Homes,Penleigh House Care Home,4847.56, 19-Mar-2013
1353,Revenue,CCHD,Downend Day Centre,Cleaning & Domestic Services,PHS Group Plc,1104.4, 21-Mar-2013
1354,Revenue,CCHD,Kingswood Centre - Maples Suite,Contract Hire & Operational Leases,PHS Group Plc,728.6, 21-Mar-2013
1355,Revenue,CCHD,Supporting People Programme,Grants to Voluntary Bodies,Places for People,1107, 01-Mar-2013
1356,Revenue,CCHD,Home Care - Elderly - South,Other Small Contracts,Premier Homecare Limited,775.72, 04-Mar-2013
1357,Revenue,CCHD,Home Care - Elderly - North,Other Small Contracts,Premier Homecare Limited,5727.7, 04-Mar-2013
1358,Revenue,CCHD,Younger MH non-res purchasing,Private & Voluntary Day Care,Premier Homecare Limited,27.06, 04-Mar-2013
1359,Revenue,CCHD,Home care - Elderly MH - North,Other Small Contracts,Premier Homecare Limited,162.36, 04-Mar-2013
1360,Revenue,CCHD,Elderly MH Day Care North,Private & Voluntary Day Care,Premier Homecare Limited,207.46, 04-Mar-2013
1361,Revenue,CCHD,Home Care - Elderly - South,Other Small Contracts,Premier Homecare Limited,811.8, 11-Mar-2013
1362,Revenue,CCHD,Home Care - Elderly - North,Other Small Contracts,Premier Homecare Limited,6426.75, 11-Mar-2013
1363,Revenue,CCHD,Younger MH non-res purchasing,Private & Voluntary Day Care,Premier Homecare Limited,27.06, 11-Mar-2013
1364,Revenue,CCHD,Home care - Elderly MH - North,Other Small Contracts,Premier Homecare Limited,162.36, 11-Mar-2013
1365,Revenue,CCHD,Elderly MH Day Care North,Private & Voluntary Day Care,Premier Homecare Limited,202.95, 11-Mar-2013
1366,Revenue,CCHD,Home Care - Elderly - South,Other Small Contracts,Premier Homecare Limited,789.25, 25-Mar-2013
1367,Revenue,CCHD,Home Care - Elderly - North,Other Small Contracts,Premier Homecare Limited,6460.18, 25-Mar-2013
1368,Revenue,CCHD,Younger MH non-res purchasing,Private & Voluntary Day Care,Premier Homecare Limited,27.06, 25-Mar-2013
1369,Revenue,CCHD,Home care - Elderly MH - North,Other Small Contracts,Premier Homecare Limited,162.36, 25-Mar-2013
1370,Revenue,CCHD,Elderly MH Day Care North,Private & Voluntary Day Care,Premier Homecare Limited,207.46, 25-Mar-2013
1371,Revenue,CCHD,Home Care - Elderly - South,Other Small Contracts,Premier Homecare Limited,784.74, 27-Mar-2013
1372,Revenue,CCHD,Home Care - Elderly - North,Other Small Contracts,Premier Homecare Limited,6417.73, 27-Mar-2013
1373,Revenue,CCHD,Younger MH non-res purchasing,Private & Voluntary Day Care,Premier Homecare Limited,27.06, 27-Mar-2013
1374,Revenue,CCHD,Home care - Elderly MH - North,Other Small Contracts,Premier Homecare Limited,162.36, 27-Mar-2013
1375,Revenue,CCHD,Elderly MH Day Care North,Private & Voluntary Day Care,Premier Homecare Limited,207.46, 27-Mar-2013
1376,Revenue,CCHD,Home Care - Elderly - South,Other Small Contracts,Prestige Nursing,751.52, 11-Mar-2013
1377,Revenue,CCHD,Home Care - Elderly - North,Other Small Contracts,Prestige Nursing,1110.2, 11-Mar-2013
1378,Revenue,CCHD,Day Care - South,Private & Voluntary Day Care,Prestige Nursing,264.74, 11-Mar-2013
1379,Revenue,CCHD,Day Care - North,Private & Voluntary Day Care,Prestige Nursing,623.42, 11-Mar-2013
1380,Revenue,CCHD,Home care - Elderly MH - North,Other Small Contracts,Prestige Nursing,392.84, 11-Mar-2013
1381,Revenue,CCHD,Elderly MH Day Care North,Private & Voluntary Day Care,Prestige Nursing,298.9, 11-Mar-2013
1382,Revenue,CCHD,Home Care - Elderly - South,Other Small Contracts,Prestige Nursing,751.52, 12-Mar-2013
1383,Revenue,CCHD,Home Care - Elderly - North,Other Small Contracts,Prestige Nursing,1268.19, 12-Mar-2013
1384,Revenue,CCHD,Day Care - South,Private & Voluntary Day Care,Prestige Nursing,222.04, 12-Mar-2013
1385,Revenue,CCHD,Day Care - North,Private & Voluntary Day Care,Prestige Nursing,572.18, 12-Mar-2013
1386,Revenue,CCHD,Home care - Elderly MH - North,Other Small Contracts,Prestige Nursing,209.23, 12-Mar-2013
1387,Revenue,CCHD,Elderly MH Day Care North,Private & Voluntary Day Care,Prestige Nursing,187.88, 12-Mar-2013
1388,Revenue,CCHD,Home Care - Elderly - South,Other Small Contracts,Prestige Nursing,721.63, 12-Mar-2013
1389,Revenue,CCHD,Home Care - Elderly - North,Other Small Contracts,Prestige Nursing,1050.42, 12-Mar-2013
1390,Revenue,CCHD,Day Care - South,Private & Voluntary Day Care,Prestige Nursing,320.25, 12-Mar-2013
1391,Revenue,CCHD,Day Care - North,Private & Voluntary Day Care,Prestige Nursing,674.66, 12-Mar-2013
1392,Revenue,CCHD,Home care - Elderly MH - North,Other Small Contracts,Prestige Nursing,213.5, 12-Mar-2013
1393,Revenue,CCHD,Home Care - Elderly - South,Other Small Contracts,Prestige Nursing,678.93, 12-Mar-2013
1394,Revenue,CCHD,Home Care - Elderly - North,Other Small Contracts,Prestige Nursing,1251.11, 12-Mar-2013
1395,Revenue,CCHD,Day Care - South,Private & Voluntary Day Care,Prestige Nursing,264.74, 12-Mar-2013
1396,Revenue,CCHD,Day Care - North,Private & Voluntary Day Care,Prestige Nursing,572.18, 12-Mar-2013
1397,Revenue,CCHD,Home care - Elderly MH - North,Other Small Contracts,Prestige Nursing,209.23, 12-Mar-2013
1398,Revenue,CCHD,Elderly MH Day Care North,Private & Voluntary Day Care,Prestige Nursing,187.88, 12-Mar-2013
1399,Revenue,CCHD,Bed purchasing - Elderly MH - North,Nursing Homes,Ravenswood,1265.84, 19-Mar-2013
1400,Revenue,CCHD,Bed Purchasing - Elderly - South,Residential Homes,Ravenswood,3781.68, 19-Mar-2013
1401,Revenue,CCHD,Bed Purchasing - Elderly - North,Nursing Homes,Ravenswood,1534.96, 19-Mar-2013
1402,Revenue,CCHD,Bed Purchasing - PWLD S 117 Placements,Residential Homes,Real Life Options,7904.04, 19-Mar-2013
1403,Revenue,CCHD,Bed Purchasing - Elderly S117- North,Nursing Homes,Redholme Memory Care Limited,3888.24, 19-Mar-2013
1404,Revenue,CCHD,Supporting People Programme,Grants to Voluntary Bodies,Redland Housing Association Ltd,720.17, 01-Mar-2013
1405,Revenue,CCHD,Bed Purchasing - Elderly - South,Nursing Homes,Regent House,2208.4, 19-Mar-2013
1406,Revenue,CCHD,Bed Purchasing - Elderly - South,Nursing Homes,Regent House,2068.6, 19-Mar-2013
1407,Revenue,CCHD,Bed Purchasing - Elderly - South,Nursing Homes,Regent House,1637.96, 19-Mar-2013
1408,Revenue,CCHD,Bed Purchasing - Elderly MH - South,Nursing Homes,Regent House,1980.12, 19-Mar-2013
1409,Revenue,CCHD,Bed Purchasing - Elderly - South,Nursing Homes,Regent House,1686.16, 19-Mar-2013
1410,Revenue,CCHD,Bed Purchasing - Elderly - South,Nursing Homes,Regent House,2029.8, 19-Mar-2013
1411,Revenue,CCHD,Bed Purchasing - Elderly - South,Nursing Homes,Regent House,1961.92, 19-Mar-2013
1412,Revenue,CCHD,Bed Purchasing - Elderly - South,Nursing Homes,Regent House,1796.8, 19-Mar-2013
1413,Revenue,CCHD,Bed Purchasing - Elderly - South,Nursing Homes,Regent House,1637.96, 19-Mar-2013
1414,Revenue,CCHD,Bed Purchasing - Elderly - South,Nursing Homes,Regent House,632.92, 19-Mar-2013
1415,Revenue,CCHD,Bed Purchasing - Elderly - South,Nursing Homes,Regent House,2035.48, 19-Mar-2013
1416,Revenue,CCHD,Southmead Hospital Purchasing,Nursing Homes,Regent House,1379.88, 19-Mar-2013
1417,Revenue,CCHD,Bed Purchasing - Elderly - South,Nursing Homes,Regent House,1423.28, 19-Mar-2013
1418,Revenue,CCHD,Bed Purchasing - Elderly - South,Nursing Homes,Regent House,1635.28, 19-Mar-2013
1419,Revenue,CCHD,Bed Purchasing - Elderly MH - South,Nursing Homes,Regent House,1195.08, 19-Mar-2013
1420,Revenue,CCHD,Bed purchasing - Elderly MH - North,Nursing Homes,Regent House,1276.8, 19-Mar-2013
1421,Revenue,CCHD,Bed Purchasing - Elderly - South,Nursing Homes,Regent House,2581.2, 19-Mar-2013
1422,Revenue,CCHD,Bed Purchasing - Under 65s PWLD - South,Residential Homes,Ridgeway House,3418.56, 19-Mar-2013
1423,Revenue,CCHD,Bed Purchasing - Under 65s PWLD - South,Residential Homes,Riverside House,3524.88, 19-Mar-2013
1424,Revenue,CCHD,Bed Purchasing - Elderly - South,Nursing Homes,Riversway Nursing Home,1156.6, 19-Mar-2013
1425,Revenue,CCHD,Bed purchasing - Elderly PWLD - South,Residential Homes,Rockleaze,2159.92, 19-Mar-2013
1426,Revenue,CCHD,Bed purchasing - Elderly PWLD - South,Residential Homes,Rockleaze,1399.76, 19-Mar-2013
1427,Revenue,CCHD,Bed Purchasing - LD S28A- Over 65- South,Residential Homes,Rockleaze,2039.28, 19-Mar-2013
1428,Revenue,CCHD,Bed Purchasing - Under 65s PWLD - South,Residential Homes,Rockleaze,2364.24, 19-Mar-2013
1429,Revenue,CCHD,Bed purchasing - Elderly PWLD - South,Residential Homes,Rockleaze,1399.76, 19-Mar-2013
1430,Revenue,CCHD,Turnberries,Furniture & Fittings Loose,Rompa Limited,592.95, 13-Mar-2013
1431,Revenue,CCHD,Turnberries,Educational Materials,Rompa Limited,151.8, 13-Mar-2013
1432,Revenue,CCHD,Bed Purchasing - Under 65s PWLD - South,Nursing Homes,Room K4,4930.56, 19-Mar-2013
1433,Revenue,CCHD,Bed Purchasing - LD S28A- Over 65- South,Residential Homes,Room K4,3170.04, 19-Mar-2013
1434,Revenue,CCHD,Bed Purchasing - Under 65s PWLD - South,Residential Homes,Room K4,11325.76, 19-Mar-2013
1435,Revenue,CCHD,Bed Purchasing - Under 65s PWLD - South,Residential Homes,Room K4,3939.8, 19-Mar-2013
1436,Revenue,CCHD,Bed purchasing - Under 65s PWLD - North,Residential Homes,Room K4,5182.6, 19-Mar-2013
1437,Revenue,CCHD,Bed purchasing - Elderly PWLD - South,Residential Homes,Room K4,3384.16, 19-Mar-2013
1438,Revenue,CCHD,Bed Purchasing - LD S28A- Over 65- South,Residential Homes,Room K4,3835.12, 19-Mar-2013
1439,Revenue,CCHD,Bed Purchasing - Under 65s PWLD - South,Nursing Homes,Room K4,4922.36, 19-Mar-2013
1440,Revenue,CCHD,Bed purchasing - S28A Under 65 - South,Nursing Homes,Room K4,5249.04, 19-Mar-2013
1441,Revenue,CCHD,Bed purchasing - S28A Under 65 - South,Residential Homes,Room K4,4790.52, 19-Mar-2013
1442,Revenue,CCHD,Bed purchasing - S28A Under 65 - South,Nursing Homes,Room K4,5249.04, 19-Mar-2013
1443,Revenue,CCHD,Bed Purchasing - LD S28A- Over 65- South,Nursing Homes,Room K4,5083.64, 19-Mar-2013
1444,Revenue,CCHD,Bed Purchasing - LD S28A- Over 65- South,Nursing Homes,Room K4,4750.08, 19-Mar-2013
1445,Revenue,CCHD,Bed Purchasing - Under 65s PWLD - South,Residential Homes,Room K4,17976.79, 19-Mar-2013
1446,Revenue,CCHD,Bed Purchasing - LD S28A- Over 65- South,Residential Homes,Room K4,762.93, 19-Mar-2013
1447,Revenue,CCHD,Bed Purchasing - S28A - Over 65- North,Nursing Homes,Room K4,5369.72, 19-Mar-2013
1448,Revenue,CCHD,Bed purchasing - S28A Under 65 - South,Residential Homes,Room K4,5078.48, 19-Mar-2013
1449,Revenue,CCHD,Bed purchasing - S28A Under 65 - South,Residential Homes,Room K4,5132.8, 19-Mar-2013
1450,Revenue,CCHD,Bed Purchasing - S28A - Over 65- North,Residential Homes,Room K4,7213.64, 19-Mar-2013
1451,Revenue,CCHD,Bed purchasing - S28A Under 65 - South,Nursing Homes,Room K4,5249.04, 19-Mar-2013
1452,Revenue,CCHD,Bed purchasing - S28A Under 65 - South,Nursing Homes,Room K4,5249.04, 19-Mar-2013
1453,Revenue,CCHD,Bed purchasing -S28A  Under 65 - North,Nursing Homes,Room K4,4234.16, 19-Mar-2013
1454,Revenue,CCHD,Bed purchasing - S28A Under 65 - South,Residential Homes,Room K4,5132.8, 19-Mar-2013
1455,Revenue,CCHD,Bed Purchasing - LD S28A- Over 65- South,Residential Homes,Room K4,4641.6, 19-Mar-2013
1456,Revenue,CCHD,Bed Purchasing - LD S28A- Over 65- South,Residential Homes,Room K4,3018.84, 19-Mar-2013
1457,Revenue,CCHD,Bed Purchasing - Under 65s PWLD - South,Residential Homes,Rosewood Lodge & Brook House,4460.6, 19-Mar-2013
1458,Revenue,CCHD,Bed Purchasing - Elderly MH - South,Residential Homes,Ross Healthcare,1280.12, 19-Mar-2013
1459,Revenue,CCHD,Bed Purchasing - Elderly - North,Residential Homes,Saffron Gardens,1207.14, 19-Mar-2013
1460,Revenue,CCHD,Southmead Hospital Purchasing,Residential Homes,Saffron Gardens,1239.36, 19-Mar-2013
1461,Revenue,CCHD,Bed Purchasing - Elderly MH - South,Nursing Homes,Saffron Gardens,1393.02, 19-Mar-2013
1462,Revenue,CCHD,Bed Purchasing - Elderly MH - South,Nursing Homes,Saffron Gardens,2029.8, 19-Mar-2013
1463,Revenue,CCHD,Bed Purchasing - Elderly - North,Nursing Homes,Saffron Gardens,1371, 19-Mar-2013
1464,Revenue,CCHD,Bed Purchasing - Elderly - South,Nursing Homes,Saffron Gardens,3545.5, 19-Mar-2013
1465,Revenue,CCHD,Bed Purchasing - Elderly - South,Residential Homes,Saffron Gardens,1269.4, 19-Mar-2013
1466,Revenue,CCHD,Home Care - Elderly - South,Other Small Contracts,Saga Homecare,4167.72, 25-Mar-2013
1467,Revenue,CCHD,Home Care - Elderly - North,Other Small Contracts,Saga Homecare,7503.82, 25-Mar-2013
1468,Revenue,CCHD,Day Care - South,Private & Voluntary Day Care,Saga Homecare,126.4, 25-Mar-2013
1469,Revenue,CCHD,Day Care - North,Private & Voluntary Day Care,Saga Homecare,359.45, 25-Mar-2013
1470,Revenue,CCHD,Carer`s Grant - South,Carers Breaks & Services,Saga Homecare,110.6, 25-Mar-2013
1471,Revenue,CCHD,Home care - Elderly MH - North,Other Small Contracts,Saga Homecare,256.75, 25-Mar-2013
1472,Revenue,CCHD,Elderly MH Day Care North,Private & Voluntary Day Care,Saga Homecare,134.3, 25-Mar-2013
1473,Revenue,CCHD,Home Care - LD Under 65 - South,Private & Voluntary Home Care,Saga Homecare,248.85, 25-Mar-2013
1474,Revenue,CCHD,PWLD Home Care - Under 65 - KH,Private & Voluntary Home Care,Saga Homecare,691.25, 25-Mar-2013
1475,Revenue,CCHD,Home Care - Elderly - South,Other Small Contracts,Saga Homecare,4147.59, 25-Mar-2013
1476,Revenue,CCHD,Home Care - Elderly - North,Other Small Contracts,Saga Homecare,7833.43, 25-Mar-2013
1477,Revenue,CCHD,Day Care - South,Private & Voluntary Day Care,Saga Homecare,138.25, 25-Mar-2013
1478,Revenue,CCHD,Day Care - North,Private & Voluntary Day Care,Saga Homecare,327.85, 25-Mar-2013
1479,Revenue,CCHD,Carer`s Grant - South,Carers Breaks & Services,Saga Homecare,110.6, 25-Mar-2013
1480,Revenue,CCHD,Home care - Elderly MH - North,Other Small Contracts,Saga Homecare,268.6, 25-Mar-2013
1481,Revenue,CCHD,Elderly MH Day Care North,Private & Voluntary Day Care,Saga Homecare,138.25, 25-Mar-2013
1482,Revenue,CCHD,Home Care - LD Under 65 - South,Private & Voluntary Home Care,Saga Homecare,237, 25-Mar-2013
1483,Revenue,CCHD,PWLD Home Care - Under 65 - KH,Private & Voluntary Home Care,Saga Homecare,600.39, 25-Mar-2013
1484,Revenue,CCHD,Home Care - Elderly - South,Other Small Contracts,Saga Homecare,3864.3, 25-Mar-2013
1485,Revenue,CCHD,Home Care - Elderly - North,Other Small Contracts,Saga Homecare,8101.32, 25-Mar-2013
1486,Revenue,CCHD,Day Care - South,Private & Voluntary Day Care,Saga Homecare,122.45, 25-Mar-2013
1487,Revenue,CCHD,Day Care - North,Private & Voluntary Day Care,Saga Homecare,323.9, 25-Mar-2013
1488,Revenue,CCHD,Carer`s Grant - South,Carers Breaks & Services,Saga Homecare,102.7, 25-Mar-2013
1489,Revenue,CCHD,Home care - Elderly MH - North,Other Small Contracts,Saga Homecare,205.4, 25-Mar-2013
1490,Revenue,CCHD,Elderly MH Day Care North,Private & Voluntary Day Care,Saga Homecare,134.3, 25-Mar-2013
1491,Revenue,CCHD,Home Care - LD Under 65 - South,Private & Voluntary Home Care,Saga Homecare,244.9, 25-Mar-2013
1492,Revenue,CCHD,PWLD Home Care - Under 65 - KH,Private & Voluntary Home Care,Saga Homecare,655.7, 25-Mar-2013
1493,Revenue,CCHD,Home Care - Elderly - South,Other Small Contracts,Saga Homecare,3970.85, 25-Mar-2013
1494,Revenue,CCHD,Home Care - Elderly - North,Other Small Contracts,Saga Homecare,7789.27, 25-Mar-2013
1495,Revenue,CCHD,Day Care - South,Private & Voluntary Day Care,Saga Homecare,122.45, 25-Mar-2013
1496,Revenue,CCHD,Day Care - North,Private & Voluntary Day Care,Saga Homecare,331.8, 25-Mar-2013
1497,Revenue,CCHD,Carer`s Grant - South,Carers Breaks & Services,Saga Homecare,110.6, 25-Mar-2013
1498,Revenue,CCHD,Home care - Elderly MH - North,Other Small Contracts,Saga Homecare,134.3, 25-Mar-2013
1499,Revenue,CCHD,Elderly MH Day Care North,Private & Voluntary Day Care,Saga Homecare,130.35, 25-Mar-2013
1500,Revenue,CCHD,Home Care - LD Under 65 - South,Private & Voluntary Home Care,Saga Homecare,264.65, 25-Mar-2013
1501,Revenue,CCHD,PWLD Home Care - Under 65 - KH,Private & Voluntary Home Care,Saga Homecare,707.05, 25-Mar-2013
1502,Revenue,CCHD,Home Care - Elderly - South,Other Small Contracts,Saga Homecare,4371.88, 25-Mar-2013
1503,Revenue,CCHD,Home Care - Elderly - North,Other Small Contracts,Saga Homecare,8174.58, 25-Mar-2013
1504,Revenue,CCHD,Day Care - South,Private & Voluntary Day Care,Saga Homecare,130.35, 25-Mar-2013
1505,Revenue,CCHD,Day Care - North,Private & Voluntary Day Care,Saga Homecare,355.5, 25-Mar-2013
1506,Revenue,CCHD,Carer`s Grant - South,Carers Breaks & Services,Saga Homecare,110.6, 25-Mar-2013
1507,Revenue,CCHD,Home care - Elderly MH - North,Other Small Contracts,Saga Homecare,240.95, 25-Mar-2013
1508,Revenue,CCHD,Elderly MH Day Care North,Private & Voluntary Day Care,Saga Homecare,63.2, 25-Mar-2013
1509,Revenue,CCHD,Home Care - LD Under 65 - South,Private & Voluntary Home Care,Saga Homecare,244.9, 25-Mar-2013
1510,Revenue,CCHD,PWLD Home Care - Under 65 - KH,Private & Voluntary Home Care,Saga Homecare,639.9, 25-Mar-2013
1511,Revenue,CCHD,Home Care - Elderly - South,Other Small Contracts,Saga Homecare,3796.56, 25-Mar-2013
1512,Revenue,CCHD,Home Care - Elderly - North,Other Small Contracts,Saga Homecare,7867.18, 25-Mar-2013
1513,Revenue,CCHD,Day Care - South,Private & Voluntary Day Care,Saga Homecare,94.8, 25-Mar-2013
1514,Revenue,CCHD,Day Care - North,Private & Voluntary Day Care,Saga Homecare,319.95, 25-Mar-2013
1515,Revenue,CCHD,Carer`s Grant - South,Carers Breaks & Services,Saga Homecare,110.6, 25-Mar-2013
1516,Revenue,CCHD,Home care - Elderly MH - North,Other Small Contracts,Saga Homecare,201.45, 25-Mar-2013
1517,Revenue,CCHD,Elderly MH Day Care North,Private & Voluntary Day Care,Saga Homecare,126.4, 25-Mar-2013
1518,Revenue,CCHD,Home Care - LD Under 65 - South,Private & Voluntary Home Care,Saga Homecare,248.85, 25-Mar-2013
1519,Revenue,CCHD,PWLD Home Care - Under 65 - KH,Private & Voluntary Home Care,Saga Homecare,695.2, 25-Mar-2013
1520,Revenue,CCHD,Home Care - Elderly - South,Other Small Contracts,Saga Homecare,4037.85, 25-Mar-2013
1521,Revenue,CCHD,Home Care - Elderly - North,Other Small Contracts,Saga Homecare,8090.18, 25-Mar-2013
1522,Revenue,CCHD,Day Care - South,Private & Voluntary Day Care,Saga Homecare,94.8, 25-Mar-2013
1523,Revenue,CCHD,Day Care - North,Private & Voluntary Day Care,Saga Homecare,292.3, 25-Mar-2013
1524,Revenue,CCHD,Carer`s Grant - South,Carers Breaks & Services,Saga Homecare,110.6, 25-Mar-2013
1525,Revenue,CCHD,Home care - Elderly MH - North,Other Small Contracts,Saga Homecare,248.85, 25-Mar-2013
1526,Revenue,CCHD,Elderly MH Day Care North,Private & Voluntary Day Care,Saga Homecare,90.85, 25-Mar-2013
1527,Revenue,CCHD,Home Care - LD Under 65 - South,Private & Voluntary Home Care,Saga Homecare,229.1, 25-Mar-2013
1528,Revenue,CCHD,PWLD Home Care - Under 65 - KH,Private & Voluntary Home Care,Saga Homecare,671.5, 25-Mar-2013
1529,Revenue,CCHD,Home Care - Elderly - South,Other Small Contracts,Saga Homecare,3867.05, 25-Mar-2013
1530,Revenue,CCHD,Home Care - Elderly - North,Other Small Contracts,Saga Homecare,8346.93, 25-Mar-2013
1531,Revenue,CCHD,Day Care - South,Private & Voluntary Day Care,Saga Homecare,173.8, 25-Mar-2013
1532,Revenue,CCHD,Day Care - North,Private & Voluntary Day Care,Saga Homecare,580.65, 25-Mar-2013
1533,Revenue,CCHD,Carer`s Grant - South,Carers Breaks & Services,Saga Homecare,110.6, 25-Mar-2013
1534,Revenue,CCHD,Home care - Elderly MH - North,Other Small Contracts,Saga Homecare,244.9, 25-Mar-2013
1535,Revenue,CCHD,Elderly MH Day Care North,Private & Voluntary Day Care,Saga Homecare,134.3, 25-Mar-2013
1536,Revenue,CCHD,Home Care - LD Under 65 - South,Private & Voluntary Home Care,Saga Homecare,248.85, 25-Mar-2013
1537,Revenue,CCHD,PWLD Home Care - Under 65 - KH,Private & Voluntary Home Care,Saga Homecare,687.3, 25-Mar-2013
1538,Revenue,CCHD,Home Care - Elderly - South,Other Small Contracts,Saga Homecare,3258.75, 25-Mar-2013
1539,Revenue,CCHD,Home Care - Elderly - North,Other Small Contracts,Saga Homecare,7192.45, 25-Mar-2013
1540,Revenue,CCHD,Day Care - South,Private & Voluntary Day Care,Saga Homecare,79, 25-Mar-2013
1541,Revenue,CCHD,Day Care - North,Private & Voluntary Day Care,Saga Homecare,138.25, 25-Mar-2013
1542,Revenue,CCHD,Carer`s Grant - South,Carers Breaks & Services,Saga Homecare,63.2, 25-Mar-2013
1543,Revenue,CCHD,Home care - Elderly MH - North,Other Small Contracts,Saga Homecare,75.05, 25-Mar-2013
1544,Revenue,CCHD,Elderly MH Day Care North,Private & Voluntary Day Care,Saga Homecare,47.4, 25-Mar-2013
1545,Revenue,CCHD,Home Care - LD Under 65 - South,Private & Voluntary Home Care,Saga Homecare,229.1, 25-Mar-2013
1546,Revenue,CCHD,PWLD Home Care - Under 65 - KH,Private & Voluntary Home Care,Saga Homecare,323.9, 25-Mar-2013
1547,Revenue,CCHD,Bed Purchasing - Under 65s PWLD - South,Residential Homes,Salters Hill Barn,1995.2, 19-Mar-2013
1548,Revenue,CCHD,Southmead Hospital Purchasing,Residential Homes,Sanctuary Care Limited,3421.84, 19-Mar-2013
1549,Revenue,CCHD,Learning Difficulties PSL,Rent,Individual,1400, 01-Mar-2013
1550,Revenue,CCHD,Learning Difficulties PSL,Rent,Individual,1400, 28-Mar-2013
1551,Revenue,CCHD,Woodleaze,"Provisions (Food, etc)",School Milk Services Limited,758.39, 01-Mar-2013
1552,Revenue,CCHD,Woodleaze,"Provisions (Food, etc)",School Milk Services Limited,694.29, 28-Mar-2013
1553,Revenue,CCHD,Bed purchasing - Under 65s PWLD - North,Residential Homes,Scope   Accounts Dept,4910.2, 19-Mar-2013
1554,Revenue,CCHD,Bed Purchasing - Under 65s PWLD - South,Residential Homes,Scope   Accounts Dept,2999.88, 19-Mar-2013
1555,Revenue,CCHD,Supported Living - KD,Private & Voluntary Home Care,SeeAbility,4633.57, 01-Mar-2013
1556,Revenue,CCHD,Day Care - North,Private & Voluntary Day Care,SeeAbility,1924.22, 01-Mar-2013
1557,Revenue,CCHD,Supported Living - KD,Private & Voluntary Home Care,SeeAbility,1329.72, 01-Mar-2013
1558,Revenue,CCHD,Supported Living - KD,Private & Voluntary Home Care,SeeAbility,6628.38, 01-Mar-2013
1559,Revenue,CCHD,Supported Living - KD,Private & Voluntary Home Care,SeeAbility,4185.16, 28-Mar-2013
1560,Revenue,CCHD,Day Care - North,Private & Voluntary Day Care,SeeAbility,1738, 28-Mar-2013
1561,Revenue,CCHD,Supported Living - KD,Private & Voluntary Home Care,SeeAbility,1201.04, 28-Mar-2013
1562,Revenue,CCHD,Supported Living - KD,Private & Voluntary Home Care,SeeAbility,5996.92, 28-Mar-2013
1563,Revenue,CCHD,Supported Living - KD,Private & Voluntary Home Care,SeeAbility,7800, 01-Mar-2013
1564,Revenue,CCHD,Southmead Hospital Purchasing,Nursing Homes,Sefton Hall Res. & Nursing Home,1944, 19-Mar-2013
1565,Revenue,CCHD,Supported Living - PS,Private & Voluntary Home Care,Selborne Care Ltd,1734.8, 22-Mar-2013
1566,Revenue,CCHD,Supported Living - PS,Private & Voluntary Home Care,Selborne Care Ltd,2626.99, 22-Mar-2013
1567,Revenue,CCHD,Supported Living - PS,Private & Voluntary Home Care,Selborne Care Ltd,1020.16, 22-Mar-2013
1568,Revenue,CCHD,Supported Living - PS,Private & Voluntary Home Care,Selborne Care Ltd,5080.44, 20-Mar-2013
1569,Revenue,CCHD,Supported Living - PS,Private & Voluntary Home Care,Selborne Care Ltd,1141.2, 20-Mar-2013
1570,Revenue,CCHD,Supported Living - PS,Private & Voluntary Home Care,Selborne Care Ltd,510.08, 20-Mar-2013
1571,Revenue,CCHD,Supported Living - PS,Private & Voluntary Home Care,Selborne Care Ltd,4580.94, 22-Mar-2013
1572,Revenue,CCHD,Purchase of Non-Res Care - KD,Private & Voluntary Day Care,Selborne Care Ltd,779.76, 26-Mar-2013
1573,Revenue,CCHD,Supported Living - PS,Private & Voluntary Home Care,Selborne Care Ltd,549.4, 20-Mar-2013
1574,Revenue,CCHD,Supported Living - PS,Private & Voluntary Home Care,Selborne Care Ltd,1792.78, 22-Mar-2013
1575,Revenue,CCHD,Supported Living - PS,Private & Voluntary Home Care,Selborne Care Ltd,1074.11, 22-Mar-2013
1576,Revenue,CCHD,Supported Living - PS,Private & Voluntary Home Care,Selborne Care Ltd,2219.74, 22-Mar-2013
1577,Revenue,CCHD,Countdown Initiative,Membership Fees,Severn Wye Energy Agency Ltd,10000, 18-Mar-2013
1578,Revenue,CCHD,Bed purchasing - Elderly PWLD - South,Nursing Homes,Shaw Healthcare Limited,9840.11, 19-Mar-2013
1579,Revenue,CCHD,Southmead Hospital Purchasing,Nursing Homes,Shaw Healthcare Ltd,1467.2, 19-Mar-2013
1580,Revenue,CCHD,Bed Purchasing - Elderly - South,Nursing Homes,Shaw Healthcare Ltd,1587.8, 19-Mar-2013
1581,Revenue,CCHD,Bed Purchasing - Elderly S117- North,Nursing Homes,Shaw Healthcare Ltd,1944, 19-Mar-2013
1582,Revenue,CCHD,Bed purchasing - Elderly S117 - South,Nursing Homes,Shaw Healthcare Ltd,1973.2, 19-Mar-2013
1583,Revenue,CCHD,Bed purchasing - Elderly MH - North,Nursing Homes,Shaw Healthcare Ltd,1226.36, 19-Mar-2013
1584,Revenue,CCHD,Bed purchasing - S28A Under 65 - South,Residential Homes,Shaw Healthcare Ltd,10408.68, 19-Mar-2013
1585,Revenue,CCHD,Bed purchasing - S28A Under 65 - South,Residential Homes,Shaw Healthcare Ltd,10410.04, 19-Mar-2013
1586,Revenue,CCHD,Bed purchasing - S28A Under 65 - South,Residential Homes,Shaw Healthcare Ltd,10243.28, 19-Mar-2013
1587,Revenue,CCHD,S117 Placements PCT,Residential Homes,Shaw Healthcare Ltd,15360.76, 19-Mar-2013
1588,Revenue,CCHD,Bed Purchasing - Under 65s PWLD - South,Nursing Homes,Shaw Healthcare Ltd,9662.08, 19-Mar-2013
1589,Revenue,CCHD,Bed Purchasing - Under 65s PWLD - South,Residential Homes,Shaw Healthcare Ltd,8892.88, 19-Mar-2013
1590,Revenue,CCHD,Bed purchasing - Elderly PWLD - South,Residential Homes,Shaw Healthcare Ltd,3875.12, 19-Mar-2013
1591,Revenue,CCHD,Bed purchasing - S28A Under 65 - South,Residential Homes,Shaw Healthcare Ltd,10295.84, 19-Mar-2013
1592,Revenue,CCHD,Bed purchasing - S28A Under 65 - South,Residential Homes,Shaw Healthcare Ltd,11942.52, 19-Mar-2013
1593,Revenue,CCHD,Bed Purchasing - S28A - Over 65- North,Residential Homes,Shaw Healthcare Ltd,4203.2, 19-Mar-2013
1594,Revenue,CCHD,Bed purchasing -S28A  Under 65 - North,Residential Homes,Shaw Healthcare Ltd,4218.4, 19-Mar-2013
1595,Revenue,CCHD,Bed Purchasing - LD S28A- Over 65- South,Residential Homes,Shaw Healthcare Ltd,4722.48, 19-Mar-2013
1596,Revenue,CCHD,Bed Purchasing - Under 65s PWLD - South,Nursing Homes,Shaw Healthcare Ltd,9995.92, 19-Mar-2013
1597,Revenue,CCHD,Bed Purchasing - Elderly - South,Residential Homes,Shaw Healthcare Ltd,7772.3, 19-Mar-2013
1598,Revenue,CCHD,Bed Purchasing - LD S28A- Over 65- South,Residential Homes,Shaw Healthcare Ltd,4404, 19-Mar-2013
1599,Revenue,CCHD,Bed Purchasing - LD S28A- Over 65- South,Residential Homes,Shaw Healthcare Ltd,4411.68, 19-Mar-2013
1600,Revenue,CCHD,Bed purchasing -S28A  Under 65 - North,Residential Homes,Shaw Healthcare Ltd,9087.56, 19-Mar-2013
1601,Revenue,CCHD,Bed Purchasing - S28A - Over 65- North,Residential Homes,Shaw Healthcare Ltd,8894.24, 19-Mar-2013
1602,Revenue,CCHD,Southmead Hospital Purchasing,Residential Homes,Shaw Healthcare Ltd,874.8, 19-Mar-2013
1603,Revenue,CCHD,Bed Purchasing - Elderly - North,Residential Homes,Shaw Healthcare Ltd,1271.56, 19-Mar-2013
1604,Revenue,CCHD,Frenchay Hospital Purchasing,Residential Homes,Shaw Healthcare Ltd,1117.2, 19-Mar-2013
1605,Revenue,CCHD,Supported Living - PS,Private & Voluntary Home Care,Silva Care Limited,7050.48, 08-Mar-2013
1606,Revenue,CCHD,Supported Living - PS,Private & Voluntary Home Care,Silva Care Limited,4415.44, 20-Mar-2013
1607,Revenue,CCHD,Supported Living - PS,Private & Voluntary Home Care,Silva Care Limited,7050.48, 25-Mar-2013
1608,Revenue,CCHD,Day Care - North,Private & Voluntary Day Care,Silva Care Limited,956.88, 25-Mar-2013
1609,Revenue,CCHD,Alexandra Way,Refuse Collection Charges,SITA UK LTD,678.75, 18-Mar-2013
1610,Revenue,CCHD,Bed purchasing - Under 65s PWLD - North,Residential Homes,Small House Homes Limited,17585.6, 19-Mar-2013
1611,Revenue,CCHD,Purchase of Non-Res Care - PS,Private & Voluntary Day Care,Smile Independent Living Support Limited,643.15, 20-Mar-2013
1612,Revenue,CCHD,Day Care - South,Private & Voluntary Day Care,Smile Independent Living Support Limited,607.41, 21-Mar-2013
1613,Revenue,CCHD,Supported Living - KD,Private & Voluntary Home Care,Smile Independent Living Support Limited,2962.59, 21-Mar-2013
1614,Revenue,CCHD,Purchase of Non-Res Care - KD,Private & Voluntary Day Care,Smile Independent Living Support Limited,1154.72, 22-Mar-2013
1615,Revenue,CCHD,Supported Living - KD,Private & Voluntary Home Care,Smile Independent Living Support Limited,3053.59, 21-Mar-2013
1616,Revenue,CCHD,Purchase of Non-Res Care - KD,Private & Voluntary Day Care,Smile Independent Living Support Limited,1132.13, 21-Mar-2013
1617,Revenue,CCHD,Purchase of Non-Res Care - KD,Private & Voluntary Day Care,Smile Independent Living Support Limited,599.01, 21-Mar-2013
1618,Revenue,CCHD,Purchase of Non-Res Care - KD,Private & Voluntary Day Care,Smile Independent Living Support Limited,1164.56, 21-Mar-2013
1619,Revenue,CCHD,Purchase of Non-Res Care - KD,Private & Voluntary Day Care,Smile Independent Living Support Limited,929.24, 22-Mar-2013
1620,Revenue,CCHD,Purchase of Non-Res Care - KD,Private & Voluntary Day Care,Smile Independent Living Support Limited,550.38, 22-Mar-2013
1621,Revenue,CCHD,Supported Living - KD,Private & Voluntary Home Care,Smile Independent Living Support Limited,2429.13, 22-Mar-2013
1622,Revenue,CCHD,SLA Grants - Support Serv,Grants to Voluntary Bodies,South Gloucestershire Deaf Association,4000, 25-Mar-2013
1623,Revenue,CCHD,Management & Support costs,Other Supplies & Services,South Gloucestershire Primary Care Trust,2312.5, 14-Mar-2013
1624,Revenue,CCHD,Bed Purchasing - Under 65s PWLD - South,Residential Homes,St Brigas,2036.8, 19-Mar-2013
1625,Revenue,CCHD,Bed Purchasing - Under 65s PWLD - South,Residential Homes,St Brigas,2944.64, 19-Mar-2013
1626,Revenue,CCHD,Bed Purchasing - Under 65s PWLD - South,Residential Homes,St Brigas,1985.08, 19-Mar-2013
1627,Revenue,CCHD,Frenchay Hospital Purchasing,Nursing Homes,St George Nursing Home,1295.2, 19-Mar-2013
1628,Revenue,CCHD,Bed Purchasing - Elderly - South,Nursing Homes,St George Nursing Home,1295.2, 19-Mar-2013
1629,Revenue,CCHD,Southmead Hospital Purchasing,Nursing Homes,St George Nursing Home,1319.2, 19-Mar-2013
1630,Revenue,CCHD,Southmead Hospital Purchasing,Nursing Homes,St George Nursing Home,848.05, 19-Mar-2013
1631,Revenue,CCHD,Frenchay Hospital Purchasing,Nursing Homes,St George Nursing Home,1040.12, 19-Mar-2013
1632,Revenue,CCHD,Bed purchasing - Under 65s PWLD - North,Residential Homes,St George Nursing Home,6906.94, 19-Mar-2013
1633,Revenue,CCHD,Bed Purchasing - Elderly - North,Nursing Homes,St Monicas Trust,2768.4, 19-Mar-2013
1634,Revenue,CCHD,Training - Adult Services,Training Expenses,St Peter`s Hospice,607.83, 18-Mar-2013
1635,Revenue,CCHD,Bed purchasing - Under 65s PWLD - North,Residential Homes,St Roses School,950, 21-Mar-2013
1636,Revenue,CCHD,Bed Purchasing - Elderly - South,Nursing Homes,St Roses School,3944.36, 15-Mar-2013
1637,Revenue,CCHD,SLA Grants - Support Serv,Grants to Voluntary Bodies,Stanshawes Care Home,1348, 28-Mar-2013
1638,Revenue,CCHD,Bed Purchasing - Under 65s PWLD - South,Residential Homes,Stepping Stones Re-Sett. Unit,8597.28, 19-Mar-2013
1639,Revenue,CCHD,Enabling Activities,Fees & Charges Income - General,Stuart Larkin & Associates Limited,7462.5, 15-Mar-2013
1640,Revenue,CCHD,Section 117 Placements MH Younger,Private & Voluntary Day Care,Supported Independence Ltd,2306.36, 26-Mar-2013
1641,Revenue,CCHD,Younger MH non-res purchasing,Private & Voluntary Day Care,Supported Independence Ltd,793.2, 08-Mar-2013
1642,Revenue,CCHD,Section 117 Placements MH Younger,Private & Voluntary Day Care,Supported Independence Ltd,2038.68, 01-Mar-2013
1643,Revenue,CCHD,Section 117 Placements MH Younger,Private & Voluntary Day Care,Supported Independence Ltd,3530.04, 01-Mar-2013
1644,Revenue,CCHD,Supported Living - PS,Private & Voluntary Home Care,Supported Independence Ltd,1824.36, 08-Mar-2013
1645,Revenue,CCHD,Section 117 Placements MH Younger,Private & Voluntary Day Care,Supported Independence Ltd,516.24, 01-Mar-2013
1646,Revenue,CCHD,Younger MH non-res purchasing,Private & Voluntary Day Care,Supported Independence Ltd,634.56, 01-Mar-2013
1647,Revenue,CCHD,Younger MH non-res purchasing,Private & Voluntary Day Care,Supported Independence Ltd,1090.65, 01-Mar-2013
1648,Revenue,CCHD,Section 117 Placements MH Younger,Private & Voluntary Day Care,Supported Independence Ltd,555.24, 01-Mar-2013
1649,Revenue,CCHD,Supported Living - PS,Private & Voluntary Home Care,Supported Independence Ltd,713.88, 01-Mar-2013
1650,Revenue,CCHD,Younger MH non-res purchasing,Private & Voluntary Day Care,Supported Independence Ltd,555.24, 01-Mar-2013
1651,Revenue,CCHD,Section 117 Placements MH Younger,Private & Voluntary Day Care,Supported Independence Ltd,3432.2, 01-Mar-2013
1652,Revenue,CCHD,Supported Living - PS,Private & Voluntary Home Care,Supported Independence Ltd,1675.64, 28-Mar-2013
1653,Revenue,CCHD,Supported Living - KD,Private & Voluntary Home Care,Supported Independence Ltd,882.44, 21-Mar-2013
1654,Revenue,CCHD,Supported Living - KD,Private & Voluntary Day Care,Supported Independence Ltd,733.71, 28-Mar-2013
1655,Revenue,CCHD,Day Care - North,Private & Voluntary Day Care,Supported Independence Ltd,1070.72, 28-Mar-2013
1656,Revenue,CCHD,Supported Living - PS,Private & Voluntary Home Care,Supported Independence Ltd,634.56, 28-Mar-2013
1657,Revenue,CCHD,Younger MH non-res purchasing,Private & Voluntary Day Care,Supported Independence Ltd,515.58, 28-Mar-2013
1658,Revenue,CCHD,Younger MH non-res purchasing,Private & Voluntary Day Care,Supported Independence Ltd,556.24, 28-Mar-2013
1659,Revenue,CCHD,Section 117 Placements MH Younger,Private & Voluntary Day Care,Supported Independence Ltd,3300.6, 28-Mar-2013
1660,Revenue,CCHD,Supporting People Programme,Grants to Voluntary Bodies,Supported Independence Ltd,2958.54, 01-Mar-2013
1661,Revenue,CCHD,Supporting People Programme,Grants to Voluntary Bodies,Supported Independence Ltd,6117.49, 01-Mar-2013
1662,Revenue,CCHD,Supported Living - PS,Private & Voluntary Home Care,Supported Independent Living Schemes,1051.2, 26-Mar-2013
1663,Revenue,CCHD,Supporting People Programme,Grants to Voluntary Bodies,Supported Independent Living Schemes,10545.66, 01-Mar-2013
1664,Revenue,CCHD,Supported Living - PS,Private & Voluntary Home Care,Supported Independent Living Schemes,642.96, 06-Mar-2013
1665,Revenue,CCHD,Supported Living - PS,Private & Voluntary Home Care,Supported Independent Living Schemes,642.96, 28-Mar-2013
1666,Revenue,CCHD,Supported Living - PS,Private & Voluntary Home Care,Supporting Options,697.4, 20-Mar-2013
1667,Revenue,CCHD,Younger MH non-res purchasing,Private & Voluntary Day Care,Supporting Options,538.88, 22-Mar-2013
1668,Revenue,CCHD,Bed Purchasing - Under 65s PWLD - South,Residential Homes,The Ann Coleman Centre,6046.48, 19-Mar-2013
1669,Revenue,CCHD,Southmead Hospital Purchasing,Residential Homes,The Beeches,696.6, 19-Mar-2013
1670,Revenue,CCHD,Bed Purchasing - Elderly - North,Residential Homes,The Beeches,960, 19-Mar-2013
1671,Revenue,CCHD,Frenchay Hospital Purchasing,Residential Homes,The Beeches,1141.52, 19-Mar-2013
1672,Revenue,CCHD,Southmead Hospital Purchasing,Residential Homes,The Beeches,1239.2, 19-Mar-2013
1673,Revenue,CCHD,Day Care - North,Private & Voluntary Day Care,The Brandon Trust,687.72, 14-Mar-2013
1674,Revenue,CCHD,Purchase of Non-Res Care - PS,Private & Voluntary Day Care,The Brandon Trust,695.97, 12-Mar-2013
1675,Revenue,CCHD,Purchase of Non-Res Care - KD,Private & Voluntary Day Care,The Brandon Trust,1219.14, 19-Mar-2013
1676,Revenue,CCHD,Purchase of Non-Res Care - PS,Private & Voluntary Day Care,The Brandon Trust,515.79, 12-Mar-2013
1677,Revenue,CCHD,Younger MH non-res purchasing,Private & Voluntary Day Care,The Brandon Trust,506.16, 15-Mar-2013
1678,Revenue,CCHD,Purchase of Non-Res Care - KD,Private & Voluntary Day Care,The Brandon Trust,5251.68, 18-Mar-2013
1679,Revenue,CCHD,Purchase of Non-Res Care - KD,Private & Voluntary Day Care,The Brandon Trust,949.05, 18-Mar-2013
1680,Revenue,CCHD,Younger MH non-res purchasing,Private & Voluntary Day Care,The Brandon Trust,1138.86, 18-Mar-2013
1681,Revenue,CCHD,Purchase of Non-Res Care - PS,Private & Voluntary Day Care,The Brandon Trust,2334.08, 12-Mar-2013
1682,Revenue,CCHD,Purchase of Non-Res Care - PS,Private & Voluntary Day Care,The Brandon Trust,949.06, 12-Mar-2013
1683,Revenue,CCHD,Purchase of Non-Res Care - KD,Private & Voluntary Day Care,The Brandon Trust,1151.41, 19-Mar-2013
1684,Revenue,CCHD,Purchase of Non-Res Care - KD,Private & Voluntary Day Care,The Brandon Trust,1031.58, 19-Mar-2013
1685,Revenue,CCHD,Purchase of Non-Res Care - PS,Private & Voluntary Day Care,The Brandon Trust,822.51, 12-Mar-2013
1686,Revenue,CCHD,Purchase of Non-Res Care - KD,Private & Voluntary Day Care,The Brandon Trust,949.05, 19-Mar-2013
1687,Revenue,CCHD,Purchase of Non-Res Care - PS,Private & Voluntary Day Care,The Brandon Trust,949.05, 12-Mar-2013
1688,Revenue,CCHD,Purchase of Non-Res Care - KD,Private & Voluntary Day Care,The Brandon Trust,1156.62, 18-Mar-2013
1689,Revenue,CCHD,Supported Living - PS,Private & Voluntary Home Care,The Brandon Trust,695.97, 13-Mar-2013
1690,Revenue,CCHD,Day Care - South,Private & Voluntary Day Care,The Brandon Trust,601.07, 12-Mar-2013
1691,Revenue,CCHD,Purchase of Non-Res Care - PS,Private & Voluntary Day Care,The Brandon Trust,759.24, 12-Mar-2013
1692,Revenue,CCHD,Purchase of Non-Res Care - PS,Private & Voluntary Day Care,The Brandon Trust,4959.92, 13-Mar-2013
1693,Revenue,CCHD,Supported Living - PS,Private & Voluntary Home Care,The Brandon Trust,703.35, 12-Mar-2013
1694,Revenue,CCHD,Purchase of Non-Res Care - PS,Private & Voluntary Day Care,The Brandon Trust,2990.54, 13-Mar-2013
1695,Revenue,CCHD,Purchase of Non-Res Care - PS,Private & Voluntary Day Care,The Brandon Trust,1624.1, 12-Mar-2013
1696,Revenue,CCHD,Purchase of Non-Res Care - PS,Private & Voluntary Day Care,The Brandon Trust,949.05, 13-Mar-2013
1697,Revenue,CCHD,Purchase of Non-Res Care - PS,Private & Voluntary Day Care,The Camphill Village Trust,1653.57, 22-Mar-2013
1698,Revenue,CCHD,Bed purchasing - Elderly MH - North,Residential Homes,The Cidermill,1403.2, 19-Mar-2013
1699,Revenue,CCHD,Bed purchasing - Elderly MH - North,Residential Homes,The Cidermill,1403.2, 19-Mar-2013
1700,Revenue,CCHD,Bed purchasing - Elderly MH - North,Residential Homes,The Cidermill,968.48, 19-Mar-2013
1701,Revenue,CCHD,Bed purchasing - Elderly MH - North,Nursing Homes,The Cidermill,1205.8, 19-Mar-2013
1702,Revenue,CCHD,Southmead Hospital Purchasing,Residential Homes,The Cidermill,933.6, 19-Mar-2013
1703,Revenue,CCHD,Southmead Hospital Purchasing,Residential Homes,The Gables Residential Home,1362.72, 19-Mar-2013
1704,Revenue,CCHD,Bed purchasing - Elderly S117 - South,Residential Homes,The Gables Residential Home,2193.08, 19-Mar-2013
1705,Revenue,CCHD,Bed Purchasing - Elderly - South,Residential Homes,The Gables Residential Home,1372.72, 19-Mar-2013
1706,Revenue,CCHD,Bed Purchasing - Elderly - South,Residential Homes,The Gables Residential Home,1174.72, 19-Mar-2013
1707,Revenue,CCHD,Bed Purchasing - Elderly - South,Residential Homes,The Gables Residential Home,500, 19-Mar-2013
1708,Revenue,CCHD,Bed Purchasing - Elderly - South,Residential Homes,The Garden House,888.52, 19-Mar-2013
1709,Revenue,CCHD,Southmead Hospital Purchasing,Residential Homes,The Garden House,1342.76, 19-Mar-2013
1710,Revenue,CCHD,Frenchay Hospital Purchasing,Residential Homes,The Garden House,1232.84, 19-Mar-2013
1711,Revenue,CCHD,Bed Purchasing - Elderly - South,Residential Homes,The Garden House,1598.8, 19-Mar-2013
1712,Revenue,CCHD,Bed Purchasing - Elderly - South,Residential Homes,The Garden House,1483.2, 19-Mar-2013
1713,Revenue,CCHD,Bed Purchasing - Elderly S117- North,Residential Homes,The Garden House,1880, 19-Mar-2013
1714,Revenue,CCHD,Bed Purchasing - Elderly - North,Residential Homes,The Garden House,1241.36, 19-Mar-2013
1715,Revenue,CCHD,Southmead Hospital Purchasing,Residential Homes,The Garden House,1165.16, 19-Mar-2013
1716,Revenue,CCHD,Bed Purchasing - Elderly MH - South,Residential Homes,The Garden House,1209.88, 19-Mar-2013
1717,Revenue,CCHD,Bed Purchasing - Elderly - South,Residential Homes,The Garden House,1146.12, 19-Mar-2013
1718,Revenue,CCHD,Bed purchasing - Elderly MH - North,Residential Homes,The Garden House,1366.2, 19-Mar-2013
1719,Revenue,CCHD,Bed purchasing - Elderly MH - North,Residential Homes,The Grove,972.12, 19-Mar-2013
1720,Revenue,CCHD,Bed purchasing - Elderly MH - North,Residential Homes,The Grove,573.44, 19-Mar-2013
1721,Revenue,CCHD,Bed Purchasing - Elderly S117- North,Residential Homes,The Grove,2074.28, 19-Mar-2013
1722,Revenue,CCHD,Bed purchasing - Elderly S117 - South,Residential Homes,The Grove,2217.86, 19-Mar-2013
1723,Revenue,CCHD,Bed purchasing - Elderly MH - North,Residential Homes,The Grove,1607.72, 19-Mar-2013
1724,Revenue,CCHD,Southmead Hospital Purchasing,Residential Homes,The Grove,1403.2, 19-Mar-2013
1725,Revenue,CCHD,Bed purchasing - Elderly S117 - South,Residential Homes,The Grove,2135.71, 19-Mar-2013
1726,Revenue,CCHD,Bed purchasing - Elderly MH - North,Residential Homes,The Grove,1490.64, 19-Mar-2013
1727,Revenue,CCHD,Southmead Hospital Purchasing,Residential Homes,The Grove,1335.12, 19-Mar-2013
1728,Revenue,CCHD,Bed purchasing - Elderly MH - North,Residential Homes,The Grove,1499.52, 19-Mar-2013
1729,Revenue,CCHD,Supporting People Programme,Grants to Voluntary Bodies,The Hatch Camphill Community,619.7, 01-Mar-2013
1730,Revenue,CCHD,South Glos Users in South Glos Homes,Nursing Homes,The Heathers,2686.44, 19-Mar-2013
1731,Revenue,CCHD,Bed Purchasing - Elderly - South,Nursing Homes,The Heathers,716.04, 19-Mar-2013
1732,Revenue,CCHD,Frenchay Hospital Purchasing,Nursing Homes,The Heathers,1311.2, 19-Mar-2013
1733,Revenue,CCHD,Frenchay Hospital Purchasing,Nursing Homes,The Heathers,1239.84, 19-Mar-2013
1734,Revenue,CCHD,South Glos Users in South Glos Homes,Nursing Homes,The Heathers,1149.11, 19-Mar-2013
1735,Revenue,CCHD,South Glos Users in South Glos Homes,Nursing Homes,The Heathers,1180.17, 19-Mar-2013
1736,Revenue,CCHD,Frenchay Hospital Purchasing,Nursing Homes,The Heathers,691, 19-Mar-2013
1737,Revenue,CCHD,Southmead Hospital Purchasing,Nursing Homes,The Heathers,1267.08, 19-Mar-2013
1738,Revenue,CCHD,Frenchay Hospital Purchasing,Nursing Homes,The Heathers,1183.92, 19-Mar-2013
1739,Revenue,CCHD,Frenchay Hospital Purchasing,Nursing Homes,The Heathers,1295.2, 19-Mar-2013
1740,Revenue,CCHD,Bed Purchasing - Elderly - North,Nursing Homes,The Heathers,1298.68, 19-Mar-2013
1741,Revenue,CCHD,Bed Purchasing - Elderly - North,Nursing Homes,The Heathers,1061.96, 19-Mar-2013
1742,Revenue,CCHD,South Glos Users in South Glos Homes,Nursing Homes,The Heathers,2236.11, 19-Mar-2013
1743,Revenue,CCHD,Frenchay Hospital Purchasing,Nursing Homes,The Heathers,989.2, 19-Mar-2013
1744,Revenue,CCHD,Frenchay Hospital Purchasing,Nursing Homes,The Heathers,1229.16, 19-Mar-2013
1745,Revenue,CCHD,South Glos Users in South Glos Homes,Nursing Homes,The Heathers,4518.81, 19-Mar-2013
1746,Revenue,CCHD,Frenchay Hospital Purchasing,Nursing Homes,The Heathers,1211.96, 19-Mar-2013
1747,Revenue,CCHD,Southmead Hospital Purchasing,Nursing Homes,The Heathers,730.72, 19-Mar-2013
1748,Revenue,CCHD,Southmead Hospital Purchasing,Nursing Homes,The Heathers,1152.24, 19-Mar-2013
1749,Revenue,CCHD,Frenchay Hospital Purchasing,Nursing Homes,The Heathers,1485.52, 19-Mar-2013
1750,Revenue,CCHD,Frenchay Hospital Purchasing,Nursing Homes,The Heathers,1260.44, 19-Mar-2013
1751,Revenue,CCHD,Bed purchasing - Elderly MH - North,Residential Homes,The Hollies,1277.48, 19-Mar-2013
1752,Revenue,CCHD,Bed Purchasing - Elderly - North,Nursing Homes,The Hollies Nursing Home,1763.68, 19-Mar-2013
1753,Revenue,CCHD,Frenchay Hospital Purchasing,Nursing Homes,The Laurels Nursing Home,1895.92, 19-Mar-2013
1754,Revenue,CCHD,Bed Purchasing - Under 65s PWLD - South,Residential Homes,The Manor House,2902.64, 19-Mar-2013
1755,Revenue,CCHD,Bed purchasing - Elderly PWLD - South,Residential Homes,The Manor House,2290.85, 19-Mar-2013
1756,Revenue,CCHD,Bed purchasing - Elderly PWLD - South,Residential Homes,The Manor House,981.79, 19-Mar-2013
1757,Revenue,CCHD,Bed Purchasing - Under 65s PWLD - South,Residential Homes,The Manor House,4848.44, 19-Mar-2013
1758,Revenue,CCHD,Bed Purchasing - Under 65s PWLD - South,Residential Homes,The Manor House,3443.84, 19-Mar-2013
1759,Revenue,CCHD,Bed Purchasing - Under 65s PWLD - South,Residential Homes,The Manor House,2649.08, 19-Mar-2013
1760,Revenue,CCHD,Bed purchasing - Under 65s PWLD - North,Residential Homes,The Manor House,2747.12, 19-Mar-2013
1761,Revenue,CCHD,Bed Purchasing - Under 65s PWLD - South,Residential Homes,The Manor House,3219.12, 19-Mar-2013
1762,Revenue,CCHD,Bed purchasing - Under 65s PWLD - North,Residential Homes,The Manor House,2790.24, 19-Mar-2013
1763,Revenue,CCHD,Bed Purchasing - Under 65s PWLD - South,Residential Homes,The Manor House,2649.08, 19-Mar-2013
1764,Revenue,CCHD,Bed Purchasing - Under 65s PWLD - South,Residential Homes,The Manor House,3292.6, 19-Mar-2013
1765,Revenue,CCHD,Bed Purchasing - Under 65s PWLD - South,Residential Homes,The Manor House,5937.48, 19-Mar-2013
1766,Revenue,CCHD,Bed purchasing - S28A Under 65 - South,Residential Homes,The Manor House,4791.52, 19-Mar-2013
1767,Revenue,CCHD,Bed Purchasing - Under 65s PWLD - South,Residential Homes,The Manor House,2688.84, 19-Mar-2013
1768,Revenue,CCHD,Bed Purchasing - Under 65s PWLD - South,Residential Homes,The Manor House,3361.48, 19-Mar-2013
1769,Revenue,CCHD,Bed Purchasing - Under 65s PWLD - South,Residential Homes,The Manor House,2945.16, 19-Mar-2013
1770,Revenue,CCHD,Bed Purchasing - Under 65s PWLD - South,Residential Homes,The Manor House,3645.36, 19-Mar-2013
1771,Revenue,CCHD,Bed Purchasing - Under 65s PWLD - South,Residential Homes,The Manor House,4868.52, 19-Mar-2013
1772,Revenue,CCHD,Bed Purchasing - Under 65s PWLD - South,Residential Homes,The Manor House,5580.05, 19-Mar-2013
1773,Revenue,CCHD,Bed Purchasing - Under 65s PWLD - South,Residential Homes,The Manor House,3188.6, 19-Mar-2013
1774,Revenue,CCHD,Bed Purchasing - Under 65s PWLD - South,Residential Homes,The Manor House,2865.96, 19-Mar-2013
1775,Revenue,CCHD,Bed Purchasing - Under 65s PWLD - South,Residential Homes,The Manor House,4383.48, 19-Mar-2013
1776,Revenue,CCHD,Bed purchasing - Under 65s PWLD - North,Residential Homes,The Manor House,4100.6, 19-Mar-2013
1777,Revenue,CCHD,Bed Purchasing - Under 65s PWLD - South,Residential Homes,The Manor House,4264.16, 19-Mar-2013
1778,Revenue,CCHD,Bed Purchasing - Under 65s PWLD - South,Residential Homes,The Manor House,3196.88, 19-Mar-2013
1779,Revenue,CCHD,Bed Purchasing - Under 65s PWLD - South,Residential Homes,The Manor House,525.31, 19-Mar-2013
1780,Revenue,CCHD,Bed Purchasing - Under 65s PWLD - South,Residential Homes,The Manor House,1050.6, 19-Mar-2013
1781,Revenue,CCHD,Bed purchasing - Elderly PWLD - South,Residential Homes,The Manor House,2656.96, 19-Mar-2013
1782,Revenue,CCHD,Bed Purchasing - Under 65s PWLD - South,Residential Homes,The Manor House,3181.6, 19-Mar-2013
1783,Revenue,CCHD,Bed Purchasing - Under 65s PWLD - South,Residential Homes,The Manor House,505.93, 19-Mar-2013
1784,Revenue,CCHD,Bed Purchasing - Under 65s PWLD - South,Residential Homes,The Manor House,522.43, 19-Mar-2013
1785,Revenue,CCHD,Bed Purchasing - Under 65s PWLD - South,Residential Homes,The Manor House,6406.6, 19-Mar-2013
1786,Revenue,CCHD,Bed Purchasing - Under 65s PWLD - South,Residential Homes,The Manor House,1643.32, 19-Mar-2013
1787,Revenue,CCHD,Bed Purchasing - Under 65s PWLD - South,Residential Homes,The Manor House,4176.84, 19-Mar-2013
1788,Revenue,CCHD,Bed purchasing - Under 65s PWLD - North,Residential Homes,The Thomas Moore Project,1914.72, 19-Mar-2013
1789,Revenue,CCHD,Bed Purchasing - Elderly MH - South,Residential Homes,The Worthies,1405, 19-Mar-2013
1790,Revenue,CCHD,Bed Purchasing - Elderly MH - South,Residential Homes,The Worthies,1292.16, 19-Mar-2013
1791,Revenue,CCHD,Bed Purchasing - Elderly - South,Nursing Homes,Thornhill House,1890.32, 19-Mar-2013
1792,Revenue,CCHD,Bed purchasing - Under 65s PWLD - North,Residential Homes,Three Roses Home,1875.72, 19-Mar-2013
1793,Revenue,CCHD,Learning Difficulties PSL,Rent,Individual,650, 22-Mar-2013
1794,Revenue,CCHD,Learning Difficulties PSL,Rent,Individual,750, 22-Mar-2013
1795,Revenue,CCHD,Learning Difficulties PSL,Rent,Individual,488, 22-Mar-2013
1796,Revenue,CCHD,Bed Purchasing - Under 65s PWLD - South,Residential Homes,Tomlen,6484.72, 19-Mar-2013
1797,Revenue,CCHD,Bed purchasing - Phys Dis - North,Residential Homes,Tracs Care,6215.08, 19-Mar-2013
1798,Revenue,CCHD,Bed purchasing - Phys Dis - North,Residential Homes,Tracs Care,4531.28, 19-Mar-2013
1799,Revenue,CCHD,Bed Purchasing - Under 65s PWLD - South,Residential Homes,Tracs Group Ltd,6510.68, 19-Mar-2013
1800,Revenue,CCHD,Frenchay Hospital Purchasing,Residential Homes,Tracs Group Ltd,5225.17, 19-Mar-2013
